Workbook

Sheet INDEX
A1: INDEX
A2: Model Specs
A3: 1. Information Sheet
A4: 2. Current Tariff Schedule
A5: 3. Continuity Schedule
A6: 4. Billing Det. for Def-Var
A7: 5. Allocating Def-Var Balances
A8: 6. GA Calculation
A9: 6A. GA Allocation_Class A
A10: 6B. GA Allocation_new Class B
A11: 7. CBR Allocation
A12: 7A. CBR Allocation_Class A
A13: 7B. CBR Allocation_new Class B
A14: 8. Calculation of Def-Var RR
A15: 9. STS-Tax Change
A16: 10. Shared Tax - RR
A17: 11. RTSR - Current Rates
A18: 12. RTSR-UTRs & Sub-Tx
A19: 13. RTSR-Historic Wholesale
A20: 14. RTSR-Current Wholesale
A21: 15. RTSR-Forecast Wholesale
A22: 16. RTSR-Rates to Forecast
A23: 17. Rev2Cost-GDPIPI
A24: 18. Regulatory Charges
A25: 19. Additional Rates
A26: 20. Final Tariff Schedule
A27: 21. Bill Impacts
A28: RATES
A29: BoD Reporting
A30: 10th Percentile

Sheet Model Specs
A1: Back to Index | K1: Lists:
B2: Model Specifications
K3: Yes
B4: Utility | C4: Alectra - Enersource | K4: No
B6: Applying for Rates Effective | C6: =+'1. Information Sheet'!G26 -> 2019-01-01 | K6: kWh
K7: kW
K8: kVA
B9: Line Loss Factor | C9: 1.036
K10: Alectra Utilities - PowerStream Rate Zone
K11: Alectra Utilities - Enersource Rate Zone
K12: Alectra Utilities - Horizon Utilites Rate Zone
K13: Alectra Utilities - Brampton Rate Zone
C14: Rate Classes (select from the List)
B15: =IFERROR(VLOOKUP(C15,$K$16:$L$29,2,FALSE),"") -> RES | C15: RESIDENTIAL SERVICE CLASSIFICATION
B16: =IFERROR(VLOOKUP(C16,$K$16:$L$29,2,FALSE),"") -> GSL | C16: GENERAL SERVICE LESS THAN 50 kW SERVICE CLASSIFICATION | K16: RESIDENTIAL SERVICE CLASSIFICATION | L16: RES
B17: GS50_499 | C17: GENERAL SERVICE 50 to 499 kW SERVICE CLASSIFICATION | K17: GENERAL SERVICE LESS THAN 50 kW SERVICE CLASSIFICATION | L17: GSL
B18: GS500 | C18: GENERAL SERVICE 500 to 4,999 kW SERVICE CLASSIFICATION | K18: GENERAL SERVICE 50 to 499 kW SERVICE CLASSIFICATION | L18: GS50_499
B19: LU | C19: LARGE USE SERVICE CLASSIFICATION | K19: GENERAL SERVICE 50 to 699 KW SERVICE CLASSIFICATION | L19: GS50_699
B20: SB | C20: STANDBY POWER SERVICE CLASSIFICATION | K20: GENERAL SERVICE 500 to 4,999 kW SERVICE CLASSIFICATION | L20: GS500
B21: USL | C21: UNMETERED SCATTERED LOAD SERVICE CLASSIFICATION | K21: GENERAL SERVICE 700 to 4,999 KW SERVICE CLASSIFICATION | L21: GS700
B22: SL | C22: STREET LIGHTING SERVICE CLASSIFICATION | K22: LARGE USE SERVICE CLASSIFICATION | L22: LU
K23: UNMETERED SCATTERED LOAD SERVICE CLASSIFICATION | L23: USL
K24: STREET LIGHTING SERVICE CLASSIFICATION | L24: SL
K25: STANDBY POWER SERVICE CLASSIFICATION | L25: SB
K26: SENTINEL LIGHTING SERVICE CLASSIFICATION | L26: SEN
K27: EMBEDDED DISTRIBUTOR SERVICE CLASSIFICATION | L27: EMB
K28: DISTRIBUTED GENERATION [DGEN] SERVICE CLASSIFICATION | L28: DG
K29: ENERGY FROM WASTE SERVICE CLASSIFICATION | L29: WST
B34: Have one or more Class A customers | C34: Yes

Sheet 1. Information Sheet
A1: Back to Index | V1: a
B2: INCENTIVE REGULATION MODEL FOR 2019 FILERS
N12: Version | O12: 1
F14: Utility Name | G14: Alectra Utilities - Horizon Utilites Rate Zone
F16: Service Territory
F18: Assigned EB Number | G18: EB-2018-0016
F20: Name of Contact and Title | G20: Indy J. Butany-DeSouza, Vice-President, Regulatory Affairs
F22: Phone Number | G22: 905-821-5727
F24: Email Address | G24: indy.butany@alectrautilities.com
F26: We are applying for rates effective | G26: 2019-01-01
F28: Rate-Setting Method | G28: Price Cap IR
B30: Please indicate in which Rate Year the Group 1 accounts were last cleared1 | G30: 2018
B32: Please indicate the last Cost of Service Re-Basing Year | G32: 2013
C35: Notes
D37: Pale gray cells represent input cells.
D39: Pale blue cells represent drop-down lists.
D41: White cells contain fixed values, automatically generated values or formulae.
B44: Note: 1. Rate year of application

Sheet 2. Current Tariff Schedule
A1: Back to Index
B2: =+'1. Information Sheet'!B2:O9 -> INCENTIVE REGULATION MODEL FOR 2019 FILERS
B11: Alectra Utilities Corporation
B12: Enersource Rate Zone
B13: TARIFF OF RATES AND CHARGES
B14: Effective Date January 1, 2018
B15: Implementation Date May 1, 2018
B17: This schedule supersedes and replaces all previously
B18: approved schedules of Rates, Charges and Loss Factors
B19: EB-2017-0024
B20: RESIDENTIAL SERVICE CLASSIFICATION
B22: This classification refers to all residential services including, without limitation, single family or single unit dwellings, multifamily dwellings, row-type dwellings and subdivision developments. Energy is supplied in single phase, 3-wire, or three phase, 4 wire, having a nominal voltage of 120/240 volts. There shall be only one delivery point to a dwelling. Class B consumers are defined in accordance with O. Reg. 429/04. Further servicing details are available in the distributor’s Conditions of Service.
B24: APPLICATION
B26: The application of these rates and charges shall be in accordance with the Licence of the Distributor and any Code or Order of the Ontario Energy Board, and amendments thereto as approved by the Ontario Energy Board, which may be applicable to the administration of this schedule.
B28: No rates and charges for the distribution of electricity and charges to meet the costs of any work or service done or furnished for the purpose of the distribution of electricity shall be made except as permitted by this schedule, unless required by the Distributor’s Licence or a Code or Order of the Ontario Energy Ontario Energy Board, and amendments thereto as approved by the Ontario Energy Board, or as specified herein.
B30: Unless specifically noted, this schedule does not contain any charges for the electricity commodity, be it under the Regulated Price Plan, a contract with a retailer or the wholesale market price, as applicable. In addition, the charges in the MONTHLY RATES AND CHARGES - Regulatory Component of this schedule do not apply to a customer that is an embedded wholesale market participant.
B32: It should be noted that this schedule does not list any charges, assessments, or credits that are required by law to be invoiced by a distributor and that are not subject to Ontario Energy Board approval, such as the Debt Retirement Charge, the Global Adjustment and the HST.
B34: MONTHLY RATES AND CHARGES - Delivery Component
A36: R_F | B36: Service Charge | C36: $ | D36: 21.61
B37: Smart Metering Entity Charge - effective until December 31, 2022 | C37: $ | D37: 0.57
A38: R_GA16 | B38: Rate Rider for Recovery of Incremental Capital Module (2017) - in effect until the effective date of the next cost of service based rate order | C38: $ | D38: 0.6
B39: Rate Rider for Recovery of ICM (2018) - in effect from May 1, 2018 until the effective date of the next cost of service based rate order | C39: $ | D39: 0.16
B40: Rate Rider for Recovery of 2018 Foregone Revenue - effective until December 31, 2018 | C40: $ | D40: 0.17
A41: R_V | B41: Distribution Volumetric Rate | C41: $/kWh | D41: 0.0035
A42: R_V | B42: Low Voltage Service Rate | C42: $/kWh | D42: 0.0002
B43: Rate Rider for Disposition of Global Adjustment Account (2018) - effective until April 30, 2019 Applicable only for Non-RPP Customers | C43: $/kWh | D43: -0.0005
B44: Rate Rider for Disposition of Deferral/Variance Accounts (2018) - effective until April 30, 2019 | C44: $/kWh | D44: -0.0007
B45: Rate Rider for Disposition of Capacity Based Recovery Account (2018) - effective until April 30, 2019 Applicable Only for Class B Customers | C45: $/kWh | D45: -5e-05
B46: Rate Rider for Disposition of Lost Revenue Adjustment Mechanism Variance Account (LRAMVA) (2018) - effective until April 30, 2019 | C46: $/kWh | D46: -0.0002
A47: R_TN | B47: Retail Transmission Rate - Network Service Rate | C47: $/kWh | D47: 0.007570643242
A48: R_TC | B48: Retail Transmission Rate - Line and Transformation Connection Service Rate | C48: $/kWh | D48: 0.007083661816
B50: MONTHLY RATES AND CHARGES - Regulatory Component
B52: Wholesale Market Service Rate (WMS) - Not including CBR | C52: $/kWh | D52: 0.0032
B53: Capacity Based Recovery (CBR) - Applicable for Class B Customers | C53: $/kWh | D53: 0.0004
B54: Rural or Remote Electricity Rate Protection Charge (RRRP) | C54: $/kWh | D54: 0.0003
B55: Standard Supply Service - Administrative Charge (if applicable) | C55: $ | D55: 0.25
B57: GENERAL SERVICE LESS THAN 50 KW SERVICE CLASSIFICATION
B59: This classification refers to a non-residential account whose monthly average peak demand is less than, or is forecast to be less than, 50 kW. Class B consumers are defined in accordance with O. Reg. 429/04. Further servicing details are available in the distributor’s Conditions of Service.
B61: APPLICATION
B63: The application of these rates and charges shall be in accordance with the Licence of the Distributor and any Code or Order of the Ontario Energy Board, and amendments thereto as approved by the Ontario Energy Board, which may be applicable to the administration of this schedule.
B65: No rates and charges for the distribution of electricity and charges to meet the costs of any work or service done or furnished for the purpose of the distribution of electricity shall be made except as permitted by this schedule, unless required by the Distributor’s Licence or a Code or Order of the Ontario Energy Board, and amendments thereto as approved by the Ontario Energy Board, or as specified herein.
B67: Unless specifically noted, this schedule does not contain any charges for the electricity commodity, be it under the Regulated Price Plan, a contract with a retailer or the wholesale market price, as applicable. In addition, the charges in the MONTHLY RATES AND CHARGES - Regulatory Component of this schedule do not apply to a customer that is an embedded wholesale market participant.
B69: It should be noted that this schedule does not list any charges, assessments, or credits that are required by law to be invoiced by a distributor and that are not subject to Ontario Energy Board approval, such as the Debt Retirement Charge, the Global Adjustment and the HST.
B71: MONTHLY RATES AND CHARGES - Delivery Component
A73: GSL_F | B73: Service Charge | C73: $ | D73: 43.99
B74: Smart Metering Entity Charge - effective until December 31, 2022 | C74: $ | D74: 0.57
A75: GSL_GA16 | B75: Rate Rider for Recovery of Incremental Capital Module (2017) - in effect until the effective date of the next cost of service based rate order | C75: $ | D75: 1.1
B76: Rate Rider for Recovery of ICM (2018) - in effect from May 1, 2018 until the effective date of the next cost of service based rate order | C76: $ | D76: 0.29
B77: Rate Rider for Recovery of 2018 Foregone Revenue - effective until December 31, 2018 | C77: $ | D77: 0.35
A78: GSL_V | B78: Distribution Volumetric Rate | C78: $/kWh | D78: 0.0128
A79: GSL_V | B79: Low Voltage Service Rate | C79: $/kWh | D79: 0.0002
B80: Rate Rider for Disposition of Global Adjustment Account (2018) - effective until April 30, 2019 Applicable only for Non-RPP Customers | C80: $/kWh | D80: -0.0005
B81: Rate Rider for Disposition of Deferral/Variance Accounts (2018) - effective until April 30, 2019 | C81: $/kWh | D81: -0.0007
B82: Rate Rider for Disposition of Capacity Based Recovery Account (2018) - effective until April 30, 2019 Applicable Only for Class B Customers | C82: $/kWh | D82: -5e-05
B83: Rate Rider for Disposition of Lost Revenue Adjustment Mechanism Variance Account (LRAMVA) (2018) - effective until April 30, 2019 | C83: $/kWh | D83: 0.0006
A84: GSL_1576 | B84: Rate Rider for Recovery of Incremental Capital Module (2017) - in effect until the effective date of the next cost of service based rate order | C84: $/kWh | D84: 0.0003
B85: Rate Rider for Recovery of ICM (2018) - in effect from May 1, 2018 until the effective date of the next cost of service based rate order | C85: $/kWh | D85: 0.0001
A86: GSL_TN | B86: Retail Transmission Rate - Network Service Rate | C86: $/kWh | D86: 0.0071
A87: GSL_TC | B87: Retail Transmission Rate - Line and Transformation Connection Service Rate | C87: $/kWh | D87: 0.0064
B89: MONTHLY RATES AND CHARGES - Regulatory Component
B91: Wholesale Market Service Rate (WMS) - Not including CBR | C91: $/kWh | D91: 0.0032
B92: Capacity Based Recovery (CBR) - Applicable for Class B Customers | C92: $/kWh | D92: 0.0004
B93: Rural or Remote Electricity Rate Protection Charge (RRRP) | C93: $/kWh | D93: 0.0003
B94: Standard Supply Service - Administrative Charge (if applicable) | C94: $ | D94: 0.25
B95: GENERAL SERVICE 50 TO 499 KW SERVICE CLASSIFICATION
B97: This classification refers to a non-residential account whose monthly average peak demand is equal to or greater than, or is forecast to be equal to or greater than, 50 kW but less than 500 kW. Class B consumers are defined in accordance with O. Reg. 429/04. Further servicing details are available in the distributor’s Conditions of Service.
B99: APPLICATION
B101: The application of these rates and charges shall be in accordance with the Licence of the Distributor and any Code or Order of the Ontario Energy Board, and amendments thereto as approved by the Ontario Energy Board, which may be applicable to the administration of this schedule.
B103: No rates and charges for the distribution of electricity and charges to meet the costs of any work or service done or furnished for the purpose of the distribution of electricity shall be made except as permitted by this schedule, unless required by the Distributor’s Licence or a Code or Order of the Ontario Energy Board, and amendments thereto as approved by the Ontario Energy Board, or as specified herein.
B105: Unless specifically noted, this schedule does not contain any charges for the electricity commodity, be it under the Regulated Price Plan, a contract with a retailer or the wholesale market price, as applicable. In addition, the charges in the MONTHLY RATES AND CHARGES - Regulatory Component of this schedule do not apply to a customer that is an embedded wholesale market participant.
B107: It should be noted that this schedule does not list any charges, assessments, or credits that are required by law to be invoiced by a distributor and that are not subject to Ontario Energy Board approval, such as the Debt Retirement Charge, the Global Adjustment and the HST.
B109: Billing demands are established at the greater of 100% of the kW, or 90% of the kVA amounts.
B111: MONTHLY RATES AND CHARGES - Delivery Component
A113: GS50_499_F | B113: Service Charge | C113: $ | D113: 77.48
A114: GS50_699_F | B114: Rate Rider for Recovery of Incremental Capital Module (2017) - in effect until the effective date of the next cost of service based rate order | C114: $ | D114: 1.93
B115: Rate Rider for Recovery of ICM (2018) - in effect from May 1, 2018 until the effective date of the next cost of service based rate order | C115: $ | D115: 0.51
B116: Rate Rider for Recovery of 2018 Foregone Revenue - effective until December 31, 2018 | C116: $ | D116: 2.84
A117: GS50_499_V | B117: Distribution Volumetric Rate | C117: $/kW | D117: 4.6629
B118: Low Voltage Service Rate | C118: $/kW | D118: 0.0802
A119: GS50_699_1576 | B119: Rate Rider for Disposition of Global Adjustment Account (2018) - effective until April 30, 2019 Applicable only for Non-RPP Customers | C119: $/kWh | D119: -0.0005
B120: Rate Rider for Disposition of Deferral/Variance Accounts (2018) - effective until April 30, 2019 | C120: $/kW | D120: 0.1005
B121: Rate Rider for Disposition of Deferral/Variance Accounts (2018) - effective until April 30, 2019 Applicable only for Non-Wholesale Market Participants | C121: $/kW | D121: -0.3538
B122: Rate Rider for Disposition of Capacity Based Recovery Account (2018) - effective until April 30, 2019 Applicable Only for Non-WMP Class B Customers | C122: $/kW | D122: -0.01606
B123: Rate Rider for Disposition of Lost Revenue Adjustment Mechanism Variance Account (LRAMVA) (2018) - effective until April 30, 2019 | C123: $/kW | D123: 0.4585
A124: GS50_699_DVA16 | B124: Rate Rider for Recovery of Incremental Capital Module (2017) - in effect until the effective date of the next cost of service based rate order | C124: $/kW | D124: 0.1163
B125: Rate Rider for Recovery of ICM (2018) - in effect from May 1, 2018 until the effective date of the next cost of service based rate order | C125: $/kW | D125: 0.0308
A126: GS50_499_TN | B126: Retail Transmission Rate - Network Service Rate | C126: $/kW | D126: 2.7325
A127: GS50_499_TC | B127: Retail Transmission Rate - Line and Transformation Connection Service Rate | C127: $/kW | D127: 2.5347
B129: MONTHLY RATES AND CHARGES - Regulatory Component
B131: Wholesale Market Service Rate (WMS) - Not including CBR | C131: $/kWh | D131: 0.0032
B132: Capacity Based Recovery (CBR) - Applicable for Class B Customers | C132: $/kWh | D132: 0.0004
B133: Rural or Remote Electricity Rate Protection Charge (RRRP) | C133: $/kWh | D133: 0.0003
B134: Standard Supply Service - Administrative Charge (if applicable) | C134: $ | D134: 0.25
B135: GENERAL SERVICE 500 TO 4,999 KW SERVICE CLASSIFICATION
B137: This classification refers to a non-residential account whose monthly average peak demand is equal to or greater than, or is forecast to be equal to or greater than, 500 kW but less than 5,000 kW. Class A and Class B consumers are defined in accordance with O. Reg. 429/04. Further servicing details are available in the distributor’s Conditions of Service.
B139: APPLICATION
B141: The application of these rates and charges shall be in accordance with the Licence of the Distributor and any Code or Order of the Ontario Energy Board, and amendments thereto as approved by the Ontario Energy Board, which may be applicable to the administration of this schedule.
B143: No rates and charges for the distribution of electricity and charges to meet the costs of any work or service done or furnished for the purpose of the distribution of electricity shall be made except as permitted by this schedule, unless required by the Distributor’s Licence or a Code or Order of the Ontario Energy Board, and amendments thereto as approved by the Ontario Energy Board, or as specified herein.
B145: Unless specifically noted, this schedule does not contain any charges for the electricity commodity, be it under the Regulated Price Plan, a contract with a retailer or the wholesale market price, as applicable. In addition, the charges in the MONTHLY RATES AND CHARGES - Regulatory Component of this schedule do not apply to a customer that is an embedded wholesale market participant.
A147: The rate rider for the disposition of WMS – Sub-account CBR Class B is not applicable to wholesale market participants (WMP), customers that transitioned between Class A and Class B during the variance account accumulation period, or to customers that were in Class A for the entire period. Customers who transitioned are to be charged or refunded their share of the variance disposed through customer specific billing adjustments. This rate rider is to be consistently applied for the entire period to the sunset date of the rate rider. In addition, this rate rider is applicable to all new Class B customers.
A149: The rate rider for the disposition of Global Adjustment is only applicable to non-RPP Class B customers. It is not applicable to WMP customers that transitioned between Class A and Class B during the variance account accumulation period, or to customers that were in Class A for the entire period. Customers who transitioned are to be charged or refunded their share of the variance disposed through customer specific billing adjustments. This rate order is applicable to all new non-RPP Class B customers.
B151: It should be noted that this schedule does not list any charges, assessments, or credits that are required by law to be invoiced by a distributor and that are not subject to Ontario Energy Board approval, such as the Debt Retirement Charge, the Global Adjustment and the HST.
B153: Billing demands are established at the greater of 100% of the kW, or 90% of the kVA amounts.
B155: MONTHLY RATES AND CHARGES - Delivery Component
A157: GS500_F | B157: Service Charge | C157: $ | D157: 1764.42
A158: GS700_LRVA16 | B158: Rate Rider for Recovery of Incremental Capital Module (2017) - in effect until the effective date of the next cost of service based rate order | C158: $ | D158: 44
B159: Rate Rider for Recovery of ICM (2018) - in effect from May 1, 2018 until the effective date of the next cost of service based rate order | C159: $ | D159: 11.65
B160: Rate Rider for Recovery of 2018 Foregone Revenue - effective until December 31, 2018 | C160: $ | D160: 16.18
A161: GS500_V | B161: Distribution Volumetric Rate | C161: $/kW | D161: 2.3994
B162: Low Voltage Service Rate | C162: $/kW | D162: 0.0784
A163: GS700_CBR16_A | B163: Rate Rider for Disposition of Global Adjustment Account (2018) - effective until April 30, 2019 Applicable only for Non-RPP Customers | C163: $/kWh | D163: -0.0005
B164: Rate Rider for Disposition of Deferral/Variance Accounts (2018) - effective until April 30, 2019 | C164: $/kW | D164: 0.1272
B165: Rate Rider for Disposition of Deferral/Variance Accounts (2018) - effective until April 30, 2019 Applicable only for Non-Wholesale Market Participants | C165: $/kW | D165: -0.4465
B166: Rate Rider for Disposition of Capacity Based Recovery Account (2018) - effective until April 30, 2019 Applicable Only for Non-WMP Class B Customers | C166: $/kW | D166: -0.01999
B167: Rate Rider for Disposition of Lost Revenue Adjustment Mechanism Variance Account (LRAMVA) (2018) - effective until April 30, 2019 | C167: $/kW | D167: 0.141
A168: GS700_CBR16 | B168: Rate Rider for Recovery of Incremental Capital Module (2017) - in effect until the effective date of the next cost of service based rate order | C168: $/kW | D168: 0.0598
B169: Rate Rider for Recovery of ICM (2018) - in effect from May 1, 2018 until the effective date of the next cost of service based rate order | C169: $/kW | D169: 0.0158
A170: GS500_TN | B170: Retail Transmission Rate - Network Service Rate | C170: $/kW | D170: 2.6436
A171: GS500_TC | B171: Retail Transmission Rate - Line and Transformation Connection Service Rate | C171: $/kW | D171: 2.4803
B173: MONTHLY RATES AND CHARGES - Regulatory Component
B175: Wholesale Market Service Rate (WMS) - Not including CBR | C175: $/kWh | D175: 0.0032
B176: Capacity Based Recovery (CBR) - Applicable for Class B Customers | C176: $/kWh | D176: 0.0004
B177: Rural or Remote Electricity Rate Protection Charge (RRRP) | C177: $/kWh | D177: 0.0003
B178: Standard Supply Service - Administrative Charge (if applicable) | C178: $ | D178: 0.25
B179: LARGE USE SERVICE CLASSIFICATION
B181: This classification refers to an account whose monthly average peak demand is equal to or greater than, or is forecast to be equal to or greater than, 5,000 kW. Class A and Class B consumers are defined in accordance with O. Reg. 429/04. Further servicing details are available in the distributor’s Conditions of Service.
B183: APPLICATION
B185: The application of these rates and charges shall be in accordance with the Licence of the Distributor and any Code or Order of the Ontario Energy Board, and amendments thereto as approved by the Ontario Energy Board, which may be applicable to the administration of this schedule.
B187: No rates and charges for the distribution of electricity and charges to meet the costs of any work or service done or furnished for the purpose of the distribution of electricity shall be made except as permitted by this schedule, unless required by the Distributor’s Licence or a Code or Order of the Ontario Energy Board, and amendments thereto as approved by the Ontario Energy Board, or as specified herein.
B189: Unless specifically noted, this schedule does not contain any charges for the electricity commodity, be it under the Regulated Price Plan, a contract with a retailer or the wholesale market price, as applicable. In addition, the charges in the MONTHLY RATES AND CHARGES - Regulatory Component of this schedule do not apply to a customer that is an embedded wholesale market participant.
B191: It should be noted that this schedule does not list any charges, assessments, or credits that are required by law to be invoiced by a distributor and that are not subject to Ontario Energy Board approval, such as the Debt Retirement Charge, the Global Adjustment and the HST.
B193: Billing demands are established at the greater of 100% of the kW, or 90% of the kVA amounts.
B195: MONTHLY RATES AND CHARGES - Delivery Component
A197: LU_F | B197: Service Charge | C197: $ | D197: 13911.73
A198: LU_DVA16 | B198: Rate Rider for Recovery of Incremental Capital Module (2017) - in effect until the effective date of the next cost of service based rate order | C198: $ | D198: 346.9
B199: Rate Rider for Recovery of ICM (2018) - in effect from May 1, 2018 until the effective date of the next cost of service based rate order | C199: $ | D199: 91.89
B200: Rate Rider for Recovery of 2018 Foregone Revenue - effective until December 31, 2018 | C200: $ | D200: 264.39
A201: LU_V | B201: Distribution Volumetric Rate | C201: $/kW | D201: 2.9782
B202: Low Voltage Service Rate | C202: $/kW | D202: 0.0838
B203: Rate Rider for Disposition of Deferral/Variance Accounts (2018) - effective until April 30, 2019 | C203: $/kW | D203: -0.4054
B204: Rate Rider for Disposition of Lost Revenue Adjustment Mechanism Variance Account (LRAMVA) (2018) - effective until April 30, 2019 | C204: $/kW | D204: 0.088
B205: Rate Rider for Recovery of Incremental Capital Module (2017) - in effect until the effective date of the next cost of service based rate order | C205: $/kW | D205: 0.0743
B206: Rate Rider for Recovery of ICM (2018) - in effect from May 1, 2018 until the effective date of the next cost of service based rate order | C206: $/kW | D206: 0.0197
A207: LU_TN | B207: Retail Transmission Rate - Network Service Rate – Interval Metered | C207: $/kW | D207: 2.8211
A208: LU_TC | B208: Retail Transmission Rate - Line and Transformation Connection Service Rate – Interval Metered | C208: $/kW | D208: 2.6491
B210: MONTHLY RATES AND CHARGES - Regulatory Component
B212: Wholesale Market Service Rate (WMS) - Not including CBR | C212: $/kWh | D212: 0.0032
B213: Capacity Based Recovery (CBR) - Applicable for Class B Customers | C213: $/kWh | D213: 0.0004
B214: Rural or Remote Electricity Rate Protection Charge (RRRP) | C214: $/kWh | D214: 0.0003
B215: Standard Supply Service - Administrative Charge (if applicable) | C215: $ | D215: 0.25
B216: UNMETERED SCATTERED LOAD SERVICE CLASSIFICATION
B218: This classification applies to an account taking electricity at 750 volts or less whose average monthly maximum demand is less than, or is forecast to be less than, 50 kW and the consumption is unmetered. The amount of electricity consumed by unmetered connections will be based on detailed information/documentation provided by the device's manufacturer abd will be agreed to by Alectra Utilities and the customer and may be subject to periodic monitoring of actual consumption. Eligible onmetered loads include cable TV power packs, bus shelters, telephone booths, traffic lights, railway crossings, etc. Class B consumers are defined in accordance with O. Reg. 429/04. Further servicing details are available in the distributor’s Conditions of Service.
B220: APPLICATION
B222: The application of these rates and charges shall be in accordance with the Licence of the Distributor and any Code or Order of the Ontario Energy Board, and amendments thereto as approved by the Ontario Energy Board, which may be applicable to the administration of this schedule.
B224: No rates and charges for the distribution of electricity and charges to meet the costs of any work or service done or furnished for the purpose of the distribution of electricity shall be made except as permitted by this schedule, unless required by the Distributor’s Licence or a Code or Order of the Ontario Energy Board, and amendments thereto as approved by the Ontario Energy Board, or as specified herein.
B226: Unless specifically noted, this schedule does not contain any charges for the electricity commodity, be it under the Regulated Price Plan, a contract with a retailer or the wholesale market price, as applicable. In addition, the charges in the MONTHLY RATES AND CHARGES - Regulatory Component of this schedule do not apply to a customer that is an embedded wholesale market participant.
B228: It should be noted that this schedule does not list any charges, assessments, or credits that are required by law to be invoiced by a distributor and that are not subject to Ontario Energy Board approval, such as the Debt Retirement Charge, the Global Adjustment and the HST.
B230: MONTHLY RATES AND CHARGES - Delivery Component
A232: USL_F | B232: Service Charge (per connection) | C232: $ | D232: 9.08
B233: Rate Rider for Recovery of Incremental Capital Module (2017) - in effect until the effective date of the next cost of service based rate order | C233: $ | D233: 0.23
B234: Rate Rider for Recovery of ICM (2018) - in effect from May 1, 2018 until the effective date of the next cost of service based rate order | C234: $ | D234: 0.06
B235: Rate Rider for Recovery of 2018 Foregone Revenue - effective until December 31, 2018 | C235: $ | D235: 0.05
A236: USL_V | B236: Distribution Volumetric Rate | C236: $/kWh | D236: 0.0165
B237: Low Voltage Service Rate | C237: $/kWh | D237: 0.0002
B238: Rate Rider for Disposition of Global Adjustment Account (2018) - effective until April 30, 2019 Applicable only for Non-RPP Customers | C238: $/kWh | D238: -0.0005
A239: USL_CBR16 | B239: Rate Rider for Disposition of Deferral/Variance Accounts (2018) - effective until April 30, 2019 | C239: $/kWh | D239: -0.0007
B240: Rate Rider for Disposition of Capacity Based Recovery Account (2018) - effective until April 30, 2019 Applicable Only for Class B Customers | C240: $/kWh | D240: -5e-05
A241: USL_DVA16 | B241: Rate Rider for Recovery of Incremental Capital Module (2017) - in effect until the effective date of the next cost of service based rate order | C241: $/kWh | D241: 0.0004
B242: Rate Rider for Recovery of ICM (2018) - in effect from May 1, 2018 until the effective date of the next cost of service based rate order | C242: $/kWh | D242: 0.0001
A243: USL_TN | B243: Retail Transmission Rate - Network Service Rate | C243: $/kWh | D243: 0.0071
A244: USL_TC | B244: Retail Transmission Rate - Line and Transformation Connection Service Rate | C244: $/kWh | D244: 0.0064
B246: MONTHLY RATES AND CHARGES - Regulatory Component
B248: Wholesale Market Service Rate (WMS) - Not including CBR | C248: $/kWh | D248: 0.0032
B249: Capacity Based Recovery (CBR) - Applicable for Class B Customers | C249: $/kWh | D249: 0.0004
B250: Rural or Remote Electricity Rate Protection Charge (RRRP) | C250: $/kWh | D250: 0.0003
B251: Standard Supply Service - Administrative Charge (if applicable) | C251: $ | D251: 0.25
B252: STREET LIGHTING SERVICE CLASSIFICATION
B254: This classification refers to an account for roadway lighting. Street Lighting is unmetered where energy consumption is estimated based on the connected wattage and calculated hours of use using methods established by the Ontario Energy Board. Class B consumers are defined in accordance with O. Reg. 429/04. Further servicing details are available in the distributor’s Conditions of Service.
B256: APPLICATION
B258: The application of these rates and charges shall be in accordance with the Licence of the Distributor and any Code or Order of the Ontario Energy Board, and amendments thereto as approved by the Ontario Energy Board, which may be applicable to the administration of this schedule.
B260: No rates and charges for the distribution of electricity and charges to meet the costs of any work or service done or furnished for the purpose of the distribution of electricity shall be made except as permitted by this schedule, unless required by the Distributor’s Licence or a Code or Order of the Ontario Energy Board, and amendments thereto as approved by the Ontario Energy Board, or as specified herein.
B262: Unless specifically noted, this schedule does not contain any charges for the electricity commodity, be it under the Regulated Price Plan, a contract with a retailer or the wholesale market price, as applicable. In addition, the charges in the MONTHLY RATES AND CHARGES - Regulatory Component of this schedule do not apply to a customer that is an embedded wholesale market participant.
B264: It should be noted that this schedule does not list any charges, assessments, or credits that are required by law to be invoiced by a distributor and that are not subject to Ontario Energy Board approval, such as the Debt Retirement Charge, the Global Adjustment and the HST.
B266: MONTHLY RATES AND CHARGES - Delivery Component
A268: SL_F | B268: Service Charge (per luminaire) | C268: $ | D268: 1.52
A269: SL_GA16 | B269: Rate Rider for Recovery of Incremental Capital Module (2017) - in effect until the effective date of the next cost of service based rate order | C269: $ | D269: 0.04
B270: Rate Rider for Recovery of ICM (2018) - in effect from May 1, 2018 until the effective date of the next cost of service based rate order | C270: $ | D270: 0.01
B271: Rate Rider for Recovery of 2018 Foregone Revenue - effective until December 31, 2018 | C271: $ | D271: 0.01
A272: SL_V | B272: Distribution Volumetric Rate | C272: $/kW | D272: 11.6504
B273: Low Voltage Service Rate | C273: $/kW | D273: 0.058
B274: Rate Rider for Disposition of Global Adjustment Account (2018) - effective until April 30, 2019 Applicable only for Non-RPP Customers | C274: $/kWh | D274: -0.0005
B275: Rate Rider for Disposition of Deferral/Variance Accounts (2018) - effective until April 30, 2019 | C275: $/kW | D275: -0.2616
B276: Rate Rider for Disposition of Capacity Based Recovery Account (2018) - effective until April 30, 2019 Applicable Only for Non-WMP Class B Customers | C276: $/kW | D276: -0.01655
B277: Rate Rider for Disposition of Lost Revenue Adjustment Mechanism Variance Account (LRAMVA) (2018) - effective until April 30, 2019 | C277: $/kW | D277: -33.3532
A278: SL_1576 | B278: Rate Rider for Recovery of Incremental Capital Module (2017) - in effect until the effective date of the next cost of service based rate order | C278: $/kW | D278: 0.2905
B279: Rate Rider for Recovery of ICM (2018) - in effect from May 1, 2018 until the effective date of the next cost of service based rate order | C279: $/kW | D279: 0.077
A280: SL_TN | B280: Retail Transmission Rate - Network Service Rate | C280: $/kW | D280: 1.8924
A281: SL_TC | B281: Retail Transmission Rate - Line and Transformation Connection Service Rate | C281: $/kW | D281: 1.8329
B283: MONTHLY RATES AND CHARGES - Regulatory Component
B285: Wholesale Market Service Rate (WMS) - Not including CBR | C285: $/kWh | D285: 0.0032
... 78 more rows

Sheet 3. Continuity Schedule
A1: Back to Index | B1: Back to Index | CU1: FALSE
C2: =+'1. Information Sheet'!B2 -> INCENTIVE REGULATION MODEL FOR 2019 FILERS | CU2: FALSE
CU3: FALSE
CU4: FALSE
CU5: FALSE
CU6: FALSE
CU7: FALSE
CU8: FALSE
CU9: FALSE
CU10: TRUE
CU11: TRUE
C12: Please complete the following continuity schedule for the following Deferral/Variance Accounts. Enter information into green cells only. Column CE shoudl match the latest 2.1.7 RRR filing. When inputting balances in the continuity schedule, Account 1580 RSVA - Wholesale Market Service Charge is to exclude any amounts relating to CBR. The CBR amounts are to be entered separately in the Class A and Class B 1580 sub-accounts. Only Class B amounts are to be disposed. Class A amounts are not to be disposed. If you have received approval to dispose of balances from prior years, the starting point for entries in the schedule below will be the balance sheet date as per your general ledger for which you received approval. For example, if in the 2016 EDR process (CoS or IRM) you received approval for the December 31, 2014 balances, the starting point for your entries below should be the 2013 year. This will allow for the correct starting point for the 2014 opening balance columns for both principal and interest. Please refer to the footnotes for further instructions.
E16: 2010 | O16: 2011 | Y16: 2012 | AI16: 2013 | AS16: 2014 | BC16: 2015 | BM16: 2016 | BW16: 2017 | CG16: 2018 | CK16: Projected Interest on Dec-31-17 Balances | CO16: 2.1.7 RRR
C17: Account Descriptions | D17: Account Number | E17: Opening Principal Amounts as of Jan 1, 2010 | F17: Transactions2 Debit / (Credit) during 2010 | G17: OEB-Approved Disposition during 2010 | H17: Principal Adjustments1 during 2010 | I17: Closing Principal Balance as of Dec 31, 2010 | J17: Opening Interest Amounts as of Jan 1, 2010 | K17: Interest Jan 1 to Dec 31, 2010 | L17: OEB-Approved Disposition during 2010 | M17: Interest Adjustments1 during 2010 | N17: Closing Interest Amounts as of Dec 31, 2010 | O17: Opening Principal Amounts as of Jan 1, 2011 | P17: Transactions2 Debit / (Credit) during 2011 | Q17: OEB-Approved Disposition during 2011 | R17: Principal Adjustments1 during 2011 | S17: Closing Principal Balance as of Dec 31, 2011 | T17: Opening Interest Amounts as of Jan 1, 2011 | U17: Interest Jan 1 to Dec 31, 2011 | V17: OEB-Approved Disposition during 2011 | W17: Interest Adjustments1 during 2011 | X17: Closing Interest Amounts as of Dec 31, 2011 | Y17: Opening Principal Amounts as of Jan 1, 2012 | Z17: Transactions2 Debit / (Credit) during 2012 | AA17: OEB-Approved Disposition during 2012 | AB17: Principal Adjustments1 during 2012 | AC17: Closing Principal Balance as of Dec 31, 2012 | AD17: Opening Interest Amounts as of Jan 1, 2012 | AE17: Interest Jan 1 to Dec 31, 2012 | AF17: OEB-Approved Disposition during 2012 | AG17: Interest Adjustments1 during 2012 | AH17: Closing Interest Amounts as of Dec 31, 2012 | AI17: Opening Principal Amounts as of Jan 1, 2013 | AJ17: Transactions2 Debit / (Credit) during 2013 | AK17: OEB-Approved Disposition during 2013 | AL17: Principal Adjustments1 during 2013 | AM17: Closing Principal Balance as of Dec 31, 2013 | AN17: Opening Interest Amounts as of Jan 1, 2013 | AO17: Interest Jan 1 to Dec 31, 2013 | AP17: OEB-Approved Disposition during 2013 | AQ17: Interest Adjustments1 during 2013 | AR17: Closing Interest Amounts as of Dec 31, 2013 | AS17: Opening Principal Amounts as of Jan 1, 2014 | AT17: Transactions2 Debit / (Credit) during 2014 | AU17: OEB-Approved Disposition during 2014 | AV17: Principal Adjustments1 during 2014 | AW17: Closing Principal Balance as of Dec 31, 2014 | AX17: Opening Interest Amounts as of Jan 1, 2014 | AY17: Interest Jan 1 to Dec 31. 2014 | AZ17: OEB-Approved Disposition during 2014 | BA17: Interest Adjustments1 during 2014 | BB17: Closing Interest Amounts as of Dec 31, 2014 | BC17: Opening Principal Amounts as of Jan 1, 2015 | BD17: Transactions2 Debit / (Credit) during 2015 | BE17: OEB-Approved Disposition during 2015 | BF17: Principal Adjustments1 during 2015 | BG17: Closing Principal Balance as of Dec 31, 15 | BH17: Opening Interest Amounts as of Jan 1, 15 | BI17: Interest Jan 1 to Dec 31, 15 | BJ17: OEB-Approved Disposition during 2015 | BK17: Interest Adjustments1 during 2015 | BL17: Closing Interest Amounts as of Dec 31, 15 | BM17: Opening Principal Amounts as of Jan 1, 2016 | BN17: Transactions2 Debit / (Credit) during 2016 | BO17: OEB-Approved Disposition during 2016 | BP17: Principal Adjustments1 during 2016 | BQ17: Closing Principal Balance as of Dec 31, 16 | BR17: Opening Interest Amounts as of Jan 1, 16 | BS17: Interest Jan 1 to Dec 31, 16 | BT17: OEB-Approved Disposition during 2016 | BU17: Interest Adjustments1 during 2016 | BV17: Closing Interest Amounts as of Dec 31, 16 | BW17: Opening Principal Amounts as of Jan 1, 2017 | BX17: Transactions2 Debit / (Credit) during 2017 | BY17: OEB-Approved Disposition during 2017 | BZ17: Principal Adjustments1 during 2017 | CA17: Closing Principal Balance as of Dec 31, 2017 | CB17: Opening Interest Amounts as of Jan 1, 2017 | CC17: Interest Jan 1 to Dec 31, 2017 | CD17: OEB-Approved Disposition during 2017 | CE17: Interest Adjustments1 during 2017 | CF17: Closing Interest Amounts as of Dec 31, 2017 | CG17: Principal Disposition during 2018 - instructed by OEB | CH17: Interest Disposition during 2018 - instructed by OEB | CI17: Closing Principal Balances as of Dec 31, 2017 Adjusted for Dispositions during 2018 | CJ17: Closing Interest Balances as of Dec 31, 2017 Adjusted for Disposition in 2018 | CK17: Projected Interest from January 1, 2018 to December 31, 2018 on December 31, 2017 balance adjusted for disposition during 2019 3 | CL17: Projected Interest from January 1, 2018 to April 30, 2018 on Dec 31 -16 balance adjusted for disposition during 2017 3 | CM17: Total Interest | CN17: Total Claim | CO17: As of Dec 31-17 | CP17: Variance RRR vs. 2017 Balance (Principal + Interest)
CN19: Claim before Forecasted Transactions
C20: Group 1 Accounts
C21: LV Variance Account | D21: 1550 | I21: =E21+F21-G21+H21 -> 0 | N21: =J21+K21-L21+M21 -> 0 | O21: =I21 -> 0 | S21: =O21+P21-Q21+SUM(R21:R21) -> 0 | T21: =N21 -> 0 | X21: =T21+U21-V21+W21 -> 0 | AS21: 2495672.18 | AT21: 938909.09 | AU21: 1690690.02 | AW21: =AS21+AT21-AU21+SUM(AV21:AV21) -> 1743891.25 | AX21: 51131.9 | AY21: 20669.6 | AZ21: 41280.14 | BB21: =AX21+AY21-AZ21+BA21 -> 30521.36 | BC21: =AW21 -> 1743891.25 | BD21: 1545686.91 | BG21: =BC21+BD21-BE21+SUM(BF21:BF21) -> 3289578.16 | BH21: =BB21 -> 30521.36 | BI21: 26398.21 | BL21: =BH21+BI21-BJ21+BK21 -> 56919.57 | BM21: =BG21 -> 3289578.16 | BN21: 2290281.55 | BO21: 1743890.16 | BQ21: =BM21+BN21-BO21+SUM(BP21:BP21) -> 3835969.55 | BR21: =BL21 -> 56919.57 | BS21: 33128.83 | BT21: 49705.77 | BV21: =BR21+BS21-BT21+BU21 -> 40342.63 | BW21: =BQ21 -> 3835969.55 | BX21: 2379788.37 | BY21: 1545688 | CA21: =BW21+BX21-BY21+SUM(BZ21:BZ21) -> 4670069.92 | CB21: =BV21 -> 40342.63 | CC21: 42417.74 | CD21: 24215.26 | CF21: =CB21+CC21-CD21+CE21 -> 58545.11 | CG21: 2290281.55 | CH21: 55806.49785 | CI21: =CA21-CG21 -> 2379788.37 | CJ21: =CF21-CH21 -> 2738.612146 | CK21: =(CI21)*((1.5%*25%)+(1.89%*75%)) -> 42657.70653 | CM21: =CJ21+CK21+CL21 -> 45396.31868 | CN21: =SUM(CI21:CL21) -> 2425184.689 | CO21: 4728615.03 | CP21: =CO21-SUM(CA21,CF21) -> 0
C22: Smart Metering Entity Charge Variance Account | D22: 1551 | I22: =E22+F22-G22+H22 -> 0 | N22: =J22+K22-L22+M22 -> 0 | O22: =I22 -> 0 | S22: 0 | T22: 0 | X22: =T22+U22-V22+W22 -> 0 | AS22: -36015.11 | AT22: -33601.45 | AW22: -69616.56 | AX22: -147.98 | AY22: -667.98 | AZ22: 0 | BB22: =AX22+AY22-AZ22+BA22 -> -815.96 | BC22: -69616.56 | BD22: -26931.2 | BG22: -96547.76 | BH22: -815.96 | BI22: -903.34 | BL22: =BH22+BI22-BJ22+BK22 -> -1719.3 | BM22: =BG22 -> -96547.76 | BN22: -33443.76 | BO22: -69616.56 | BQ22: =BM22+BN22-BO22+SUM(BP22:BP22) -> -60374.96 | BR22: -1719.3 | BS22: -621.31 | BT22: -1581.74 | BV22: =BR22+BS22-BT22+BU22 -> -758.87 | BW22: =BQ22 -> -60374.96 | BX22: -26812.58 | BY22: -26931.2 | CA22: =BW22+BX22-BY22+SUM(BZ22:BZ22) -> -60256.34 | CB22: -758.87 | CC22: -511.38 | CD22: -433.8 | CF22: =CB22+CC22-CD22+CE22 -> -836.45 | CG22: -33443.76 | CH22: -904.483142 | CI22: =CA22-CG22 -> -26812.58 | CJ22: =CF22-CH22 -> 68.033142 | CK22: =(CI22)*((1.5%*25%)+(1.89%*75%)) -> -480.6154965 | CM22: =CJ22+CK22+CL22 -> -412.5823545 | CN22: =SUM(CI22:CL22) -> -27225.16235 | CO22: -61092.79 | CP22: =CO22-SUM(CA22,CF22) -> 0
C23: RSVA - Wholesale Market Service Charge | D23: 1580 | I23: =E23+F23-G23+H23 -> 0 | N23: =J23+K23-L23+M23 -> 0 | O23: =I23 -> 0 | S23: 0 | T23: 0 | X23: =T23+U23-V23+W23 -> 0 | AS23: -14447498.53 | AT23: -1098113.85 | AU23: -9704806 | AW23: -5840806.38 | AX23: -303050.24 | AY23: -35370.7 | AZ23: -236108.65 | BB23: =AX23+AY23-AZ23+BA23 -> -102312.29 | BC23: -5840806.38 | BD23: -15911140.41 | BG23: -21751946.79 | BH23: -102312.29 | BI23: -126678.56 | BL23: =BH23+BI23-BJ23+BK23 -> -228990.85 | BM23: -21751946.79 | BN23: -6868014.85 | BO23: -5840806.06 | BQ23: =BM23+BN23-BO23+SUM(BP23:BP23) -> -22779155.58 | BR23: -228990.85 | BS23: -231088.58 | BT23: -166561.27 | BV23: =BR23+BS23-BT23+BU23 -> -293518.16 | BW23: -22779155.58 | BX23: -7283688.93 | BY23: -15911140.41 | CA23: =BW23+BX23-BY23+SUM(BZ23:BZ23) -> -14151704.1 | CB23: -293518.16 | CC23: -131490.3 | CD23: -237452.12 | CF23: =CB23+CC23-CD23+CE23 -> -187556.34 | CG23: -6868015.17 | CH23: -175054.4028 | CI23: -7283688.93 | CJ23: -12501.93718 | CK23: -130560.1241 | CM23: -143062.0612 | CN23: =SUM(CI23:CL23) -> -7426750.991 | CO23: -14339260.23 | CP23: 0.2100000028
C24: Variance WMS – Sub-account CBR Class A | D24: 1580 | I24: 0 | N24: 0 | O24: 0 | S24: 0 | T24: 0 | X24: 0 | AS24: 0 | AW24: 0 | AX24: 0 | BB24: 0 | BC24: 0 | BD24: 163061.35 | BG24: =BC24+BD24-BE24+SUM(BF24:BF24) -> 163061.35 | BH24: 0 | BI24: 520.61 | BL24: 520.61 | BM24: 163061.35 | BN24: -163061.35 | BQ24: =BM24+BN24-BO24+SUM(BP24:BP24) -> 0 | BR24: 520.61 | BS24: -520.61 | BV24: 0 | BW24: 0 | CA24: =BW24+BX24-BY24+SUM(BZ24:BZ24) -> 0 | CB24: 0 | CF24: 0 | CG24: 0 | CH24: 0 | CI24: 0 | CJ24: 0 | CK24: 0 | CM24: 0 | CN24: 0 | CO24: 0 | CP24: 0
C25: Variance WMS – Sub-account CBR Class B | D25: 1580 | I25: 0 | N25: 0 | O25: 0 | S25: 0 | T25: 0 | X25: 0 | AS25: 0 | AW25: 0 | AX25: 0 | BB25: 0 | BC25: 0 | BD25: 1719663.73 | BG25: 1719663.73 | BH25: 0 | BI25: 5728.32 | BL25: 5728.32 | BM25: 1719663.73 | BN25: -275214.3 | BQ25: =BM25+BN25-BO25+SUM(BP25:BP25) -> 1444449.43 | BR25: 5728.32 | BS25: 16472.1 | BV25: 22200.42 | BW25: 1444449.43 | BX25: 35171.08 | BY25: 1719663.73 | CA25: =BW25+BX25-BY25+SUM(BZ25:BZ25) -> -240043.22 | CB25: 22200.42 | CC25: -2176.9 | CD25: 24644.62 | CF25: -4621.1 | CG25: -275214.3 | CH25: -7212.287748 | CI25: 35171.08 | CJ25: 2591.187747 | CK25: 630.441609 | CM25: 3221.629357 | CN25: 38392.70936 | CO25: -244664.32 | CP25: 0
C26: RSVA - Retail Transmission Network Charge | D26: 1584 | I26: 0 | N26: 0 | O26: 0 | S26: 0 | T26: 0 | X26: 0 | AS26: 5108991.56 | AT26: 2422342.59 | AU26: 1692260 | AW26: 5839074.15 | AX26: 48925.1 | AY26: 71423.27 | AZ26: 27552.22 | BB26: 92796.15 | BC26: 5839074.15 | BD26: -1557809.05 | BG26: 4281265.1 | BH26: 92796.15 | BI26: 61504.02 | BL26: 154300.17 | BM26: 4281265.1 | BN26: -568200.56 | BO26: 5839073.98 | BQ26: -2126009.44 | BR26: 154300.17 | BS26: -7166.82 | BT26: 157025.1 | BV26: -9891.75 | BW26: -2126009.44 | BX26: 1964322.94 | BY26: -1557808.05 | CA26: 1396121.55 | CB26: -9891.75 | CC26: -4203.16 | CD26: -19861.83 | CF26: 5766.92 | CG26: -568201.39 | CH26: 125.9894682 | CI26: 1964322.94 | CJ26: 5640.930532 | CK26: 35210.4887 | CM26: 40851.41923 | CN26: 2005174.359 | CO26: 1401888.43 | CP26: -0.03999999934
C27: RSVA - Retail Transmission Connection Charge | D27: 1586 | I27: 0 | N27: 0 | O27: 0 | S27: 0 | T27: 0 | X27: 0 | AS27: 1710896.75 | AT27: 2297463.04 | AU27: 1028939 | AW27: 2979420.79 | AX27: 14045.73 | AY27: 28329.71 | AZ27: 10695.4 | BB27: 31680.04 | BC27: 2979420.79 | BD27: 593534.94 | BG27: 3572955.73 | BH27: 31680.04 | BI27: 38091.94 | BL27: 69771.98 | BM27: 3572955.73 | BN27: 333841.02 | BO27: 2979420.24 | BQ27: 927376.51 | BR27: 69771.98 | BS27: 15523.13 | BT27: 64454.46 | BV27: 20840.65 | BW27: 927376.51 | BX27: 48373.09 | BY27: 593534.94 | CA27: 382214.66 | CB27: 20840.65 | CC27: 9516.96 | CD27: 11846.41 | CF27: 18511.2 | CG27: 333841.57 | CH27: 14778.04086 | CI27: 48373.09 | CJ27: 3733.15914 | CK27: 867.0876382 | CM27: 4600.246778 | CN27: 52973.33678 | CO27: 400726.1 | CP27: 0.2400000002
C28: RSVA - Power | D28: 1588 | I28: 0 | N28: 0 | O28: 0 | S28: 0 | T28: 0 | X28: 0 | AS28: -1143566.33 | AT28: -490296.98 | AU28: 716650 | AW28: -2350513.31 | AX28: -36783.46 | AY28: 2506.51 | AZ28: -7074.25 | BB28: -27202.7 | BC28: -2350513.31 | BD28: 1362015.65 | BG28: -988497.66 | BH28: -27202.7 | BI28: -33475.46 | BL28: -60678.16 | BM28: -988497.66 | BN28: -2851171.44 | BO28: -2350512.34 | BP28: 2500544.264 | BQ28: 1011387.504 | BR28: -60678.16 | BS28: -6630.11 | BT28: -53059.35 | BV28: -14248.92 | BW28: 1011387.504 | BX28: 1318484.74 | BY28: 1362015.65 | BZ28: -998800.9639 | CA28: =BW28+BX28-BY28+BZ28 -> -30944.37 | CB28: -14248.92 | CC28: -23231.5 | CD28: 7363.36 | CF28: -44843.78 | CG28: -350628.1461 | CH28: -27686.91478 | CI28: 319683.7761 | CJ28: -17156.86522 | CK28: 5730.331686 | CM28: -11426.53353 | CN28: 308257.2425 | CO28: -1577531.48 | CP28: =CO28-SUM(CA28,CF28) -> -1501743.33
C29: RSVA - Global Adjustment | D29: 1589 | I29: 0 | N29: 0 | O29: 0 | S29: 0 | T29: 0 | X29: 0 | AS29: 389458.43 | AT29: 7999425.66 | AU29: -2771959 | AW29: 11160843.09 | AX29: -20702.9 | AY29: 59398.74 | AZ29: -101964.8 | BB29: 140660.64 | BC29: 11160843.09 | BD29: 4890995.04 | BG29: 16051838.13 | BH29: 140660.64 | BI29: 139600.71 | BL29: 280261.35 | BM29: 16051838.13 | BN29: -1033668.01 | BO29: 11160843.08 | BP29: =-2514038+157273+1530001 -> -826764 | BQ29: 3030563.04 | BR29: 280261.35 | BS29: 96150.64 | BT29: 263430.19 | BV29: 112981.8 | BW29: 3030563.04 | BX29: 2524883.15 | BY29: 4890994.04 | BZ29: 2871035.051 | CA29: =BW29+BX29-BY29+SUM(BZ29:BZ29) -> 3535487.201 | CB29: 112981.8 | CC29: 17845.33 | CD29: 70633.1 | CF29: 60194.03 | CG29: -1860431 | CH29: 10116.72848 | CI29: 5395918.201 | CJ29: 50077.30152 | CK29: 96721.83375 | CM29: 146799.1353 | CN29: 5542717.336 | CO29: 1551409.45 | CP29: -2044271.781
C30: Disposition and Recovery/Refund of Regulatory Balances (2009)4 | D30: 1595 | I30: 0 | N30: 0 | O30: 0 | S30: 0 | T30: 0 | X30: 0 | AS30: -2807103.74 | AU30: -2805249 | AV30: 1855 | AW30: 0.2599999998 | AX30: -192718.47 | AZ30: -192712 | BA30: 6 | BB30: -0.4700000001 | BC30: 0.2599999998 | BG30: 0.2599999998 | BH30: -0.4700000001 | BL30: -0.4700000001 | BM30: 0.2599999998 | BQ30: 0.2599999998 | BR30: -0.4700000001 | BV30: -0.4700000001 | BW30: 0.2599999998 | CA30: 0.2599999998 | CB30: -0.4700000001 | CF30: -0.4700000001 | CG30: 0 | CH30: -0.4654955001 | CI30: 0.2599999998 | CJ30: -0.004504499996 | CK30: 0.004660499996 | CM30: 0.0001559999999 | CN30: =IF(CD30=0,IF(SUM(CG30:CH30)=0,SUM(CI30:CL30),0),SUM(CI30:CL30)) -> 0 | CO30: 0 | CP30: 0.2100000003
C31: Disposition and Recovery/Refund of Regulatory Balances (2010)4 | D31: 1595 | I31: 0 | N31: 0 | O31: 0 | S31: 0 | T31: 0 | X31: 0 | AS31: -3681076.97 | AT31: 1560914.15 | AW31: -2120162.82 | AX31: -653022.51 | AY31: 3820.14 | BB31: -649202.37 | BC31: -2120162.82 | BD31: 961.36 | BG31: -2119201.46 | BH31: -649202.37 | BI31: -25253.91 | BL31: -674456.28 | BM31: -2119201.46 | BN31: -961.36 | BO31: -2120162.82 | BQ31: -2.793967724e-09 | BR31: -674456.28 | BS31: 1932.12 | BT31: -672524.16 | BV31: -1.164153218e-10 | BW31: -2.793967724e-09 | CA31: -2.793967724e-09 | CB31: -1.164153218e-10 | CF31: -1.164153218e-10 | CG31: 0 | CH31: -1.648208126e-10 | CI31: -2.793967724e-09 | CJ31: 4.840549082e-11 | CK31: -5.008187145e-11 | CM31: -1.676380634e-12 | CN31: 0 | CO31: 0 | CP31: 2.910383046e-09
C32: Disposition and Recovery/Refund of Regulatory Balances (2011)4 | D32: 1595 | I32: 0 | N32: 0 | O32: 0 | S32: =O32+P32-Q32+SUM(R32:R32) -> 0 | T32: 0 | X32: 0 | AS32: 2675 | AT32: 378.82 | AW32: 3053.82 | AX32: -5660 | AY32: 23.5 | BB32: -5636.5 | BC32: 3053.82 | BD32: 45.52 | BG32: 3099.34 | BH32: -5636.5 | BI32: 25.49 | BL32: -5611.01 | BM32: 3099.34 | BN32: -45.52 | BO32: 3053.63 | BQ32: 0.19 | BR32: -5611.01 | BS32: 8.6 | BT32: -5602.41 | BV32: 0 | BW32: 0.19 | CA32: 0.19 | CB32: 0 | CF32: 0 | CG32: -2.793967724e-09 | CH32: 0.00329175 | CI32: 0.1900000028 | CJ32: -0.00329175 | CK32: 0.00340575005 | CM32: 0.0001140000501 | CN32: 0 | CO32: 0 | CP32: -0.19
C33: Disposition and Recovery/Refund of Regulatory Balances (2012)4 | D33: 1595 | I33: 0 | N33: 0 | O33: 0 | S33: 0 | T33: 0 | X33: 0 | AS33: 0 | AT33: 9885176.98 | AU33: 10153475 | AW33: -268298.02 | AX33: 0 | AY33: 383549.67 | AZ33: 458332.08 | BB33: -74782.41 | BC33: -268298.02 | BD33: -5335.64 | BG33: -273633.66 | BH33: -74782.41 | BI33: -2969.19 | BL33: -77751.6 | BM33: -273633.66 | BN33: 5335.64 | BO33: -268298.02 | BQ33: 4.656612873e-10 | BR33: -77751.6 | BS33: 17.91 | BT33: -77733.69 | BV33: 2.910383046e-11 | BW33: 4.656612873e-10 | CA33: 4.656612873e-10 | CB33: 2.910383046e-11 | CF33: 2.910383046e-11 | CG33: 0.19 | CH33: 3.717141226e-11 | CI33: -0.1899999995 | CJ33: -8.067581803e-12 | CK33: -0.003405749992 | CM33: -0.00340575 | CN33: 0 | CO33: 0 | CP33: -4.947651178e-10
C34: Disposition and Recovery/Refund of Regulatory Balances (2013)4 | D34: 1595 | I34: 0 | N34: 0 | O34: 0 | S34: 0 | T34: 0 | X34: 0 | AS34: 0 | AW34: 0 | AX34: 0 | BB34: 0 | BC34: 0 | BG34: 0 | BH34: 0 | BL34: 0 | BM34: 0 | BQ34: 0 | BR34: 0 | BV34: 0 | BW34: 0 | CA34: 0 | CB34: 0 | CF34: 0 | CG34: 4.656612873e-10 | CH34: 0 | CI34: -4.656612873e-10 | CJ34: 0 | CK34: -8.346978575e-12 | CM34: -8.346978575e-12 | CN34: 0 | CO34: 0 | CP34: 0
C35: Disposition and Recovery/Refund of Regulatory Balances (2016)4 | D35: 1595 | I35: =E35+F35-G35+H35 -> 0 | N35: =J35+K35-L35+M35 -> 0 | O35: =I35 -> 0 | S35: =O35+P35-Q35+SUM(R35:R35) -> 0 | T35: =N35 -> 0 | X35: =T35+U35-V35+W35 -> 0 | AS35: 0 | AW35: =AS35+AT35-AU35+SUM(AV35:AV35) -> 0 | AX35: 0 | BB35: =AX35+AY35-AZ35+BA35 -> 0 | BC35: =AW35 -> 0 | BG35: =BC35+BD35-BE35+SUM(BF35:BF35) -> 0 | BH35: =BB35 -> 0 | BL35: =BH35+BI35-BJ35+BK35 -> 0 | BM35: =BG35 -> 0 | BN35: -11165511 | BO35: -11106926.08 | BQ35: =BM35+BN35-BO35+SUM(BP35:BP35) -> -58584.92 | BR35: =BL35 -> 0 | BS35: 494808.82 | BT35: 441505.89 | BV35: =BR35+BS35-BT35+BU35 -> 53302.93 | BW35: =BQ35 -> -58584.92 | BX35: -13770.65 | CA35: =BW35+BX35-BY35+SUM(BZ35:BZ35) -> -72355.57 | CB35: =BV35 -> 53302.93 | CC35: =-768.09+85.29 -> -682.8 | CF35: =CB35+CC35-CD35+CE35 -> 52620.13 | CG35: -58584.92 | CH35: 52287.94626 | CI35: =CA35-CG35 -> -13770.65 | CJ35: =CF35-CH35 -> 332.183739 | CK35: =(CI35)*((1.5%*25%)+(1.89%*75%)) -> -246.8389012 | CM35: =CJ35+CK35+CL35 -> 85.34483775 | CN35: 0 | CO35: -19735.44 | CP35: =CO35-SUM(CA35,CF35) -> -7.275957614e-11
C36: Disposition and Recovery/Refund of Regulatory Balances (2017)4 Not to be disposed of unless rate rider has expired and balance has been audited | D36: 1595 | I36: =E36+F36-G36+H36 -> 0 | N36: =J36+K36-L36+M36 -> 0 | O36: =I36 -> 0 | S36: =O36+P36-Q36+SUM(R36:R36) -> 0 | T36: =N36 -> 0 | X36: =T36+U36-V36+W36 -> 0 | AS36: 0 | AW36: =AS36+AT36-AU36+SUM(AV36:AV36) -> 0 | AX36: 0 | BB36: =AX36+AY36-AZ36+BA36 -> 0 | BC36: =AW36 -> 0 | BG36: =BC36+BD36-BE36+SUM(BF36:BF36) -> 0 | BH36: =BB36 -> 0 | BL36: =BH36+BI36-BJ36+BK36 -> 0 | BM36: =BG36 -> 0 | BQ36: =BM36+BN36-BO36+SUM(BP36:BP36) -> 0 | BR36: =BL36 -> 0 | BV36: =BR36+BS36-BT36+BU36 -> 0 | BW36: =BQ36 -> 0 | BX36: 7385427.31 | BY36: 7383983.3 | CA36: =BW36+BX36-BY36+SUM(BZ36:BZ36) -> 1444.01 | CB36: =BV36 -> 0 | CC36: =-39330.18+118856.39 -> 79526.21 | CD36: 119045 | CF36: =CB36+CC36-CD36+CE36 -> -39518.79 | CH36: 0 | CI36: =CA36-CG36 -> 1444.01 | CJ36: =CF36-CH36 -> -39518.79 | CK36: =(CI36)*((1.5%*25%)+(1.89%*75%)) -> 25.88387925 | CM36: =CJ36+CK36+CL36 -> -39492.90612 | CN36: 0 | CO36: -38074.78 | CP36: =CO36-SUM(CA36,CF36) -> 2.328306437e-10
C38: =C29 -> RSVA - Global Adjustment | D38: 1589 | E38: =E29 -> 0 | F38: 0 | G38: 0 | H38: 0 | I38: 0 | J38: 0 | K38: 0 | L38: 0 | M38: 0 | N38: 0 | O38: 0 | P38: 0 | Q38: 0 | R38: 0 | S38: 0 | T38: 0 | U38: 0 | V38: 0 | W38: 0 | X38: 0 | AS38: =AS29 -> 389458.43 | AT38: 7999425.66 | AU38: -2771959 | AV38: 0 | AW38: 11160843.09 | AX38: -20702.9 | AY38: 59398.74 | AZ38: -101964.8 | BA38: 0 | BB38: 140660.64 | BC38: 11160843.09 | BD38: 4890995.04 | BE38: 0 | BF38: 0 | BG38: 16051838.13 | BH38: 140660.64 | BI38: 139600.71 | BJ38: 0 | BK38: 0 | BL38: 280261.35 | BM38: 16051838.13 | BN38: -1033668.01 | BO38: 11160843.08 | BP38: -826764 | BQ38: 3030563.04 | BR38: 280261.35 | BS38: 96150.64 | BT38: 263430.19 | BU38: 0 | BV38: 112981.8 | BW38: 3030563.04 | BX38: 2524883.15 | BY38: =BY29 -> 4890994.04 | BZ38: 2871035.051 | CA38: 3535487.201 | CB38: 112981.8 | CC38: 17845.33 | CD38: 70633.1 | CE38: 0 | CF38: 60194.03 | CG38: -1860431 | CH38: 10116.72848 | CI38: 5395918.201 | CJ38: 50077.30152 | CK38: 96721.83375 | CL38: 0 | CM38: 146799.1353 | CN38: 5542717.336 | CO38: 1551409.45 | CP38: -2044271.781
C39: Total Group 1 Balance excluding Account 1589 - Global Adjustment | E39: =SUM(E21:E35)-E29 -> 0 | F39: 0 | G39: 0 | H39: 0 | I39: 0 | J39: 0 | K39: 0 | L39: 0 | M39: 0 | N39: 0 | O39: 0 | P39: 0 | Q39: 0 | R39: 0 | S39: 0 | T39: 0 | U39: 0 | V39: 0 | W39: 0 | X39: 0 | AS39: =SUM(AS21:AS36)-AS29 -> -12797025.19 | AT39: 15483172.39 | AU39: 2771959.02 | AV39: 1855 | AW39: -83956.82 | AX39: -1077279.93 | AY39: 474283.72 | AZ39: 101964.94 | BA39: 6 | BB39: -704955.15 | BC39: -83956.82 | BD39: -12116246.84 | BE39: 0 | BF39: 0 | BG39: -12200203.66 | BH39: -704955.15 | BI39: -57011.87 | BJ39: 0 | BK39: 0 | BL39: -761967.02 | BM39: -12200203.66 | BN39: -19296165.93 | BO39: -11190883.87 | BP39: 2500544.264 | BQ39: -17804941.46 | BR39: -761967.02 | BS39: 315864.08 | BT39: -264371.4 | BU39: 0 | BV39: -181731.54 | BW39: -17804941.46 | BX39: 5807295.37 | BY39: =SUM(BY21:BY36)-BY29 -> -4890994.04 | BZ39: -998800.9639 | CA39: -8105453.01 | CB39: -181731.54 | CC39: -30835.13 | CD39: -70633.1 | CE39: 0 | CF39: -141933.57 | CG39: -5529964.376 | CH39: -87860.07625 | CI39: -2575488.634 | CJ39: -54073.49375 | CK39: -46165.63376 | CL39: 0 | CM39: -100239.1275 | CN39: -2623993.817 | CO39: -9749129.48 | CP39: -1501742.9
C40: Total Group 1 Balance | E40: =SUM(E38,E39) -> 0 | F40: =SUM(F38,F39) -> 0 | G40: 0 | H40: 0 | I40: 0 | J40: 0 | K40: 0 | L40: 0 | M40: 0 | N40: 0 | O40: 0 | P40: =SUM(P38,P39) -> 0 | Q40: =SUM(Q38,Q39) -> 0 | R40: 0 | S40: 0 | T40: 0 | U40: 0 | V40: 0 | W40: 0 | X40: 0 | AS40: =SUM(AS38,AS39) -> -12407566.76 | AT40: 23482598.05 | AU40: 0.01999999955 | AV40: 1855 | AW40: 11076886.27 | AX40: -1097982.83 | AY40: 533682.46 | AZ40: 0.14 | BA40: 6 | BB40: -564294.51 | BC40: 11076886.27 | BD40: -7225251.8 | BE40: 0 | BF40: 0 | BG40: 3851634.47 | BH40: -564294.51 | BI40: 82588.84 | BJ40: 0 | BK40: 0 | BL40: -481705.67 | BM40: 3851634.47 | BN40: -20329833.94 | BO40: -30040.79 | BP40: 1673780.264 | BQ40: -14774378.42 | BR40: -481705.67 | BS40: 412014.72 | BT40: -941.21 | BU40: 0 | BV40: -68749.74 | BW40: =SUM(BW38,BW39) -> -14774378.42 | BX40: 8332178.52 | BY40: 0 | BZ40: 1872234.087 | CA40: -4569965.809 | CB40: -68749.74 | CC40: -12989.8 | CD40: 0 | CE40: 0 | CF40: -81739.54 | CG40: -7390395.376 | CH40: -77743.34777 | CI40: 2820429.567 | CJ40: -3996.192234 | CK40: 50556.19999 | CL40: 0 | CM40: 46560.00776 | CN40: =SUM(CN38,CN39) -> 2918723.519 | CO40: =SUM(CO38,CO39) -> -8197720.03 | CP40: -3546014.681
A42: 29 | C42: LRAM Variance Account (only input amounts if applying for disposition of this account) | D42: 1568 | S42: =O42+P42-Q42+SUM(R42:R42) -> 0 | X42: =T42+U42-V42+W42 -> 0 | AS42: 61418.66 | AT42: 12856.94 | AW42: =AS42+AT42-AU42+SUM(AV42:AV42) -> 74275.6 | AX42: 5868.05 | AY42: 688.53 | BB42: =AX42+AY42-AZ42+BA42 -> 6556.58 | BC42: =AW42 -> 74275.6 | BD42: =2209737.02 -> 2209737.02 | BG42: =BC42+BD42-BE42+SUM(BF42:BF42) -> 2284012.62 | BH42: =BB42 -> 6556.58 | BI42: =63436.96 -> 63436.96 | BL42: =BH42+BI42-BJ42+BK42 -> 69993.54 | BM42: =BG42 -> 2284012.62 | BN42: =1131354.02 -> 1131354.02 | BQ42: =BM42+BN42-BO42+SUM(BP42:BP42) -> 3415366.64 | BR42: =BL42 -> 69993.54 | BS42: =29554.8 -> 29554.8 | BV42: =BR42+BS42-BT42+BU42 -> 99548.34 | BW42: =BQ42 -> 3415366.64 | BX42: 2243433.86 | CA42: =BW42+BX42-BY42+SUM(BZ42:BZ42) -> 5658800.5 | CB42: =BV42 -> 99548.34 | CC42: 45357.11 | CF42: =CB42+CC42-CD42+CE42 -> 144905.45 | CG42: 3415366.64 | CH42: 158719.567 | CI42: =CA42-CG42 -> 2243433.86 | CJ42: =CF42-CH42 -> -13814.11704 | CK42: =(CI42)*((1.5%*25%)+(1.89%*75%)) -> 40213.55194 | CM42: =CJ42+CK42+CL42 -> 26399.4349 | CN42: =SUM(CI42:CL42) -> 2269833.295 | CO42: 5803705.95 | CP42: 0
C44: Total including Account 1568 | E44: =SUM(E40,E42) -> 0 | F44: =SUM(F40,F42) -> 0 | G44: 0 | H44: 0 | I44: 0 | J44: 0 | K44: 0 | L44: 0 | M44: 0 | N44: 0 | O44: 0 | P44: 0 | Q44: 0 | R44: 0 | S44: 0 | T44: 0 | U44: 0 | V44: 0 | W44: 0 | X44: 0 | AS44: =SUM(AS40,AS42) -> -12346148.1 | AT44: 23495454.99 | AU44: 0.01999999955 | AV44: 1855 | AW44: 11151161.87 | AX44: -1092114.78 | AY44: 534370.99 | AZ44: 0.14 | BA44: 6 | BB44: -557737.93 | BC44: 11151161.87 | BD44: -5015514.78 | BE44: 0 | BF44: 0 | BG44: 6135647.09 | BH44: -557737.93 | BI44: 146025.8 | BJ44: 0 | BK44: 0 | BL44: -411712.13 | BM44: 6135647.09 | BN44: -19198479.92 | BO44: -30040.79 | BP44: 1673780.264 | BQ44: -11359011.78 | BR44: -411712.13 | BS44: 441569.52 | BT44: -941.21 | BU44: 0 | BV44: 30798.6 | BW44: =SUM(BW40,BW42) -> -11359011.78 | BX44: 10575612.38 | BY44: 0 | BZ44: 1872234.087 | CA44: 1088834.691 | CB44: 30798.6 | CC44: 32367.31 | CD44: 0 | CE44: 0 | CF44: 63165.91 | CG44: -3975028.736 | CH44: 80976.21927 | CI44: 5063863.427 | CJ44: -17810.30927 | CK44: 90769.75193 | CL44: =SUM(CL40,CL42) -> 0 | CM44: =SUM(CM40,CM42) -> 72959.44266 | CN44: =SUM(CN40,CN42) -> 5188556.814 | CO44: =SUM(CO40,CO42) -> -2394014.08 | CP44: =SUM(CP40,CP42) -> -3546014.681
C47: For all OEB-Approved dispositions, please ensure that the disposition amount has the same sign (e.g: debit balances are to have a positive figure and credit balance are to have a negative figure) as per the related OEB decision.
CA48: =+CA40+CF40 -> -4651705.349
CA49: =+CP28+CP29 -> -3546015.111
B50: 1 | C50: Please provide explanations for the nature of the adjustments. If the adjustment relates to previously OEB-Approved disposed balances, please provide amounts for adjustments and include supporting documentations. | CA50: =+CA48+CA49 -> -8197720.46
B51: 2 | C51: For RSVA accounts only, report the net variance to the account during the year. For all other accounts, record the transactions during the year.
B52: 3 | C52: If the LDC’s rate year begins on January 1, 2017, the projected interest is recorded from January 1, 2016 to December 31, 2016 on the December 31, 2015 balances adjusted for the disposed balances approved by the OEB in the 2016 rate decision. If the LDC’s rate year begins on May 1, 2017, the projected interest is recorded from January 1, 2016 to April 30, 2017 on the December 31, 2015 balances adjusted for the disposed interest balances approved by the OEB in the 2016 rate decision.
B53: 4 | C53: Include Account 1595 as part of Group 1 accounts (lines 30-36) for review and disposition if the recovery (or refund) period has been completed. If the recovery (or refund) period has not been completed, do not include the respective balance in Account 1595 for disposition at this time.

Sheet 4. Billing Det. for Def-Var
A1: Back to Index | K1: Yes | T1: =IF(D18="YES", "YES", "NO") -> NO
B2: =+'1. Information Sheet'!B2 -> INCENTIVE REGULATION MODEL FOR 2019 FILERS
B13: Information from the most recent RRR (2017 for 2019 IRM)
L14: Approved Recoveries (class allocation %)
D15: Total Metered kWh | E15: Total Metered kW | F15: Metered kWh for Non-RPP Customers | G15: Metered kW for Non-RPP Customers | H15: Metered kWh for Wholesale Market Participants (WMP) | I15: Metered kW for Wholesale Market Participants (WMP) | J15: Total Metered kWh less WMP consumption (if applicable) | K15: Total Metered kW less WMP consumption (if applicable) | L15: 1595 Recovery Proportion (2009) 1 | M15: 1595 Recovery Proportion (2010) 1 | N15: 1595 Recovery Proportion (2011) 1 | O15: 1595 Recovery Proportion (2012) 1 | P15: 1595 Recovery Proportion (2013) 1 | Q15: 1595 Recovery Proportion (2014) 1 | R15: 1595 Recovery Proportion (2015) 1 | S15: 1595 Recovery Proportion (2017) 1 | T15: 1568 LRAM Variance Account Class Allocation ($ amounts) | U15: Number of Customers for Residential and GS<50 classes3
B16: Rate Class | C16: Unit
B17: ='Model Specs'!C15 -> RESIDENTIAL SERVICE CLASSIFICATION | C17: kWh | D17: 1440461108 | F17: 51296782.13 | J17: =D17-H17 -> 1440461108 | K17: =E17-I17 -> 0 | Q17: 0.042831737 | R17: 0.3291884587 | S17: 0.2048492466 | T17: 218927.7758 | U17: 183145
B18: ='Model Specs'!C16 -> GENERAL SERVICE LESS THAN 50 kW SERVICE CLASSIFICATION | C18: kWh | D18: 618679646.4 | F18: 97698580.23 | J18: =D18-H18 -> 618679646.4 | K18: =E18-I18 -> 0 | Q18: 0.03667843854 | R18: 0.1310626928 | S18: 0.09036223103 | T18: 124808.1736 | U18: 18413
B19: ='Model Specs'!C17 -> GENERAL SERVICE 50 to 499 kW SERVICE CLASSIFICATION | C19: kW | D19: 1993768779 | E19: 5780039.102 | F19: 1685784808 | G19: 4933988.792 | H19: 2122220.82 | I19: 6656.9 | J19: 1991646559 | K19: =E19-I19 -> 5773382.202 | Q19: 0.4138297114 | R19: 0.1749713883 | S19: 0.2930562179 | T19: 1127412.169
B20: ='Model Specs'!C18 -> GENERAL SERVICE 500 to 4,999 kW SERVICE CLASSIFICATION | C20: kW | D20: 2006067810 | E20: 4610762.335 | F20: 1846972865 | G20: 4271783.475 | H20: 15026690.45 | I20: 28831.62 | J20: 1991041119 | K20: 4581930.715 | Q20: 0.4838378656 | R20: 0.1548539542 | S20: 0.2773941628 | T20: 346857.9631
B21: ='Model Specs'!C19 -> LARGE USE SERVICE CLASSIFICATION | C21: kW | D21: 981267691.3 | E21: 1753815.619 | F21: 981267691.3 | G21: 1753815.619 | J21: 981267691.3 | K21: 1753815.619 | Q21: 0.0135704573 | R21: 0.2061805925 | S21: 0.1293629666 | T21: 112182.3402
B22: ='Model Specs'!C20 -> STANDBY POWER SERVICE CLASSIFICATION | C22: kW | J22: 0 | K22: 0 | S22: 0
B23: ='Model Specs'!C21 -> UNMETERED SCATTERED LOAD SERVICE CLASSIFICATION | C23: kWh | D23: 11421124.46 | F23: 586174.6622 | J23: 11421124.46 | K23: 0 | Q23: 0.0004108364085 | R23: 0.002390216995 | S23: 0.001492699495
B24: ='Model Specs'!C22 -> STREET LIGHTING SERVICE CLASSIFICATION | C24: kW | D24: 14875866.2 | E24: 41239.54618 | F24: 14875866.2 | G24: 41239.54618 | J24: 14875866.2 | K24: 41239.54618 | Q24: 0.008840953763 | R24: 0.00135269641 | S24: 0.00348247557 | T24: -156329.0373
J25: 0 | K25: 0
J26: 0 | K26: 0
J27: 0 | K27: 0
J28: 0 | K28: 0
C29: Total | D29: =SUM(D17:D28) -> 7066542026 | E29: =SUM(E17:E28) -> 12185856.6 | F29: 4678482767 | G29: 11000827.43 | H29: 17148911.27 | I29: 35488.52 | J29: 7049393114 | K29: 12150368.08 | L29: 0 | M29: 0 | N29: 0 | O29: 0 | P29: 0 | Q29: 1 | R29: 1 | S29: 1 | T29: 1773859.384 | U29: 201558
B32: Threshold Test | R32: 1568 Account Balance from Continuity Schedule | U32: ='3. Continuity Schedule'!CN42 -> 2269833.295
B33: Total Claim (including Account 1568) | D33: ='3. Continuity Schedule'!CN44 -> 5188556.814 | R33: =IF(U32=T29,"Total Balance of Account 1568 in Column R matches the amount entered on the Continuity Schedule","Total Balance of Account 1568 in Column T DOES NOT MATCH the amount entered on the Continuity Schedule") -> Total Balance of Account 1568 in Column T DOES NOT MATCH the amount entered on the Continuity Schedule
B34: Total Claim for Threshold Test (All Group 1 Accounts) | D34: ='3. Continuity Schedule'!CN40 -> 2918723.519
B35: Threshold Test (Total claim per kWh) 2 | D35: =IFERROR(D34/D29,"") -> 0.0004130341982
B36: Exceeds Threshold? | D36: =IF(D35="","",IF(OR(D35>0.001,D35<-0.001),"Yes","No")) -> No
B37: ELECT TO DISPOSE of the Group 1 Account Balances? | D37: Yes
B40: As per Section 3.2.5 of the 2017 Filing Requirements for Electricity Distribution Rate Applications, an applicant may elect to dispose of the Group 1 account balances below the threshold.
B41: 1 Residual Account balance to be allocated to rate classes in proportion to the recovery share as established when rate riders were implemented.
B42: 2 The Threshold Test does not include the amount in 1568.
B43: 3 The proportion of customers for the Residential and GS<50 Classes will be used to allocate Account 1551.
B45: Information from the 2015 RRR
D47: Total Metered kWh | E47: Total Metered kW | F47: Metered kWh for Non-RPP Customers | G47: Metered kW for Non-RPP Customers | H47: Metered kWh for Wholesale Market Participants (WMP) | I47: Metered kW for Wholesale Market Participants (WMP) | J47: Total Metered kWh less WMP consumption (if applicable) | K47: Total Metered kW less WMP consumption (if applicable)
B48: Rate Class | C48: Unit
B49: =B17 -> RESIDENTIAL SERVICE CLASSIFICATION | C49: kWh | J49: =D49-H49 -> 0 | K49: =E49-I49 -> 0
B50: =B18 -> GENERAL SERVICE LESS THAN 50 kW SERVICE CLASSIFICATION | C50: kWh | J50: =D50-H50 -> 0 | K50: =E50-I50 -> 0
B51: GENERAL SERVICE 50 to 499 kW SERVICE CLASSIFICATION | C51: kW | J51: 0 | K51: =E51-I51 -> 0
B52: GENERAL SERVICE 500 to 4,999 kW SERVICE CLASSIFICATION | C52: kW | J52: 0 | K52: =E52-I52 -> 0
B53: LARGE USE SERVICE CLASSIFICATION | C53: kWh | J53: 0 | K53: 0
B54: STANDBY POWER SERVICE CLASSIFICATION | C54: kW | J54: 0 | K54: 0
B55: UNMETERED SCATTERED LOAD SERVICE CLASSIFICATION | C55: kW | J55: 0 | K55: 0
B56: STREET LIGHTING SERVICE CLASSIFICATION | C56: kW | J56: 0 | K56: 0
B57: 0 | C57: kWh | J57: 0 | K57: 0
B58: 0 | C58: kWh | J58: 0 | K58: 0
B59: 0 | C59: kW | J59: 0 | K59: 0
J60: 0 | K60: 0
C61: Total | D61: =SUM(D49:D60) -> 0 | E61: =SUM(E49:E60) -> 0 | F61: 0 | G61: 0 | H61: 0 | I61: 0 | J61: 0 | K61: 0

Sheet 5. Allocating Def-Var Balances
A1: Back to Index
B2: =+'1. Information Sheet'!B2 -> INCENTIVE REGULATION MODEL FOR 2019 FILERS
B11: No input required. This workshseet allocates the deferral/variance account balances (Group 1 and 1568) to the appropriate classes as per EDDVAR dated July 31, 2009
B13: Allocation of Group 1 Accounts (including Account 1568)
C14: % of Total kWh | D14: % of Total non-RPP kWh | E14: % of Customer Numbers ** | F14: % of Total kWh adjusted for WMP | I14: allocated based on Total less WMP | N14: allocated based on Total less WMP | O14: 1595_(2009) | P14: 1595_(2010) | Q14: 1595_(2011) | R14: 1595_(2012) | S14: 1595_(2013) | T14: 1595_(2017) | U14: 1595_(2015) | V14: 1595_(2016) | W14: 1595_(2017) | X14: 1568
B15: Rate Class | G15: 1550 | H15: 1551 | I15: 1580 | J15: 1580 (Class A) | K15: 1580 (Class B) | L15: 1584 | M15: 1586 | N15: 1588
B16: ='4. Billing Det. for Def-Var'!B17 -> RESIDENTIAL SERVICE CLASSIFICATION | C16: =IFERROR('4. Billing Det. for Def-Var'!D17/'4. Billing Det. for Def-Var'!D$29,"") -> 0.2038424314 | D16: =IFERROR('4. Billing Det. for Def-Var'!F17/'4. Billing Det. for Def-Var'!F$29,"") -> 0.01096440549 | E16: =IFERROR('4. Billing Det. for Def-Var'!U17/'4. Billing Det. for Def-Var'!U$29,"") -> 0.9086466427 | F16: =IFERROR('4. Billing Det. for Def-Var'!J17/'4. Billing Det. for Def-Var'!J$29,"") -> 0.2043383146 | G16: =IFERROR(G$28*C16,"") -> 494355.5435 | H16: =IFERROR(H$28*E16,"") -> -24738.05237 | I16: =IFERROR(I$28*F16,"") -> -1517569.781 | L16: =IFERROR(L$28*$C16,"") -> 408739.6168 | M16: =IFERROR(M$28*$C16,"") -> 10798.21377 | N16: =IFERROR(N$28*$F16,"") -> 62988.76541 | O16: ='4. Billing Det. for Def-Var'!L17*O$28 -> 0 | P16: ='4. Billing Det. for Def-Var'!M17*P$28 -> 0 | Q16: ='4. Billing Det. for Def-Var'!N17*Q$28 -> 0 | R16: ='4. Billing Det. for Def-Var'!O17*R$28 -> 0 | S16: ='4. Billing Det. for Def-Var'!P17*S$28 -> 0 | T16: =+$T$28*'4. Billing Det. for Def-Var'!S17 -> 0 | U16: ='4. Billing Det. for Def-Var'!R17*U$28 -> 0 | V16: ='4. Billing Det. for Def-Var'!S17*V$28 -> 0 | W16: ='4. Billing Det. for Def-Var'!T17*W$28 -> 0 | X16: ='4. Billing Det. for Def-Var'!T17 -> 218927.7758
B17: ='4. Billing Det. for Def-Var'!B18 -> GENERAL SERVICE LESS THAN 50 kW SERVICE CLASSIFICATION | C17: =IFERROR('4. Billing Det. for Def-Var'!D18/'4. Billing Det. for Def-Var'!D$29,"") -> 0.08755055078 | D17: =IFERROR('4. Billing Det. for Def-Var'!F18/'4. Billing Det. for Def-Var'!F$29,"") -> 0.02088253502 | E17: =IFERROR('4. Billing Det. for Def-Var'!U18/'4. Billing Det. for Def-Var'!U$29,"") -> 0.09135335735 | F17: =IFERROR('4. Billing Det. for Def-Var'!J18/'4. Billing Det. for Def-Var'!J$29,"") -> 0.08776353317 | G17: =IFERROR(G$28*C17,"") -> 212326.2552 | H17: =IFERROR(H$28*E17,"") -> -2487.109985 | I17: =IFERROR(I$28*F17,"") -> -651797.907 | L17: =IFERROR(L$28*$C17,"") -> 175554.1196 | M17: 4637.844811 | N17: =IFERROR(N$28*$F17,"") -> 27053.74473 | O17: ='4. Billing Det. for Def-Var'!L18*O$28 -> 0 | P17: ='4. Billing Det. for Def-Var'!M18*P$28 -> 0 | Q17: ='4. Billing Det. for Def-Var'!N18*Q$28 -> 0 | R17: ='4. Billing Det. for Def-Var'!O18*R$28 -> 0 | S17: ='4. Billing Det. for Def-Var'!P18*S$28 -> 0 | T17: =+$T$28*'4. Billing Det. for Def-Var'!S18 -> 0 | U17: ='4. Billing Det. for Def-Var'!R18*U$28 -> 0 | V17: ='4. Billing Det. for Def-Var'!S18*V$28 -> 0 | W17: ='4. Billing Det. for Def-Var'!T18*W$28 -> 0 | X17: ='4. Billing Det. for Def-Var'!T18 -> 124808.1736
B18: ='4. Billing Det. for Def-Var'!B19 -> GENERAL SERVICE 50 to 499 kW SERVICE CLASSIFICATION | C18: =IFERROR('4. Billing Det. for Def-Var'!D19/'4. Billing Det. for Def-Var'!D$29,"") -> 0.2821420678 | D18: =IFERROR('4. Billing Det. for Def-Var'!F19/'4. Billing Det. for Def-Var'!F$29,"") -> 0.3603272453 | E18: =IFERROR('4. Billing Det. for Def-Var'!U19/'4. Billing Det. for Def-Var'!U$29,"") -> 0 | F18: =IFERROR('4. Billing Det. for Def-Var'!J19/'4. Billing Det. for Def-Var'!J$29,"") -> 0.2825273788 | G18: =IFERROR(G$28*C18,"") -> 684246.6229 | H18: =IFERROR(H$28*E18,"") -> 0 | I18: =IFERROR(I$28*F18,"") -> -2098260.49 | L18: 565744.0401 | M18: 14946.00678 | N18: =IFERROR(N$28*$F18,"") -> 87091.11072 | O18: ='4. Billing Det. for Def-Var'!L19*O$28 -> 0 | P18: ='4. Billing Det. for Def-Var'!M19*P$28 -> 0 | Q18: ='4. Billing Det. for Def-Var'!N19*Q$28 -> 0 | R18: ='4. Billing Det. for Def-Var'!O19*R$28 -> 0 | S18: ='4. Billing Det. for Def-Var'!P19*S$28 -> 0 | T18: =+$T$28*'4. Billing Det. for Def-Var'!S19 -> 0 | U18: ='4. Billing Det. for Def-Var'!R19*U$28 -> 0 | V18: ='4. Billing Det. for Def-Var'!S19*V$28 -> 0 | W18: ='4. Billing Det. for Def-Var'!T19*W$28 -> 0 | X18: ='4. Billing Det. for Def-Var'!T19 -> 1127412.169
B19: ='4. Billing Det. for Def-Var'!B20 -> GENERAL SERVICE 500 to 4,999 kW SERVICE CLASSIFICATION | C19: =IFERROR('4. Billing Det. for Def-Var'!D20/'4. Billing Det. for Def-Var'!D$29,"") -> 0.2838825273 | D19: =IFERROR('4. Billing Det. for Def-Var'!F20/'4. Billing Det. for Def-Var'!F$29,"") -> 0.3947803074 | E19: =IFERROR('4. Billing Det. for Def-Var'!U20/'4. Billing Det. for Def-Var'!U$29,"") -> 0 | F19: =IFERROR('4. Billing Det. for Def-Var'!J20/'4. Billing Det. for Def-Var'!J$29,"") -> 0.2824414935 | G19: 688467.5587 | H19: 0 | I19: -2097622.642 | L19: 569233.9648 | M19: 15038.20473 | N19: 87064.63595 | O19: ='4. Billing Det. for Def-Var'!L20*O$28 -> 0 | P19: ='4. Billing Det. for Def-Var'!M20*P$28 -> 0 | Q19: ='4. Billing Det. for Def-Var'!N20*Q$28 -> 0 | R19: ='4. Billing Det. for Def-Var'!O20*R$28 -> 0 | S19: ='4. Billing Det. for Def-Var'!P20*S$28 -> 0 | T19: =+$T$28*'4. Billing Det. for Def-Var'!S20 -> 0 | U19: ='4. Billing Det. for Def-Var'!R20*U$28 -> 0 | V19: ='4. Billing Det. for Def-Var'!S20*V$28 -> 0 | W19: ='4. Billing Det. for Def-Var'!T20*W$28 -> 0 | X19: ='4. Billing Det. for Def-Var'!T20 -> 346857.9631
B20: ='4. Billing Det. for Def-Var'!B21 -> LARGE USE SERVICE CLASSIFICATION | C20: =IFERROR('4. Billing Det. for Def-Var'!D21/'4. Billing Det. for Def-Var'!D$29,"") -> 0.1388610848 | D20: =IFERROR('4. Billing Det. for Def-Var'!F21/'4. Billing Det. for Def-Var'!F$29,"") -> 0.2097405804 | E20: =IFERROR('4. Billing Det. for Def-Var'!U21/'4. Billing Det. for Def-Var'!U$29,"") -> 0 | F20: =IFERROR('4. Billing Det. for Def-Var'!J21/'4. Billing Det. for Def-Var'!J$29,"") -> 0.1391988892 | G20: 336763.7766 | H20: 0 | I20: -1033795.489 | L20: 278440.6867 | M20: 7355.935009 | N20: 42909.06576 | O20: ='4. Billing Det. for Def-Var'!L21*O$28 -> 0 | P20: ='4. Billing Det. for Def-Var'!M21*P$28 -> 0 | Q20: ='4. Billing Det. for Def-Var'!N21*Q$28 -> 0 | R20: ='4. Billing Det. for Def-Var'!O21*R$28 -> 0 | S20: ='4. Billing Det. for Def-Var'!P21*S$28 -> 0 | T20: =+$T$28*'4. Billing Det. for Def-Var'!S21 -> 0 | U20: ='4. Billing Det. for Def-Var'!R21*U$28 -> 0 | V20: ='4. Billing Det. for Def-Var'!S21*V$28 -> 0 | W20: ='4. Billing Det. for Def-Var'!T21*W$28 -> 0 | X20: ='4. Billing Det. for Def-Var'!T21 -> 112182.3402
B21: ='4. Billing Det. for Def-Var'!B22 -> STANDBY POWER SERVICE CLASSIFICATION | C21: =IFERROR('4. Billing Det. for Def-Var'!D22/'4. Billing Det. for Def-Var'!D$29,"") -> 0 | D21: =IFERROR('4. Billing Det. for Def-Var'!F22/'4. Billing Det. for Def-Var'!F$29,"") -> 0 | E21: =IFERROR('4. Billing Det. for Def-Var'!U22/'4. Billing Det. for Def-Var'!U$29,"") -> 0 | F21: =IFERROR('4. Billing Det. for Def-Var'!J22/'4. Billing Det. for Def-Var'!J$29,"") -> 0 | G21: 0 | H21: 0 | I21: 0 | L21: 0 | M21: 0 | N21: 0 | O21: ='4. Billing Det. for Def-Var'!L22*O$28 -> 0 | P21: ='4. Billing Det. for Def-Var'!M22*P$28 -> 0 | Q21: ='4. Billing Det. for Def-Var'!N22*Q$28 -> 0 | R21: ='4. Billing Det. for Def-Var'!O22*R$28 -> 0 | S21: ='4. Billing Det. for Def-Var'!P22*S$28 -> 0 | T21: =+$T$28*'4. Billing Det. for Def-Var'!S22 -> 0 | U21: ='4. Billing Det. for Def-Var'!R22*U$28 -> 0 | V21: ='4. Billing Det. for Def-Var'!S22*V$28 -> 0 | W21: ='4. Billing Det. for Def-Var'!T22*W$28 -> 0 | X21: ='4. Billing Det. for Def-Var'!T22 -> 0
B22: ='4. Billing Det. for Def-Var'!B23 -> UNMETERED SCATTERED LOAD SERVICE CLASSIFICATION | C22: =IFERROR('4. Billing Det. for Def-Var'!D23/'4. Billing Det. for Def-Var'!D$29,"") -> 0.001616225364 | D22: =IFERROR('4. Billing Det. for Def-Var'!F23/'4. Billing Det. for Def-Var'!F$29,"") -> 0.0001252916151 | E22: =IFERROR('4. Billing Det. for Def-Var'!U23/'4. Billing Det. for Def-Var'!U$29,"") -> 0 | F22: =IFERROR('4. Billing Det. for Def-Var'!J23/'4. Billing Det. for Def-Var'!J$29,"") -> 0.001620157122 | G22: 3919.645007 | H22: 0 | I22: -12032.50351 | L22: 3240.813659 | M22: 85.61685052 | N22: 499.4251668 | O22: ='4. Billing Det. for Def-Var'!L23*O$28 -> 0 | P22: ='4. Billing Det. for Def-Var'!M23*P$28 -> 0 | Q22: ='4. Billing Det. for Def-Var'!N23*Q$28 -> 0 | R22: ='4. Billing Det. for Def-Var'!O23*R$28 -> 0 | S22: ='4. Billing Det. for Def-Var'!P23*S$28 -> 0 | T22: =+$T$28*'4. Billing Det. for Def-Var'!S23 -> 0 | U22: ='4. Billing Det. for Def-Var'!R23*U$28 -> 0 | V22: ='4. Billing Det. for Def-Var'!S23*V$28 -> 0 | W22: ='4. Billing Det. for Def-Var'!T23*W$28 -> 0 | X22: ='4. Billing Det. for Def-Var'!T23 -> 0
B23: ='4. Billing Det. for Def-Var'!B24 -> STREET LIGHTING SERVICE CLASSIFICATION | C23: =IFERROR('4. Billing Det. for Def-Var'!D24/'4. Billing Det. for Def-Var'!D$29,"") -> 0.002105112535 | D23: =IFERROR('4. Billing Det. for Def-Var'!F24/'4. Billing Det. for Def-Var'!F$29,"") -> 0.00317963471 | E23: =IFERROR('4. Billing Det. for Def-Var'!U24/'4. Billing Det. for Def-Var'!U$29,"") -> 0 | F23: =IFERROR('4. Billing Det. for Def-Var'!J24/'4. Billing Det. for Def-Var'!J$29,"") -> 0.002110233598 | G23: 5105.286688 | H23: 0 | I23: -15672.17947 | L23: 4221.117679 | M23: 111.5148353 | N23: 650.4947901 | O23: ='4. Billing Det. for Def-Var'!L24*O$28 -> 0 | P23: ='4. Billing Det. for Def-Var'!M24*P$28 -> 0 | Q23: ='4. Billing Det. for Def-Var'!N24*Q$28 -> 0 | R23: ='4. Billing Det. for Def-Var'!O24*R$28 -> 0 | S23: ='4. Billing Det. for Def-Var'!P24*S$28 -> 0 | T23: =+$T$28*'4. Billing Det. for Def-Var'!S24 -> 0 | U23: ='4. Billing Det. for Def-Var'!R24*U$28 -> 0 | V23: ='4. Billing Det. for Def-Var'!S24*V$28 -> 0 | W23: ='4. Billing Det. for Def-Var'!T24*W$28 -> 0 | X23: ='4. Billing Det. for Def-Var'!T24 -> -156329.0373
C28: =SUM(C16:C27) -> 1 | D28: =SUM(D16:D27) -> 1 | E28: =SUM(E16:E27) -> 1 | F28: =SUM(F16:F27) -> 1 | G28: ='3. Continuity Schedule'!CN21 -> 2425184.689 | H28: ='3. Continuity Schedule'!CN22 -> -27225.16235 | I28: ='3. Continuity Schedule'!CN23 -> -7426750.991 | L28: ='3. Continuity Schedule'!CN26 -> 2005174.359 | M28: ='3. Continuity Schedule'!CN27 -> 52973.33678 | N28: ='3. Continuity Schedule'!CN28 -> 308257.2425 | T28: =SUM('3. Continuity Schedule'!CN30:CN36) -> 0 | V28: 0 | W28: 0 | X28: =SUM(X16:X26) -> 1773859.384
G29: =SUM(G16:G27)-G28 -> 0 | H29: =SUM(H16:H27)-H28 -> 0 | I29: 0 | J29: 0 | K29: 0 | L29: 0 | M29: 0 | N29: 0 | O29: 0 | P29: 0 | Q29: 0 | R29: 0 | S29: 0 | T29: =SUM(T16:T27)-T28 -> 0 | U29: 0 | V29: 0 | X29: 0
B32: ** Used to allocate Account 1551 as this account records the variances arising from the Smart Metering Entity Charges to Residential and GS<50 customers.

Sheet 6. GA Calculation
A1: Back to Index
B2: =+'1. Information Sheet'!B2 -> INCENTIVE REGULATION MODEL FOR 2019 FILERS
B13: The purpose of this tab is to calculate the GA rate riders for all current Class B customers of the distributor. Identify the total billed consumption for former Class B customers prior to becoming Class A customers in Column G. Effective January 2017, the billing determinant and all rate riders for the disposition of GA balances will be calculated on an energy basis (kWhs) regardless of the billing determinant used for distribution rates for the particular class (see Chapter 3, Filing Requirements, section 3.2.5.2)
C14: Total Metered Non-RPP consumption minus WMP | E14: Total Metered Class A Consumption in 2017 (partial and/or full year Class A customers)* | G14: Total Metered Consumption for New Class A customer(s) in the period prior to becoming Class A (i.e. Jan. 1 - June 30, 2017) | H14: Total Metered Consumption for New Class B customer(s) in the period after becoming Class B (i.e. Jul 1 - Dec 31, 2017) | I14: Metered Consumption for Current Class B Customers (Non-RPP consumption LESS WMP, Class A and new Class A's former Class B consumption if applicable) | K14: % of total kWh | L14: Total GA $ allocated to Current Class B Customers | M14: GA Rate Rider | O14: Revenue Reconciliation | P14: Variance
C15: kWh | D15: kW | E15: kWh | F15: kW | G15: kWh | H15: kWh | I15: kWh | J15: kW
B17: ='4. Billing Det. for Def-Var'!B17 -> RESIDENTIAL SERVICE CLASSIFICATION | C17: ='4. Billing Det. for Def-Var'!F17-'4. Billing Det. for Def-Var'!H17 -> 51296782.13 | I17: =C17-E17-G17-H17 -> 51296782.13 | K17: =IFERROR(I17/I$29,"") -> 0.01814610958 | L17: =IFERROR(L$29*K17,"") -> 88870.93002 | M17: =IFERROR(L17/I17,"") -> 0.001732485476 | N17: kwh | O17: =IFERROR(ROUND(M17,4)*I17,"") -> 87204.52963 | P17: =IFERROR(L17-O17,"") -> 1666.400392
B18: ='4. Billing Det. for Def-Var'!B18 -> GENERAL SERVICE LESS THAN 50 kW SERVICE CLASSIFICATION | C18: ='4. Billing Det. for Def-Var'!F18-'4. Billing Det. for Def-Var'!H18 -> 97698580.23 | I18: 97698580.23 | K18: =IFERROR(I18/I$29,"") -> 0.03456063069 | L18: =IFERROR(L$29*K18,"") -> 169261.3713 | M18: =IFERROR(L18/I18,"") -> 0.001732485476 | N18: kwh | O18: =IFERROR(ROUND(M18,4)*I18,"") -> 166087.5864 | P18: =IFERROR(L18-O18,"") -> 3173.784896
B19: ='4. Billing Det. for Def-Var'!B19 -> GENERAL SERVICE 50 to 499 kW SERVICE CLASSIFICATION | C19: ='4. Billing Det. for Def-Var'!F19-'4. Billing Det. for Def-Var'!H19 -> 1683662587 | I19: 1683662587 | K19: 0.5955914686 | L19: 2916920.979 | M19: =IFERROR(L19/I19,"") -> 0.001732485476 | N19: kwh | O19: 2862226.398 | P19: 54694.58079
B20: ='4. Billing Det. for Def-Var'!B20 -> GENERAL SERVICE 500 to 4,999 kW SERVICE CLASSIFICATION | C20: ='4. Billing Det. for Def-Var'!F20-'4. Billing Det. for Def-Var'!H20 -> 1831946175 | E20: 539356029.3 | G20: 313835212.3 | I20: 978754933 | K20: 0.3462321325 | L20: 1695678.706 | M20: 0.001732485476 | N20: kwh | O20: 1663883.386 | P20: 31795.32002
B21: ='4. Billing Det. for Def-Var'!B21 -> LARGE USE SERVICE CLASSIFICATION | C21: ='4. Billing Det. for Def-Var'!F21-'4. Billing Det. for Def-Var'!H21 -> 981267691.3 | E21: 922691360.9 | H21: 58576330.27 | I21: 0.1189640835 | K21: 4.208324978e-11 | L21: 0.0002061035468 | M21: =IFERROR(L21/I21,"") -> 0.001732485476 | N21: kwh | O21: 0.0002022389419 | P21: 3.864604895e-06
B22: ='4. Billing Det. for Def-Var'!B22 -> STANDBY POWER SERVICE CLASSIFICATION | C22: ='4. Billing Det. for Def-Var'!F22-'4. Billing Det. for Def-Var'!H22 -> 0 | I22: 0 | K22: 0 | L22: 0 | N22: kwh
B23: ='4. Billing Det. for Def-Var'!B23 -> UNMETERED SCATTERED LOAD SERVICE CLASSIFICATION | C23: ='4. Billing Det. for Def-Var'!F23-'4. Billing Det. for Def-Var'!H23 -> 586174.6622 | I23: 586174.6622 | K23: 0.0002073578344 | L23: 1015.539089 | M23: 0.001732485476 | N23: kwh | O23: 996.4969257 | P23: 19.042163
B24: ='4. Billing Det. for Def-Var'!B24 -> STREET LIGHTING SERVICE CLASSIFICATION | C24: ='4. Billing Det. for Def-Var'!F24-'4. Billing Det. for Def-Var'!H24 -> 14875866.2 | I24: 14875866.2 | K24: 0.005262300809 | L24: 25772.22213 | M24: 0.001732485476 | N24: kwh | O24: 25288.97254 | P24: 483.2495963
C29: =SUM(C17:C28) -> 4661333856 | D29: =SUM(D17:D28) -> 0 | E29: 1462047390 | F29: 0 | G29: 313835212.3 | H29: 58576330.27 | I29: 2826874923 | J29: 0 | K29: 1 | L29: ='6B. GA Allocation_new Class B'!D28 -> 4897519.748 | O29: =SUM(O17:O24) -> 4805687.37 | P29: =SUM(P17:P24) -> 91832.37786
L30: from Sheet 6B
B32: *For new Class A customers (who became Class A in 2017), add their consumption only related to July to December period.
B36: 2015 DATA | C36: Total Metered Non-RPP consumption minus WMP | E36: Total Metered Class A Consumption in 2015 (partial and/or full year Class A customers)* | G36: Total Metered Consumption for New Class A customer(s) in the period prior to becoming Class A (i.e. Jan. 1 - June 30, 2015)
C37: kWh | D37: kW | E37: kWh | F37: kW | G37: kWh
B39: =B17 -> RESIDENTIAL SERVICE CLASSIFICATION | C39: ='4. Billing Det. for Def-Var'!F49-'4. Billing Det. for Def-Var'!H49 -> 0
B40: =B18 -> GENERAL SERVICE LESS THAN 50 kW SERVICE CLASSIFICATION | C40: ='4. Billing Det. for Def-Var'!F50-'4. Billing Det. for Def-Var'!H50 -> 0
B41: GENERAL SERVICE 50 to 499 kW SERVICE CLASSIFICATION | C41: ='4. Billing Det. for Def-Var'!F51-'4. Billing Det. for Def-Var'!H51 -> 0
B42: GENERAL SERVICE 500 to 4,999 kW SERVICE CLASSIFICATION | C42: ='4. Billing Det. for Def-Var'!F52-'4. Billing Det. for Def-Var'!H52 -> 0
B43: LARGE USE SERVICE CLASSIFICATION | C43: ='4. Billing Det. for Def-Var'!F53-'4. Billing Det. for Def-Var'!H53 -> 0
B44: STANDBY POWER SERVICE CLASSIFICATION | C44: ='4. Billing Det. for Def-Var'!F54-'4. Billing Det. for Def-Var'!H54 -> 0
B45: UNMETERED SCATTERED LOAD SERVICE CLASSIFICATION | C45: ='4. Billing Det. for Def-Var'!F55-'4. Billing Det. for Def-Var'!H55 -> 0
B46: STREET LIGHTING SERVICE CLASSIFICATION | C46: ='4. Billing Det. for Def-Var'!F56-'4. Billing Det. for Def-Var'!H56 -> 0
B47: 0 | C47: ='4. Billing Det. for Def-Var'!F57-'4. Billing Det. for Def-Var'!H57 -> 0
B48: 0 | C48: ='4. Billing Det. for Def-Var'!F58-'4. Billing Det. for Def-Var'!H58 -> 0
B49: 0 | C49: ='4. Billing Det. for Def-Var'!F59-'4. Billing Det. for Def-Var'!H59 -> 0
C51: =SUM(C39:C50) -> 0 | D51: =SUM(D39:D50) -> 0 | E51: 0 | F51: 0 | G51: 0

Sheet 6A. GA Allocation_Class A
A1: Back to Index
B2: =+'1. Information Sheet'!B2 -> INCENTIVE REGULATION MODEL FOR 2019 FILERS
B12: This tab allocates the GA balance to former Class B customers who contributed to the current GA balance but are now Class A customers. The tables below calculate specific amounts for each customer who made the change. Consistent with both decisions for 2016 rates and EDDVAR, distributors are generally expected to settle the amount through 12 equal adjustments to bills. A one-time settlement is acceptable if the affected customer has expressed a clear preference for this approach. (see Filing Requirements section 3.2.5.2)
B14: Year of Group 1 Account Balance Last Disposed | C14: 2016 | D14: (e.g. If in the 2017 EDR process, you received approval to dispose the GA variance account balance as of December 31, 2014, please enter 2014 in cell C16.)
B16: Allocation of total Non-RPP consumption (kWh) between Class B and New Class A (Former Class B) customers
D17: Total | E17: 2017 | F17: 2015 | G17: 2014 | H17: 2013 | I17: 2012
B18: Total Class B Consumption for Years Since Last Disposition (Non-RPP consumption LESS WMP and Class A) | C18: A | D18: =SUM(E18:I18) -> 3199286466 | E18: ='6. GA Calculation'!C29-'6. GA Calculation'!E29 -> 3199286466
B19: New Class A Customer(s)' Former Class B Consumption | C19: B | D19: =SUM(E19:I19) -> 313835212.3 | E19: ='6. GA Calculation'!G29 -> 313835212.3 | F19: =F106 -> 0 | G19: =G106 -> 0 | H19: =H106 -> 0 | I19: =I106 -> 0
B20: Portion of Consumption of Former Class B Customers | C20: C=B/A | D20: =IFERROR(+D19/D18,0) -> 0.0980953771
B23: Allocation of Total GA Balance $
B25: Total GA Balance | C25: D | D25: ='3. Continuity Schedule'!CN29 -> 5542717.336
B26: New Class A Customer(s)' Former Class B Portion of GA Balance | C26: E=C*D | D26: =+D20*D25 -> 543714.9472
B27: GA Balance to be disposed to Current Class B Customers | C27: F=D-E | D27: =+D25-D26 -> 4999002.389
B29: Allocation of GA Balances to Former Class B Customers
B30: # of Former Class B customer(s)
B31: Customer | D31: Total Metered kWh Consumption for each new Class A customer for the period prior to becoming Class A | E31: Metered kWh Consumption for each new Class A customer for the period prior to becoming Class A in 2017 | F31: Metered kWh Consumption for each new Class A customer for the period prior to becoming Class A in 2015 | G31: Metered kWh Consumption for each new Class A customer for the period prior to becoming Class A in 2014 | H31: Metered kWh Consumption for each new Class A customer for the period prior to becoming Class A in 2013 | I31: Metered kWh Consumption for each new Class A customer for the period prior to becoming Class A in 2012 | J31: % of kWh | K31: Customer specific GA allocation for the period prior to becoming Class A | L31: Monthly Equal Payments
B32: Customer 1 | D32: =SUM(E32:I32) -> 5382021.043 | E32: 5382021.043 | J32: =IFERROR(+D32/$D$106,0) -> 0.01714919433 | K32: =+J32*$D$26 -> 9324.27329 | L32: =+K32/12 -> 777.0227742
B33: Customer 2 | D33: 2398548.876 | E33: 2398548.876 | J33: 0.00764270159 | K33: =+J33*$D$26 -> 4155.451092 | L33: =+K33/12 -> 346.287591
B34: Customer 3 | D34: 4653971.692 | E34: 4653971.692 | J34: 0.01482934836 | K34: 8062.938362 | L34: 671.9115302
B35: Customer 4 | D35: 5067324.947 | E35: 5067324.947 | J35: 0.01614645122 | K35: 8779.066874 | L35: 731.5889061
B36: Customer 5 | D36: 4261870.588 | E36: 4261870.588 | J36: 0.01357996305 | K36: 7383.628895 | L36: 615.3024079
B37: Customer 6 | D37: 2774874.753 | E37: 2774874.753 | J37: 0.008841820944 | K37: 4807.430208 | L37: 400.619184
B38: Customer 7 | D38: 6770068.228 | E38: 6770068.228 | J38: 0.02157204789 | K38: 11729.04488 | L38: 977.4204065
B39: Customer 8 | D39: 2966463.314 | E39: 2966463.314 | J39: 0.009452295974 | K39: =+J39*$D$26 -> 5139.354607 | L39: =+K39/12 -> 428.2795505
B40: Customer 9 | D40: 5992308.484 | E40: 5992308.484 | J40: 0.01909380544 | K40: 10381.58742 | L40: 865.1322848
B41: Customer 10 | D41: 2375029.084 | E41: 2375029.084 | J41: 0.007567758464 | K41: 4114.703394 | L41: 342.8919495
B42: Customer 11 | D42: 3216399.428 | E42: 3216399.428 | J42: 0.01024868881 | K42: 5572.365295 | L42: 464.3637746
B43: Customer 12 | D43: 15509176.03 | E43: 15509176.03 | J43: 0.04941821511 | K43: =+J43*$D$26 -> 26869.42222 | L43: =+K43/12 -> 2239.118519
B44: Customer 13 | D44: 1799641.08 | E44: 1799641.08 | J44: 0.005734350414 | K44: 3117.852033 | L44: 259.8210027
B45: Customer 14 | D45: 3718251.001 | E45: 3718251.001 | J45: 0.01184778143 | K45: 6441.815856 | L45: 536.817988
B46: Customer 15 | D46: 5149166.643 | E46: 5149166.643 | J46: 0.01640723042 | K46: 8920.856423 | L46: 743.4047019
B47: Customer 16 | D47: 5174786.786 | E47: 5174786.786 | J47: 0.01648886608 | K47: 8965.242949 | L47: 747.1035791
B48: Customer 17 | D48: 4718362.933 | E48: 4718362.933 | J48: 0.01503452369 | K48: 8174.495253 | L48: 681.2079378
B49: Customer 18 | D49: 5775894.773 | E49: 5775894.773 | J49: 0.01840422791 | K49: 10006.65381 | L49: 833.8878172
B50: Customer 19 | D50: 1369819.169 | E50: 1369819.169 | J50: 0.004364772071 | K50: 2373.191816 | L50: 197.7659847
B51: Customer 20 | D51: 3237959.996 | E51: 3237959.996 | J51: 0.01031738909 | K51: 5609.718665 | L51: 467.4765554
B52: Customer 21 | D52: 4894961.587 | E52: 4894961.587 | J52: 0.01559723509 | K52: 8480.449855 | L52: 706.7041546
B53: Customer 22 | D53: 3950390.132 | E53: 3950390.132 | J53: 0.01258746621 | K53: 6843.993528 | L53: 570.332794
B54: Customer 23 | D54: 2029895.631 | E54: 2029895.631 | J54: 0.0064680302 | K54: 3516.764699 | L54: 293.0637249
B55: Customer 24 | D55: 2018129.481 | E55: 2018129.481 | J55: 0.006430538707 | K55: 3496.380014 | L55: 291.3650012
B56: Customer 25 | D56: 617671.1956 | E56: 617671.1956 | J56: 0.001968138601 | K56: 1070.106375 | L56: 89.17553129
B57: Customer 26 | D57: 4331706.989 | E57: 4331706.989 | J57: 0.01380248876 | K57: 7504.619445 | L57: 625.3849538
B58: Customer 27 | D58: 6246686.591 | E58: 6246686.591 | J58: 0.01990435217 | K58: 10822.29379 | L58: 901.857816
B59: Customer 28 | D59: 5498219.556 | E59: 5498219.556 | J59: 0.01751944759 | K59: 9525.585525 | L59: 793.7987937
B60: Customer 29 | D60: 2380105.984 | E60: 2380105.984 | J60: 0.007583935425 | K60: 4123.499049 | L60: 343.6249208
B61: Customer 30 | D61: 1719400.266 | E61: 1719400.266 | J61: 0.005478672241 | K61: 2978.835988 | L61: 248.2363324
B62: Customer 31 | D62: 1109140.391 | E62: 1109140.391 | J62: 0.003534148964 | K62: 1921.569618 | L62: 160.1308015
B63: Customer 32 | D63: 3862217.218 | E63: 3862217.218 | J63: 0.01230651331 | K63: 6691.235236 | L63: 557.6029363
B64: Customer 33 | D64: 4255554.054 | E64: 4255554.054 | J64: =IFERROR(+D64/$D$106,0) -> 0.01355983614 | K64: 7372.685592 | L64: 614.390466
B65: Customer 34 | D65: 1447524.793 | E65: 1447524.793 | J65: 0.004612372151 | K65: 2507.815681 | L65: 208.9846401
B66: Customer 35 | D66: 2028168.306 | E66: 2028168.306 | J66: 0.006462526275 | K66: 3513.772133 | L66: 292.8143444
B67: Customer 36 | D67: 4195985.476 | E67: 4195985.476 | J67: 0.01337002768 | K67: 7269.483896 | L67: 605.7903247
B68: Customer 37 | D68: 3329162.807 | E68: 3329162.807 | J68: 0.01060799641 | K68: 5767.726211 | L68: 480.6438509
B69: Customer 38 | D69: 1408076.138 | E69: 1408076.138 | J69: 0.004486673523 | K69: 2439.471458 | L69: 203.2892882
B70: Customer 39 | D70: 4504174.559 | E70: 4504174.559 | J70: 0.01435203694 | K70: 7803.417006 | L70: 650.2847505
B71: Customer 40 | D71: 4129830.852 | E71: 4129830.852 | J71: 0.01315923354 | K71: 7154.87197 | L71: 596.2393308
B72: Customer 41 | D72: 2752830.829 | E72: 2752830.829 | J72: 0.008771580502 | K72: 4769.23943 | L72: 397.4366192
B73: Customer 42 | D73: 7868059.367 | E73: 7868059.367 | J73: 0.02507067103 | K73: 13631.29858 | L73: 1135.941548
B74: Customer 43 | D74: 3156083.868 | E74: 3156083.868 | J74: 0.01005650018 | K74: 5467.869463 | L74: 455.6557886
B75: Customer 44 | D75: 4661981.916 | E75: 4661981.916 | J75: 0.01485487202 | K75: 8076.815959 | L75: 673.0679966
B76: Customer 45 | D76: 4771711.454 | E76: 4771711.454 | J76: 0.01520451264 | K76: 8266.92079 | L76: 688.9100658
B77: Customer 46 | D77: 2600263.288 | E77: 2600263.288 | J77: 0.008285441486 | K77: 4504.91838 | L77: 375.409865
B78: Customer 47 | D78: 2780357.405 | E78: 2780357.405 | J78: 0.008859290786 | K78: 4816.928822 | L78: 401.4107352
B79: Customer 48 | D79: 3256262.215 | E79: 3256262.215 | J79: 0.01037570702 | K79: 5641.426994 | L79: 470.1189162
B80: Customer 49 | D80: 5283338.941 | E80: 5283338.941 | J80: 0.0168347551 | K80: 9153.307981 | L80: 762.7756651
B81: Customer 50 | D81: 2912704.766 | E81: 2912704.766 | J81: 0.00928100051 | K81: 5046.218703 | L81: 420.5182252
B82: Customer 51 | D82: 3173277.529 | E82: 3173277.529 | J82: 0.01011128581 | K82: 5497.65723 | L82: 458.1381025
B83: Customer 52 | D83: 3422266.963 | E83: 3422266.963 | J83: 0.01090466216 | K83: 5929.027809 | L83: 494.0856508
B84: Customer 53 | D84: 4300190.54 | E84: 4300190.54 | J84: 0.0137020652 | K84: 7450.017656 | L84: 620.8348046
B85: Customer 54 | D85: 2691099.195 | E85: 2691099.195 | J85: 0.008574879713 | K85: 4662.290271 | L85: 388.5241892
B86: Customer 55 | D86: 3096243.842 | E86: 3096243.842 | J86: 0.009865826779 | K86: 5364.197487 | L86: 447.0164572
B87: Customer 56 | D87: 9209604.199 | E87: 9209604.199 | J87: 0.02934535016 | K87: 15955.50551 | L87: 1329.62546
B88: Customer 57 | D88: 6208431.027 | E88: 6208431.027 | J88: 0.0197824552 | K88: 10756.01658 | L88: 896.3347153
B89: Customer 58 | D89: 2754773.195 | E89: 2754773.195 | J89: 0.008777769627 | K89: 4772.60455 | L89: 397.7170458
B90: Customer 59 | D90: 5485076.815 | E90: 5485076.815 | J90: 0.01747756975 | K90: 9502.815917 | L90: 791.9013264
B91: Customer 60 | D91: 2998332.366 | E91: 2998332.366 | J91: 0.009553843062 | K91: 5194.567277 | L91: 432.8806064
B92: Customer 61 | D92: 5503266.94 | E92: 5503266.94 | J92: 0.01753553051 | K92: 9534.330045 | L92: 794.5275038
B93: Customer 62 | D93: 4702419.375 | E93: 4702419.375 | J93: 0.01498372136 | K93: 8146.87327 | L93: 678.9061058
B94: Customer 63 | D94: 10467199.54 | E94: 10467199.54 | J94: 0.03335253384 | K94: 18134.27118 | L94: 1511.189265
B95: Customer 64 | D95: 1447248.128 | E95: 1447248.128 | J95: 0.004611490587 | K95: 2507.336361 | L95: 208.9446968
B96: Customer 65 | D96: =SUM(E96:I96) -> 8867690.85 | E96: 8867690.85 | J96: =IFERROR(+D96/$D$106,0) -> 0.02825588239 | K96: 15363.1456 | L96: 1280.262134
B97: Customer 66 | D97: 4066477.47 | E97: 4066477.47 | J97: 0.01295736524 | K97: 7045.113156 | L97: 587.092763
B98: Customer 67 | D98: 6114189.738 | E98: 6114189.738 | J98: 0.01948216611 | K98: 10592.74492 | L98: 882.7287432
B99: Customer 68 | D99: 7752468.299 | E99: 7752468.299 | J99: 0.02470235332 | K99: 13431.03873 | L99: 1119.253228
B100: Customer 69 | D100: 2660559.3 | E100: 2660559.3 | J100: 0.008477567832 | K100: 4609.380346 | L100: 384.1150289
B101: Customer 70 | D101: 5166515.417 | E101: 5166515.417 | J101: 0.0164625103 | K101: 8950.912921 | L101: 745.9094101
B102: Customer 71 | D102: 2411813.946 | E102: 2411813.946 | J102: 0.007684969219 | K102: 4178.432633 | L102: 348.2027195
B103: Customer 72 | D103: 4947601.555 | E103: 4947601.555 | J103: 0.01576496633 | K103: 8571.647835 | L103: 714.3039863
B104: Customer 73 | D104: 4661448.926 | E104: 4661448.926 | J104: 0.01485317371 | K104: 8075.892563 | L104: 672.9910469
B105: Customer 74 | D105: 5414482.26 | E105: 5414482.26 | J105: 0.01725262828 | K105: 9380.511877 | L105: 781.7093231
B106: Total | D106: =SUM(D32:D105) -> 313835212.3 | E106: =SUM(E32:E105) -> 313835212.3 | F106: =SUM(F32:F42) -> 0 | G106: =SUM(G32:G38) -> 0 | H106: 0 | I106: 0 | J106: =SUM(J32:J105) -> 1 | K106: =SUM(K32:K105) -> 543714.9472

Sheet 6B. GA Allocation_new Class B
A1: Back to Index
B2: =+'1. Information Sheet'!B2 -> INCENTIVE REGULATION MODEL FOR 2019 FILERS
B12: This tab allocates the GA balance to former Class A customers who contributed to the current Class B GA balance once switched to Class B customers. The tables below calculate specific amounts for each customer who made the transition. Consistent with both decisions for 2016 rates and EDDVAR, distributors are generally expected to settle the amount through 12 equal adjustments to bills. A one-time settlement is acceptable if the affected customer has expressed a clear preference for this approach. (see Filing Requirements section 3.2.5.2)
B14: Year of Group 1 Account Balance Last Disposed | C14: 2016 | D14: (e.g. If in the 2017 EDR process, you received approval to dispose the GA variance account balance as of December 31, 2014, please enter 2014 in cell C16.)
B16: Allocation of total Non-RPP consumption (kWh) between Class B and New Class B (Former Class A) customers
D17: Total | E17: 2017 | F17: 2015 | G17: 2014 | H17: 2013 | I17: 2012
B18: Total Class B Consumption for Years Since Last Disposition (Non-RPP consumption LESS WMP and Class A) | C18: A | D18: =SUM(E18:I18) -> 3199286466 | E18: ='6. GA Calculation'!C29-'6. GA Calculation'!E29 -> 3199286466
B19: New Class B Customer(s)' Consumption | C19: B | D19: =SUM(E19:I19) -> 58576330.27 | E19: ='6. GA Calculation'!H29 -> 58576330.27 | F19: =F44 -> 0 | G19: =G44 -> 0 | H19: =H44 -> 0 | I19: =I44 -> 0
B20: Portion of Consumption of New Class B Customers | C20: C=B/A | D20: =IFERROR(+D19/D18,0) -> 0.01830918578
B23: Allocation of Total GA Balance $
B25: Total GA Calss B Balance adjusted for Class A | C25: D | D25: ='6A. GA Allocation_Class A'!D25 -> 5542717.336
B26: New Class B Customer(s)' Former Class A Portion of GA Balance attributable to Class B | C26: E=C*D | D26: =+D20*D25 -> 101482.6414
B27: New Class A Customer(s)' Former Class B Portion of GA Balance | C27: F=Sheet 6A | D27: ='6A. GA Allocation_Class A'!D26 -> 543714.9472
B28: GA Balance to be disposed to Current Class B Customers | C28: G=D-E-F | D28: =+D25-D26-D27 -> 4897519.748 | E28: Input into Sheet 6. GA Calculation | O28: s
B30: Allocation of GA Balances to Former Class A Customers
B31: # of Former Class B customer(s) | F31: 9
B32: Customer | D32: Total Metered kWh Consumption for each new Class B customer for the period after becoming Class B | E32: Metered kWh Consumption for each new Class B customer for the period after becoming Class B in 2017 | F32: Metered kWh Consumption for each new Class B customer for the period prior to becoming Class B in 2015 | G32: Metered kWh Consumption for each new Class B customer for the period prior to becoming Class B in 2014 | H32: Metered kWh Consumption for each new Class B customer for the period prior to becoming Class B in 2013 | I32: Metered kWh Consumption for each new Class B customer for the period prior to becoming Class B in 2012 | J32: % of kWh | K32: Customer specific GA allocation for the period after becoming Class B | L32: Monthly Equal Payments
B33: Customer 1 | D33: =SUM(E33:I33) -> 28015213.33 | E33: 28015213.33 | J33: =IFERROR(+D33/$D$44,0) -> 0.4779928365 | K33: =+J33*$D$26 -> 48507.97564 | L33: =+K33/12 -> 4042.331303
B34: Customer 2 | D34: 30594897.94 | E34: 30594897.94 | J34: =IFERROR(+D34/$D$44,0) -> 0.5220071635 | K34: =+J34*$D$26 -> 52974.6658 | L34: =+K34/12 -> 4414.555484
J35: =IFERROR(+D35/$D$44,0) -> 0 | K35: =+J35*$D$26 -> 0 | L35: 0
J36: 0 | K36: 0 | L36: 0
J37: 0 | K37: 0 | L37: 0
J38: 0 | K38: 0 | L38: 0
J39: 0 | K39: 0 | L39: 0
J40: 0 | K40: 0 | L40: 0
J41: 0 | K41: 0 | L41: 0
J42: 0 | K42: 0 | L42: 0
J43: 0 | K43: 0 | L43: 0
B44: Total | D44: =SUM(D33:D43) -> 58610111.27 | E44: =SUM(E33:E43) -> 58610111.27 | F44: =SUM(F33:F43) -> 0 | G44: =SUM(G33:G39) -> 0 | H44: 0 | I44: 0 | J44: =SUM(J33:J43) -> 1 | K44: =SUM(K33:K43) -> 101482.6414

Sheet 7. CBR Allocation
A1: Back to Index
B2: =+'1. Information Sheet'!B2 -> INCENTIVE REGULATION MODEL FOR 2019 FILERS
B13: The purpose of this tab is to calculate the CBR rate riders for all current Class B customers of the distributor. Identify and input the total billed consumption for former Class B customers prior to becoming Class A customers in Column H.
B15: Account 1580
B16: Variance WMS – Sub-account CBR Class A | C16: ='3. Continuity Schedule'!CN24 -> 0
B17: Variance WMS – Sub-account CBR Class B | C17: ='3. Continuity Schedule'!CN25 -> 38392.70936
C19: Total Metered LESS WMP | E19: Total Metered Class A Consumption/Demand in 2017 (partial and/or full year Class A customers)* | G19: Total Metered Consumption/Demand for New Class A customer(s) in the period prior to becoming Class A (i.e. Jan 1 - Jun 30, 2017) | I19: Total Metered Consumption for New Class B customer(s) in the period after becoming Class B (i.e. Jul 1 - Dec 31, 2017) | K19: Metered Consumption for Current Class B Customers (metered consumption/demand LESS WMP, Class A and new Class A's former Class B, if applicable) | M19: % of total kWh | N19: Total CBR $ allocated to Current Class B Customers | O19: CBR Rate Rider | Q19: Revenue Reconciliation | R19: Variance
C20: kWh | D20: kW | E20: kWh | F20: kW | G20: kWh | H20: kW | I20: kWh | J20: kW | K20: kWh | L20: kW
B22: ='4. Billing Det. for Def-Var'!B17 -> RESIDENTIAL SERVICE CLASSIFICATION | C22: ='4. Billing Det. for Def-Var'!D17-'4. Billing Det. for Def-Var'!H17 -> 1440461108 | D22: ='4. Billing Det. for Def-Var'!E17-'4. Billing Det. for Def-Var'!I17 -> 0 | E22: ='6. GA Calculation'!E17 -> 0 | G22: ='6. GA Calculation'!G17 -> 0 | I22: ='6. GA Calculation'!H17 -> 0 | K22: =C22-E22-G22-I22 -> 1440461108 | L22: =ROUND(D22-F22-H22-J22,0) -> 0 | M22: =IFERROR(K22/K$34,"") -> 0.2762184637 | N22: =IFERROR(N$34*M22,"") -> 9897.874438 | O22: =IFERROR(IF(L22=0,N22/K22,N22/L22),"") -> 6.871323622e-06 | P22: kwh | Q22: =IFERROR(IF(L22=0,ROUND(O22,5)*K22,ROUND(O22,5)*L22),"") -> 14404.61108 | R22: =IFERROR(N22-Q22,"") -> -4506.736642
B23: ='4. Billing Det. for Def-Var'!B18 -> GENERAL SERVICE LESS THAN 50 kW SERVICE CLASSIFICATION | C23: ='4. Billing Det. for Def-Var'!D18-'4. Billing Det. for Def-Var'!H18 -> 618679646.4 | D23: ='4. Billing Det. for Def-Var'!E18-'4. Billing Det. for Def-Var'!I18 -> 0 | E23: ='6. GA Calculation'!E18 -> 0 | G23: ='6. GA Calculation'!G18 -> 0 | I23: ='6. GA Calculation'!H18 -> 0 | K23: =C23-E23-G23-I23 -> 618679646.4 | L23: 0 | M23: =IFERROR(K23/K$34,"") -> 0.1186361371 | N23: =IFERROR(N$34*M23,"") -> 4251.148069 | O23: =IFERROR(IF(L23=0,N23/K23,N23/L23),"") -> 6.871323622e-06 | P23: kwh | Q23: =IFERROR(IF(L23=0,ROUND(O23,5)*K23,ROUND(O23,5)*L23),"") -> 6186.796464 | R23: =IFERROR(N23-Q23,"") -> -1935.648395
B24: ='4. Billing Det. for Def-Var'!B19 -> GENERAL SERVICE 50 to 499 kW SERVICE CLASSIFICATION | C24: ='4. Billing Det. for Def-Var'!D19-'4. Billing Det. for Def-Var'!H19 -> 1991646559 | D24: ='4. Billing Det. for Def-Var'!E19-'4. Billing Det. for Def-Var'!I19 -> 5773382.202 | E24: ='6. GA Calculation'!E19 -> 0 | G24: ='6. GA Calculation'!G19 -> 0 | I24: ='6. GA Calculation'!H19 -> 0 | K24: 1991646559 | L24: 5773382 | M24: 0.381912118 | N24: 13685.24804 | O24: 0.002370404045 | P24: kW | Q24: 13682.91534 | R24: 2.332704897
B25: ='4. Billing Det. for Def-Var'!B20 -> GENERAL SERVICE 500 to 4,999 kW SERVICE CLASSIFICATION | C25: ='4. Billing Det. for Def-Var'!D20-'4. Billing Det. for Def-Var'!H20 -> 1991041119 | D25: ='4. Billing Det. for Def-Var'!E20-'4. Billing Det. for Def-Var'!I20 -> 4581930.715 | E25: ='6. GA Calculation'!E20 -> 539356029.3 | F25: 1131282.5 | G25: ='6. GA Calculation'!G20 -> 313835212.3 | H25: 643137.5327 | I25: ='6. GA Calculation'!H20 -> 0 | K25: 1137849878 | L25: 2807511 | M25: 0.2181906498 | N25: 7818.534743 | O25: 0.00278486344 | P25: kW | Q25: 7804.88058 | R25: 13.65416269
B26: ='4. Billing Det. for Def-Var'!B21 -> LARGE USE SERVICE CLASSIFICATION | C26: ='4. Billing Det. for Def-Var'!D21-'4. Billing Det. for Def-Var'!H21 -> 981267691.3 | D26: ='4. Billing Det. for Def-Var'!E21-'4. Billing Det. for Def-Var'!I21 -> 1753815.619 | E26: ='6. GA Calculation'!E21 -> 922691360.9 | F26: 1625696.136 | G26: ='6. GA Calculation'!G21 -> 0 | I26: ='6. GA Calculation'!H21 -> 58576330.27 | J26: 128119.4831 | K26: 0.1189640835 | L26: 0 | M26: 2.281219271e-11 | N26: 8.174407171e-07 | O26: 6.871323622e-06 | P26: kwh | Q26: 1.189640835e-06 | R26: -3.722001178e-07
B27: ='4. Billing Det. for Def-Var'!B22 -> STANDBY POWER SERVICE CLASSIFICATION | C27: ='4. Billing Det. for Def-Var'!D22-'4. Billing Det. for Def-Var'!H22 -> 0 | D27: ='4. Billing Det. for Def-Var'!E22-'4. Billing Det. for Def-Var'!I22 -> 0 | E27: ='6. GA Calculation'!E22 -> 0 | G27: ='6. GA Calculation'!G22 -> 0 | I27: ='6. GA Calculation'!H22 -> 0 | K27: 0 | L27: 0 | M27: 0 | N27: 0 | P27: kW
B28: ='4. Billing Det. for Def-Var'!B23 -> UNMETERED SCATTERED LOAD SERVICE CLASSIFICATION | C28: ='4. Billing Det. for Def-Var'!D23-'4. Billing Det. for Def-Var'!H23 -> 11421124.46 | D28: ='4. Billing Det. for Def-Var'!E23-'4. Billing Det. for Def-Var'!I23 -> 0 | E28: ='6. GA Calculation'!E23 -> 0 | G28: ='6. GA Calculation'!G23 -> 0 | I28: ='6. GA Calculation'!H23 -> 0 | K28: 11421124.46 | L28: 0 | M28: =IFERROR(K28/K$34,"") -> 0.00219008027 | N28: 78.47824228 | O28: 6.871323622e-06 | P28: kW | Q28: 114.2112446 | R28: -35.7330023
B29: ='4. Billing Det. for Def-Var'!B24 -> STREET LIGHTING SERVICE CLASSIFICATION | C29: ='4. Billing Det. for Def-Var'!D24-'4. Billing Det. for Def-Var'!H24 -> 14875866.2 | D29: ='4. Billing Det. for Def-Var'!E24-'4. Billing Det. for Def-Var'!I24 -> 41239.54618 | E29: ='6. GA Calculation'!E24 -> 0 | G29: ='6. GA Calculation'!G24 -> 0 | I29: ='6. GA Calculation'!H24 -> 0 | K29: 14875866.2 | L29: 41240 | M29: 0.002852551093 | N29: 102.2168908 | O29: 0.002478586101 | P29: kW | Q29: 102.2752 | R29: -0.05830920058
B30: ='4. Billing Det. for Def-Var'!B25 -> 0
C34: =SUM(C22:C33) -> 7049393114 | D34: =SUM(D22:D33) -> 12150368.08 | E34: 1462047390 | F34: 2756978.636 | G34: 313835212.3 | H34: 643137.5327 | I34: 58576330.27 | J34: 128119.4831 | K34: 5214934181 | L34: 8622133 | M34: 1 | N34: ='7B. CBR Allocation_new Class B'!D28 -> 35833.50043 | Q34: =SUM(Q22:Q33) -> 42295.68991 | R34: =SUM(R22:R33) -> -6462.189482
N35: from Sheet 7B
Q36: NOTE: if rate rider is at 5 decimal places, then the balance dispostion is in full
B37: *For new Class A customers (who became Class A in 2017), add their consumption only related to July to December period.

Sheet 7A. CBR Allocation_Class A
A1: Back to Index
B2: =+'1. Information Sheet'!B2 -> INCENTIVE REGULATION MODEL FOR 2019 FILERS
B12: This tab allocates the CBR balance to former Class B customers who contributed to the current CBR balance but are now Class A customers. The tables below calculate specific amounts for each customer who made the change. Consistent with both decisions for 2016 rates and EDDVAR, distributors are generally expected to settle the amount through 12 equal adjustments to bills. A one-time settlement is acceptable if the affected customer has expressed a clear preference for this approach. (see Filing Requirements section 3.2.5.2)
B14: Year of Group 1 Account Balance Last Disposed | C14: 2016
B16: Allocation of total Non-RPP consumption (kWh) between Class B and New Class A (Former Class B) customers
D17: Total | E17: 2017
B18: Total MeteredConsumption for Years Since Last Disposition (consumption LESS WMP and Class A) | C18: A | D18: =SUM(E18:I18) -> 5587345724 | E18: ='7. CBR Allocation'!C34-'7. CBR Allocation'!E34 -> 5587345724
B19: New Class A Customer(s)' Former Class B Consumption | C19: B | D19: =SUM(E19:I19) -> 313835212.3 | E19: ='7. CBR Allocation'!G34 -> 313835212.3
B20: Portion of Consumption of Former Class B Customers | C20: C=B/A | D20: =IFERROR(+D19/D18,0) -> 0.05616892668
B23: Allocation of Total CBR Class B Balance $
B25: Total CBR-Class B Balance | C25: D | D25: ='7. CBR Allocation'!C17 -> 38392.70936
B26: New Class A Customer(s)' Former Class B Portion of CBR-Class B Balance | C26: E=C*D | D26: =+D20*D25 -> 2156.477277
B27: CBR-Class B Balance to be disposed to Current Class B Customers (if no Class A to Class B Transition Customers) | C27: F=D-E | D27: =+D25-D26 -> 36236.23208 | O27: s
B29: Allocation of CBR Class B Balances to Former Class B Customers
B31: # of Former Class B customer(s) | E31: 2
B32: Customer | D32: Total Metered kWh Consumption for each new Class A customer for the period prior to becoming Class A | E32: Metered kWh Consumption for each new Class A customer for the period prior to becoming Class A in 2017 | J32: % of kWh | K32: Customer specific CBR-Class B allocation for the period prior to becoming Class A | L32: Monthly Equal Payments
B33: Customer 1 | D33: =SUM(E33:I33) -> 5382021.043 | E33: ='6A. GA Allocation_Class A'!E32 -> 5382021.043 | J33: =IFERROR(+D33/$D$107,0) -> 0.01714919433 | K33: =+J33*$D$26 -> 36.98184789 | L33: =+K33/12 -> 3.081820657
B34: Customer 2 | D34: 2398548.876 | E34: ='6A. GA Allocation_Class A'!E33 -> 2398548.876 | J34: 0.00764270159 | K34: =+J34*$D$26 -> 16.48131231 | L34: =+K34/12 -> 1.373442693
B35: Customer 3 | D35: 4653971.692 | E35: ='6A. GA Allocation_Class A'!E34 -> 4653971.692 | J35: 0.01482934836 | K35: 31.97915277 | L35: 2.664929398
B36: Customer 4 | D36: 5067324.947 | E36: ='6A. GA Allocation_Class A'!E35 -> 5067324.947 | J36: 0.01614645122 | K36: 34.81945516 | L36: 2.901621263
B37: Customer 5 | D37: 4261870.588 | E37: ='6A. GA Allocation_Class A'!E36 -> 4261870.588 | J37: 0.01357996305 | K37: 29.28488175 | L37: 2.440406812
B38: Customer 6 | D38: 2774874.753 | E38: ='6A. GA Allocation_Class A'!E37 -> 2774874.753 | J38: 0.008841820944 | K38: 19.06718595 | L38: 1.588932163
B39: Customer 7 | D39: 6770068.228 | E39: ='6A. GA Allocation_Class A'!E38 -> 6770068.228 | J39: 0.02157204789 | K39: 46.51963108 | L39: 3.876635924
B40: Customer 8 | D40: 2966463.314 | E40: ='6A. GA Allocation_Class A'!E39 -> 2966463.314 | J40: 0.009452295974 | K40: 20.38366148 | L40: 1.698638457
B41: Customer 9 | D41: 5992308.484 | E41: ='6A. GA Allocation_Class A'!E40 -> 5992308.484 | J41: 0.01909380544 | K41: 41.17535756 | L41: 3.431279797
B42: Customer 10 | D42: 2375029.084 | E42: ='6A. GA Allocation_Class A'!E41 -> 2375029.084 | J42: 0.007567758464 | K42: 16.31969916 | L42: 1.35997493
B43: Customer 11 | D43: 3216399.428 | E43: ='6A. GA Allocation_Class A'!E42 -> 3216399.428 | J43: 0.01024868881 | K43: 22.10106453 | L43: 1.841755378
B44: Customer 12 | D44: 15509176.03 | E44: ='6A. GA Allocation_Class A'!E43 -> 15509176.03 | J44: =IFERROR(+D44/$D$107,0) -> 0.04941821511 | K44: =+J44*$D$26 -> 106.569258 | L44: =+K44/12 -> 8.880771497
B45: Customer 13 | D45: 1799641.08 | E45: ='6A. GA Allocation_Class A'!E44 -> 1799641.08 | J45: 0.005734350414 | K45: 12.36599637 | L45: 1.030499697
B46: Customer 14 | D46: 3718251.001 | E46: ='6A. GA Allocation_Class A'!E45 -> 3718251.001 | J46: 0.01184778143 | K46: 25.54947144 | L46: 2.12912262
B47: Customer 15 | D47: 5149166.643 | E47: ='6A. GA Allocation_Class A'!E46 -> 5149166.643 | J47: 0.01640723042 | K47: 35.38181958 | L47: 2.948484965
B48: Customer 16 | D48: 5174786.786 | E48: ='6A. GA Allocation_Class A'!E47 -> 5174786.786 | J48: 0.01648886608 | K48: 35.55786502 | L48: 2.963155418
B49: Customer 17 | D49: 4718362.933 | E49: ='6A. GA Allocation_Class A'!E48 -> 4718362.933 | J49: 0.01503452369 | K49: 32.4216087 | L49: 2.701800725
B50: Customer 18 | D50: 5775894.773 | E50: ='6A. GA Allocation_Class A'!E49 -> 5775894.773 | J50: 0.01840422791 | K50: 39.68829928 | L50: 3.307358274
B51: Customer 19 | D51: 1369819.169 | E51: ='6A. GA Allocation_Class A'!E50 -> 1369819.169 | J51: 0.004364772071 | K51: 9.412531789 | L51: 0.7843776491
B52: Customer 20 | D52: 3237959.996 | E52: ='6A. GA Allocation_Class A'!E51 -> 3237959.996 | J52: 0.01031738909 | K52: 22.24921513 | L52: 1.854101261
B53: Customer 21 | D53: 4894961.587 | E53: ='6A. GA Allocation_Class A'!E52 -> 4894961.587 | J53: 0.01559723509 | K53: 33.63508306 | L53: 2.802923588
B54: Customer 22 | D54: 3950390.132 | E54: ='6A. GA Allocation_Class A'!E53 -> 3950390.132 | J54: 0.01258746621 | K54: 27.14458486 | L54: 2.262048739
B55: Customer 23 | D55: 2029895.631 | E55: ='6A. GA Allocation_Class A'!E54 -> 2029895.631 | J55: 0.0064680302 | K55: 13.94816015 | L55: 1.162346679
B56: Customer 24 | D56: 2018129.481 | E56: ='6A. GA Allocation_Class A'!E55 -> 2018129.481 | J56: 0.006430538707 | K56: 13.8673106 | L56: 1.155609217
B57: Customer 25 | D57: 617671.1956 | E57: ='6A. GA Allocation_Class A'!E56 -> 617671.1956 | J57: 0.001968138601 | K57: 4.24424617 | L57: 0.3536871809
B58: Customer 26 | D58: 4331706.989 | E58: ='6A. GA Allocation_Class A'!E57 -> 4331706.989 | J58: 0.01380248876 | K58: 29.76475337 | L58: 2.480396114
B59: Customer 27 | D59: 6246686.591 | E59: ='6A. GA Allocation_Class A'!E58 -> 6246686.591 | J59: 0.01990435217 | K59: 42.92328317 | L59: 3.576940265
B60: Customer 28 | D60: 5498219.556 | E60: ='6A. GA Allocation_Class A'!E59 -> 5498219.556 | J60: 0.01751944759 | K60: 37.78029064 | L60: 3.148357554
B61: Customer 29 | D61: 2380105.984 | E61: ='6A. GA Allocation_Class A'!E60 -> 2380105.984 | J61: 0.007583935425 | K61: 16.35458441 | L61: 1.362882034
B62: Customer 30 | D62: 1719400.266 | E62: ='6A. GA Allocation_Class A'!E61 -> 1719400.266 | J62: 0.005478672241 | K62: 11.81463219 | L62: 0.9845526829
B63: Customer 31 | D63: 1109140.391 | E63: ='6A. GA Allocation_Class A'!E62 -> 1109140.391 | J63: 0.003534148964 | K63: 7.621311935 | L63: 0.6351093279
B64: Customer 32 | D64: 3862217.218 | E64: ='6A. GA Allocation_Class A'!E63 -> 3862217.218 | J64: 0.01230651331 | K64: 26.53871632 | L64: 2.211559693
B65: Customer 33 | D65: 4255554.054 | E65: ='6A. GA Allocation_Class A'!E64 -> 4255554.054 | J65: 0.01355983614 | K65: 29.24147852 | L65: 2.436789876
B66: Customer 34 | D66: 1447524.793 | E66: ='6A. GA Allocation_Class A'!E65 -> 1447524.793 | J66: 0.004612372151 | K66: 9.946475736 | L66: 0.828872978
B67: Customer 35 | D67: 2028168.306 | E67: ='6A. GA Allocation_Class A'!E66 -> 2028168.306 | J67: 0.006462526275 | K67: 13.93629106 | L67: 1.161357589
B68: Customer 36 | D68: 4195985.476 | E68: ='6A. GA Allocation_Class A'!E67 -> 4195985.476 | J68: 0.01337002768 | K68: 28.83216089 | L68: 2.402680074
B69: Customer 37 | D69: 3329162.807 | E69: ='6A. GA Allocation_Class A'!E68 -> 3329162.807 | J69: 0.01060799641 | K69: 22.87590322 | L69: 1.906325269
B70: Customer 38 | D70: 1408076.138 | E70: ='6A. GA Allocation_Class A'!E69 -> 1408076.138 | J70: 0.004486673523 | K70: 9.675409502 | L70: 0.8062841251
B71: Customer 39 | D71: 4504174.559 | E71: ='6A. GA Allocation_Class A'!E70 -> 4504174.559 | J71: 0.01435203694 | K71: 30.94984153 | L71: 2.579153461
B72: Customer 40 | D72: 4129830.852 | E72: ='6A. GA Allocation_Class A'!E71 -> 4129830.852 | J72: 0.01315923354 | K72: 28.37758811 | L72: 2.364799009
B73: Customer 41 | D73: 2752830.829 | E73: ='6A. GA Allocation_Class A'!E72 -> 2752830.829 | J73: 0.008771580502 | K73: 18.91571404 | L73: 1.576309503
B74: Customer 42 | D74: 7868059.367 | E74: ='6A. GA Allocation_Class A'!E73 -> 7868059.367 | J74: 0.02507067103 | K74: 54.0643324 | L74: 4.505361034
B75: Customer 43 | D75: 3156083.868 | E75: ='6A. GA Allocation_Class A'!E74 -> 3156083.868 | J75: 0.01005650018 | K75: 21.68661412 | L75: 1.807217843
B76: Customer 44 | D76: 4661981.916 | E76: ='6A. GA Allocation_Class A'!E75 -> 4661981.916 | J76: 0.01485487202 | K76: 32.03419397 | L76: 2.669516164
B77: Customer 45 | D77: 4771711.454 | E77: ='6A. GA Allocation_Class A'!E76 -> 4771711.454 | J77: 0.01520451264 | K77: 32.78818602 | L77: 2.732348835
B78: Customer 46 | D78: 2600263.288 | E78: ='6A. GA Allocation_Class A'!E77 -> 2600263.288 | J78: 0.008285441486 | K78: 17.86736629 | L78: 1.488947191
B79: Customer 47 | D79: 2780357.405 | E79: ='6A. GA Allocation_Class A'!E78 -> 2780357.405 | J79: 0.008859290786 | K79: 19.10485927 | L79: 1.592071606
B80: Customer 48 | D80: 3256262.215 | E80: ='6A. GA Allocation_Class A'!E79 -> 3256262.215 | J80: 0.01037570702 | K80: 22.37497642 | L80: 1.864581368
B81: Customer 49 | D81: 5283338.941 | E81: ='6A. GA Allocation_Class A'!E80 -> 5283338.941 | J81: 0.0168347551 | K81: 36.30376684 | L81: 3.025313903
B82: Customer 50 | D82: 2912704.766 | E82: ='6A. GA Allocation_Class A'!E81 -> 2912704.766 | J82: 0.00928100051 | K82: 20.01426671 | L82: 1.667855559
B83: Customer 51 | D83: 3173277.529 | E83: ='6A. GA Allocation_Class A'!E82 -> 3173277.529 | J83: 0.01011128581 | K83: 21.80475809 | L83: 1.817063174
B84: Customer 52 | D84: 3422266.963 | E84: ='6A. GA Allocation_Class A'!E83 -> 3422266.963 | J84: 0.01090466216 | K84: 23.51565615 | L84: 1.959638013
B85: Customer 53 | D85: 4300190.54 | E85: ='6A. GA Allocation_Class A'!E84 -> 4300190.54 | J85: 0.0137020652 | K85: 29.54819224 | L85: 2.462349354
B86: Customer 54 | D86: 2691099.195 | E86: ='6A. GA Allocation_Class A'!E85 -> 2691099.195 | J86: 0.008574879713 | K86: 18.49153325 | L86: 1.540961105
B87: Customer 55 | D87: 3096243.842 | E87: ='6A. GA Allocation_Class A'!E86 -> 3096243.842 | J87: 0.009865826779 | K87: 21.27543127 | L87: 1.772952606
B88: Customer 56 | D88: 9209604.199 | E88: ='6A. GA Allocation_Class A'!E87 -> 9209604.199 | J88: 0.02934535016 | K88: 63.28258081 | L88: 5.273548401
B89: Customer 57 | D89: 6208431.027 | E89: ='6A. GA Allocation_Class A'!E88 -> 6208431.027 | J89: 0.0197824552 | K89: 42.66041512 | L89: 3.555034593
B90: Customer 58 | D90: 2754773.195 | E90: ='6A. GA Allocation_Class A'!E89 -> 2754773.195 | J90: 0.008777769627 | K90: 18.92906074 | L90: 1.577421729
B91: Customer 59 | D91: 5485076.815 | E91: ='6A. GA Allocation_Class A'!E90 -> 5485076.815 | J91: 0.01747756975 | K91: 37.68998203 | L91: 3.140831836
B92: Customer 60 | D92: 2998332.366 | E92: ='6A. GA Allocation_Class A'!E91 -> 2998332.366 | J92: 0.009553843062 | K92: 20.60264547 | L92: 1.716887123
B93: Customer 61 | D93: 5503266.94 | E93: ='6A. GA Allocation_Class A'!E92 -> 5503266.94 | J93: 0.01753553051 | K93: 37.81497308 | L93: 3.151247757
B94: Customer 62 | D94: 4702419.375 | E94: ='6A. GA Allocation_Class A'!E93 -> 4702419.375 | J94: 0.01498372136 | K94: 32.31205464 | L94: 2.69267122
B95: Customer 63 | D95: 10467199.54 | E95: ='6A. GA Allocation_Class A'!E94 -> 10467199.54 | J95: 0.03335253384 | K95: 71.92398135 | L95: 5.993665113
B96: Customer 64 | D96: 1447248.128 | E96: ='6A. GA Allocation_Class A'!E95 -> 1447248.128 | J96: 0.004611490587 | K96: 9.944574664 | L96: 0.8287145554
B97: Customer 65 | D97: =SUM(E97:I97) -> 8867690.85 | E97: ='6A. GA Allocation_Class A'!E96 -> 8867690.85 | J97: 0.02825588239 | K97: 60.93316832 | L97: 5.077764026
B98: Customer 66 | D98: 4066477.47 | E98: ='6A. GA Allocation_Class A'!E97 -> 4066477.47 | J98: 0.01295736524 | K98: 27.9422637 | L98: 2.328521975
B99: Customer 67 | D99: 6114189.738 | E99: ='6A. GA Allocation_Class A'!E98 -> 6114189.738 | J99: 0.01948216611 | K99: 42.01284852 | L99: 3.50107071
B100: Customer 68 | D100: 7752468.299 | E100: ='6A. GA Allocation_Class A'!E99 -> 7752468.299 | J100: 0.02470235332 | K100: 53.27006362 | L100: 4.439171968
B101: Customer 69 | D101: 2660559.3 | E101: ='6A. GA Allocation_Class A'!E100 -> 2660559.3 | J101: 0.008477567832 | K101: 18.28168239 | L101: 1.523473533
B102: Customer 70 | D102: 5166515.417 | E102: ='6A. GA Allocation_Class A'!E101 -> 5166515.417 | J102: 0.0164625103 | K102: 35.50102939 | L102: 2.958419116
B103: Customer 71 | D103: 2411813.946 | E103: ='6A. GA Allocation_Class A'!E102 -> 2411813.946 | J103: 0.007684969219 | K103: 16.57246149 | L103: 1.381038458
B104: Customer 72 | D104: 4947601.555 | E104: ='6A. GA Allocation_Class A'!E103 -> 4947601.555 | J104: 0.01576496633 | K104: 33.99679166 | L104: 2.833065971
B105: Customer 73 | D105: 4661448.926 | E105: ='6A. GA Allocation_Class A'!E104 -> 4661448.926 | J105: 0.01485317371 | K105: 32.03053161 | L105: 2.669210967
B106: Customer 74 | D106: 5414482.26 | E106: ='6A. GA Allocation_Class A'!E105 -> 5414482.26 | J106: 0.01725262828 | K106: 37.20490086 | L106: 3.100408405
B107: Total | D107: =SUM(D33:D106) -> 313835212.3 | E107: =SUM(E33:E106) -> 313835212.3 | F107: =SUM(F33:F43) -> 0 | G107: =SUM(G33:G39) -> 0 | H107: 0 | I107: 0 | J107: =SUM(J33:J106) -> 1 | K107: =SUM(K33:K106) -> 2156.477277

Sheet 7B. CBR Allocation_new Class B
A1: Back to Index
B2: =+'1. Information Sheet'!B2 -> INCENTIVE REGULATION MODEL FOR 2019 FILERS
B12: This tab allocates the CBR-Class B balance to former Class A customers who contributed to the current CBR-Class B balance once switched to Class B customers. The tables below calculate specific amounts for each customer who made the transition. Consistent with both decisions for 2016 rates and EDDVAR, distributors are generally expected to settle the amount through 12 equal adjustments to bills. A one-time settlement is acceptable if the affected customer has expressed a clear preference for this approach. (see Filing Requirements section 3.2.5.2)
B14: Year of Group 1 Account Balance Last Disposed | C14: 2016
B16: Allocation of total Non-RPP consumption (kWh) between Class B and New Class B (Former Class A) customers
D17: Total | E17: 2017 | F17: 2015 | G17: 2014 | H17: 2013 | I17: 2012
B18: Total Class B Consumption for Years Since Last Disposition (Non-RPP consumption LESS WMP and Class A) | C18: A | D18: =SUM(E18:I18) -> 5587345724 | E18: ='7. CBR Allocation'!C34-'7. CBR Allocation'!E34 -> 5587345724
B19: New Class B Customer(s)' Consumption | C19: B | D19: =SUM(E19:I19) -> 58610111.27 | E19: =E43 -> 58610111.27 | F19: =F43 -> 0 | G19: =G43 -> 0 | H19: =H43 -> 0 | I19: =I43 -> 0
B20: Portion of Consumption of New Class B Customers | C20: C=B/A | D20: =IFERROR(+D19/D18,0) -> 0.01048979501
B23: Allocation of Total CBR-Class B Balance $
B25: Total CBR-Calss B Balance adjusted for Class A | C25: D | D25: ='7. CBR Allocation'!C17 -> 38392.70936
B26: New Class B Customer(s)' Former Class A Portion of CBR-Class B Balance attributable to Class B | C26: E=C*D | D26: =D20*D25 -> 402.7316509
B27: New Class A Customer(s)' Former Class B Portion of CBR-Class B Balance | C27: F=Sheet 6A | D27: ='7A. CBR Allocation_Class A'!D26 -> 2156.477277
B28: CBR-Class B Balance to be disposed to Current Class B Customers | C28: G=D-E-F | D28: =+D25-D26-D27 -> 35833.50043 | E28: Input into Sheet 7. CBR Calculation
B30: Allocation of CBR-Class B Balances to Former Class A Customers
B32: # of Former Class B customer(s) | E32: 2
B33: Customer | D33: Total Metered kWh Consumption for each new Class B customer for the period after becoming Class B | E33: Metered kWh Consumption for each new Class B customer for the period after becoming Class B in 2017 | J33: % of kWh | K33: Customer specific CBR-Class B allocation for the period after becoming Class B | L33: Monthly Equal Payments
B34: Customer 1 | D34: =SUM(E34:I34) -> 28015213.33 | E34: ='6B. GA Allocation_new Class B'!E33 -> 28015213.33 | J34: =IFERROR(+D34/$D$43,0) -> 0.4779928365 | K34: =+J34*$D$26 -> 192.5028441 | L34: =+K34/12 -> 16.04190368
B35: Customer 2 | D35: 30594897.94 | E35: ='6B. GA Allocation_new Class B'!E34 -> 30594897.94 | J35: 0.5220071635 | K35: =+J35*$D$26 -> 210.2288067 | L35: =+K35/12 -> 17.51906723
E36: ='6B. GA Allocation_new Class B'!E37 -> 0 | J36: 0 | K36: 0 | L36: 0
E37: ='6B. GA Allocation_new Class B'!E38 -> 0 | J37: 0 | K37: 0 | L37: 0
E38: ='6B. GA Allocation_new Class B'!E39 -> 0 | J38: 0 | K38: 0 | L38: 0
E39: ='6B. GA Allocation_new Class B'!E40 -> 0 | J39: 0 | K39: 0 | L39: 0
E40: ='6B. GA Allocation_new Class B'!E41 -> 0 | J40: 0 | K40: 0 | L40: 0
E41: ='6B. GA Allocation_new Class B'!E42 -> 0 | J41: 0 | K41: 0 | L41: 0
E42: ='6B. GA Allocation_new Class B'!E43 -> 0 | J42: 0 | K42: 0 | L42: 0
B43: Total | D43: =SUM(D34:D42) -> 58610111.27 | E43: =SUM(E34:E42) -> 58610111.27 | F43: =SUM(F34:F42) -> 0 | G43: =SUM(G34:G38) -> 0 | H43: 0 | I43: 0 | J43: =SUM(J34:J42) -> 1 | K43: =SUM(K34:K42) -> 402.7316509

Sheet 8. Calculation of Def-Var RR
A1: Back to Index
B2: =+'1. Information Sheet'!B2 -> INCENTIVE REGULATION MODEL FOR 2019 FILERS
B11: Input required at cell D13 only. This workshseet calculates rate riders related to the Deferral/Variance Account Disposition (if applicable) and rate riders for Account 1568. Rate Riders will not be generated for the microFIT class.
B12: Default Rate Rider Recovery Period (in months) | D12: 12
B13: Proposed Rate Rider Recovery Period (in months) | D13: 12 | E13: =IF(D13>0, "Rate Rider Recovery to be used below", "If no rate rider recovery period is proposed then the default recovery period of 12 months will be used") -> Rate Rider Recovery to be used below
D15: Total Metered kWh | E15: Metered kW or kVA | F15: Total Metered kWh less WMP consumption | G15: Total Metered kW less WMP consumption | H15: Allocation of Group 1 Account Balances to All Classes 2 | I15: Allocation of Group 1 Account Balances to Non-WMP Classes Only (if Applicable) 2 | J15: Deferral/Variance Account Rate Rider 2 | K15: Deferral/Variance Account Rate Rider for Non-WMP (if applicable) 2 | L15: Account 1568 Rate Rider | Q15: Account 1568 Fixed RR
B16: Rate Class | C16: Unit | M16: Revenue Reconciliation: | O16: Revenue Reconcilation 1 | Q16: Fixed RR
B17: ='4. Billing Det. for Def-Var'!B17 -> RESIDENTIAL SERVICE CLASSIFICATION | C17: ='4. Billing Det. for Def-Var'!C17 -> kWh | D17: ='4. Billing Det. for Def-Var'!D17 -> 1440461108 | E17: ='4. Billing Det. for Def-Var'!E17 -> 0 | F17: ='4. Billing Det. for Def-Var'!J17 -> 1440461108 | G17: ='4. Billing Det. for Def-Var'!K17 -> 0 | H17: =SUM('5. Allocating Def-Var Balances'!G16:V16)-I17 -> -565425.6935 | J17: =IF(ISERROR(H17/D17),0,IF(OR(ISBLANK(D$13), OR(D$13=0, D$13="")), H17/D17/(D$12/12), H17/D17/(D$13/12))) -> -0.0003925310377 | K17: =IF(ISERROR(I17/F17),0,IF(OR(ISBLANK(D$13), OR(D$13=0, D$13="")), I17/F17/(D$12/12), I17/F17/(D$13/12))) -> 0 | L17: =IF(ISERROR('4. Billing Det. for Def-Var'!T17/D17), 0, IF(OR(ISBLANK(D$13), OR(D$13=0, D$13="")), ('4. Billing Det. for Def-Var'!T17/D17)/(D$12/12), ('4. Billing Det. for Def-Var'!T17/D17)/(D$13/12))) -> 0.0001519845101 | M17: =J17*D17 -> -565425.6935 | N17: =K17*F17 -> 0 | Q17: =(('4. Billing Det. for Def-Var'!T17/'4. Billing Det. for Def-Var'!U17)/12)*0 -> 0 | R17: -344680.5596 | S17: =+R17/D17 -> -0.0002392848774
B18: ='4. Billing Det. for Def-Var'!B18 -> GENERAL SERVICE LESS THAN 50 kW SERVICE CLASSIFICATION | C18: ='4. Billing Det. for Def-Var'!C18 -> kWh | D18: ='4. Billing Det. for Def-Var'!D18 -> 618679646.4 | E18: ='4. Billing Det. for Def-Var'!E18 -> 0 | F18: ='4. Billing Det. for Def-Var'!J18 -> 618679646.4 | G18: ='4. Billing Det. for Def-Var'!K18 -> 0 | H18: =SUM('5. Allocating Def-Var Balances'!G17:V17)-I18 -> -234713.0526 | J18: =IF(ISERROR(H18/D18),0,IF(OR(ISBLANK(D$13), OR(D$13=0, D$13="")), H18/D18/(D$12/12), H18/D18/(D$13/12))) -> -0.0003793773627 | K18: =IF(ISERROR(I18/F18),0,IF(OR(ISBLANK(D$13), OR(D$13=0, D$13="")), I18/F18/(D$12/12), I18/F18/(D$13/12))) -> 0 | L18: =IF(ISERROR('4. Billing Det. for Def-Var'!T18/D18), 0, IF(OR(ISBLANK(D$13), OR(D$13=0, D$13="")), ('4. Billing Det. for Def-Var'!T18/D18)/(D$12/12), ('4. Billing Det. for Def-Var'!T18/D18)/(D$13/12))) -> 0.0002017331172 | M18: =J18*D18 -> -234713.0526 | N18: =K18*F18 -> 0 | R18: 368325.6779 | S18: =R18/D18 -> 0.0005953415149
B19: ='4. Billing Det. for Def-Var'!B19 -> GENERAL SERVICE 50 to 499 kW SERVICE CLASSIFICATION | C19: ='4. Billing Det. for Def-Var'!C19 -> kW | D19: ='4. Billing Det. for Def-Var'!D19 -> 1993768779 | E19: ='4. Billing Det. for Def-Var'!E19 -> 5780039.102 | F19: ='4. Billing Det. for Def-Var'!J19 -> 1991646559 | G19: ='4. Billing Det. for Def-Var'!K19 -> 5773382.202 | H19: =SUM('5. Allocating Def-Var Balances'!G18:V18)-I19 -> 1264936.67 | I19: ='5. Allocating Def-Var Balances'!I18+'5. Allocating Def-Var Balances'!N18 -> -2011169.38 | J19: =IF(ISERROR(H19/E19),0,IF(OR(ISBLANK(D$13), OR(D$13=0, D$13="")), H19/E19/(D$12/12), H19/E19/(D$13/12))) -> 0.2188456942 | K19: =IF(ISERROR(I19/G19),0,IF(OR(ISBLANK(D$13), OR(D$13=0, D$13="")), I19/G19/(D$12/12), I19/G19/(D$13/12))) -> -0.3483520248 | L19: =IF(ISERROR('4. Billing Det. for Def-Var'!T19/E19), 0, IF(OR(ISBLANK(D$13), OR(D$13=0, D$13="")), ('4. Billing Det. for Def-Var'!T19/E19)/(D$12/12), ('4. Billing Det. for Def-Var'!T19/E19)/(D$13/12))) -> 0.1950526889 | M19: =J19*E19 -> 1264936.67 | N19: =K19*G19 -> -2011169.38 | R19: 2658869.616 | S19: =R19/E19 -> 0.4600089323
B20: ='4. Billing Det. for Def-Var'!B20 -> GENERAL SERVICE 500 to 4,999 kW SERVICE CLASSIFICATION | C20: ='4. Billing Det. for Def-Var'!C20 -> kW | D20: ='4. Billing Det. for Def-Var'!D20 -> 2006067810 | E20: ='4. Billing Det. for Def-Var'!E20 -> 4610762.335 | F20: ='4. Billing Det. for Def-Var'!J20 -> 1991041119 | G20: ='4. Billing Det. for Def-Var'!K20 -> 4581930.715 | H20: =SUM('5. Allocating Def-Var Balances'!G19:V19)-I20 -> 1272739.728 | I20: ='5. Allocating Def-Var Balances'!I19+'5. Allocating Def-Var Balances'!N19 -> -2010558.006 | J20: =IF(ISERROR(H20/E20),0,IF(OR(ISBLANK(D$13), OR(D$13=0, D$13="")), H20/E20/(D$12/12), H20/E20/(D$13/12))) -> 0.2760367236 | K20: =IF(ISERROR(I20/G20),0,IF(OR(ISBLANK(D$13), OR(D$13=0, D$13="")), I20/G20/(D$12/12), I20/G20/(D$13/12))) -> -0.4388014858 | L20: =IF(ISERROR('4. Billing Det. for Def-Var'!T20/E20), 0, IF(OR(ISBLANK(D$13), OR(D$13=0, D$13="")), ('4. Billing Det. for Def-Var'!T20/E20)/(D$12/12), ('4. Billing Det. for Def-Var'!T20/E20)/(D$13/12))) -> 0.07522789898 | M20: =J20*E20 -> 1272739.728 | N20: =K20*G20 -> -2010558.006 | R20: 621339.3228 | S20: =R20/E20 -> 0.1347584798
B21: ='4. Billing Det. for Def-Var'!B21 -> LARGE USE SERVICE CLASSIFICATION | C21: ='4. Billing Det. for Def-Var'!C21 -> kW | D21: ='4. Billing Det. for Def-Var'!D21 -> 981267691.3 | E21: ='4. Billing Det. for Def-Var'!E21 -> 1753815.619 | F21: ='4. Billing Det. for Def-Var'!J21 -> 981267691.3 | G21: ='4. Billing Det. for Def-Var'!K21 -> 1753815.619 | H21: =SUM('5. Allocating Def-Var Balances'!G20:V20)-I21 -> -368326.0245 | J21: =IF(ISERROR(H21/E21),0,IF(OR(ISBLANK(D$13), OR(D$13=0, D$13="")), H21/E21/(D$12/12), H21/E21/(D$13/12))) -> -0.210014109 | K21: =IF(ISERROR(I21/G21),0,IF(OR(ISBLANK(D$13), OR(D$13=0, D$13="")), I21/G21/(D$12/12), I21/G21/(D$13/12))) -> 0 | L21: =IF(ISERROR('4. Billing Det. for Def-Var'!T21/E21), 0, IF(OR(ISBLANK(D$13), OR(D$13=0, D$13="")), ('4. Billing Det. for Def-Var'!T21/E21)/(D$12/12), ('4. Billing Det. for Def-Var'!T21/E21)/(D$13/12))) -> 0.06396472866 | M21: =J21*E21 -> -368326.0245 | N21: =K21*G21 -> 0 | R21: 156324.6113 | S21: =R21/E21 -> 0.08913400567
B22: ='4. Billing Det. for Def-Var'!B22 -> STANDBY POWER SERVICE CLASSIFICATION | C22: ='4. Billing Det. for Def-Var'!C22 -> kW | D22: ='4. Billing Det. for Def-Var'!D22 -> 0 | E22: ='4. Billing Det. for Def-Var'!E22 -> 0 | F22: ='4. Billing Det. for Def-Var'!J22 -> 0 | G22: ='4. Billing Det. for Def-Var'!K22 -> 0 | H22: =SUM('5. Allocating Def-Var Balances'!G21:V21)-I22 -> 0 | J22: =IF(ISERROR(H22/E22),0,IF(OR(ISBLANK(D$13), OR(D$13=0, D$13="")), H22/E22/(D$12/12), H22/E22/(D$13/12))) -> 0 | K22: 0 | L22: =IF(ISERROR('4. Billing Det. for Def-Var'!T22/D22), 0, IF(OR(ISBLANK(D$13), OR(D$13=0, D$13="")), ('4. Billing Det. for Def-Var'!T22/D22)/(D$12/12), ('4. Billing Det. for Def-Var'!T22/D22)/(D$13/12))) -> 0 | M22: =J22*E22 -> 0 | N22: =K22*G22 -> 0
B23: ='4. Billing Det. for Def-Var'!B23 -> UNMETERED SCATTERED LOAD SERVICE CLASSIFICATION | C23: ='4. Billing Det. for Def-Var'!C23 -> kWh | D23: ='4. Billing Det. for Def-Var'!D23 -> 11421124.46 | E23: ='4. Billing Det. for Def-Var'!E23 -> 0 | F23: ='4. Billing Det. for Def-Var'!J23 -> 11421124.46 | G23: ='4. Billing Det. for Def-Var'!K23 -> 0 | H23: =SUM('5. Allocating Def-Var Balances'!G22:V22)-I23 -> -4287.002827 | J23: =IF(ISERROR(H23/D23),0,IF(OR(ISBLANK(D$13), OR(D$13=0, D$13="")), H23/D23/(D$12/12), H23/D23/(D$13/12))) -> -0.000375357334 | K23: =IF(ISERROR(I23/F23),0,IF(OR(ISBLANK(D$13), OR(D$13=0, D$13="")), I23/F23/(D$12/12), I23/F23/(D$13/12))) -> 0 | L23: =IF(ISERROR('4. Billing Det. for Def-Var'!T23/D23), 0, IF(OR(ISBLANK(D$13), OR(D$13=0, D$13="")), ('4. Billing Det. for Def-Var'!T23/D23)/(D$12/12), ('4. Billing Det. for Def-Var'!T23/D23)/(D$13/12))) -> 0 | M23: =J23*D23 -> -4287.002827 | N23: =K23*F23 -> 0
B24: ='4. Billing Det. for Def-Var'!B24 -> STREET LIGHTING SERVICE CLASSIFICATION | C24: ='4. Billing Det. for Def-Var'!C24 -> kW | D24: ='4. Billing Det. for Def-Var'!D24 -> 14875866.2 | E24: ='4. Billing Det. for Def-Var'!E24 -> 41239.54618 | F24: ='4. Billing Det. for Def-Var'!J24 -> 14875866.2 | G24: ='4. Billing Det. for Def-Var'!K24 -> 41239.54618 | H24: =SUM('5. Allocating Def-Var Balances'!G23:V23)-I24 -> -5583.765476 | J24: =IF(ISERROR(H24/E24),0,IF(OR(ISBLANK(D$13), OR(D$13=0, D$13="")), H24/E24/(D$12/12), H24/E24/(D$13/12))) -> -0.135398325 | K24: =IF(ISERROR(I24/G24),0,IF(OR(ISBLANK(D$13), OR(D$13=0, D$13="")), I24/G24/(D$12/12), I24/G24/(D$13/12))) -> 0 | L24: =IF(ISERROR('4. Billing Det. for Def-Var'!T24/E24), 0, IF(OR(ISBLANK(D$13), OR(D$13=0, D$13="")), ('4. Billing Det. for Def-Var'!T24/E24)/(D$12/12), ('4. Billing Det. for Def-Var'!T24/E24)/(D$13/12))) -> -3.79075552 | M24: =J24*E24 -> -5583.765476 | N24: =K24*G24 -> 0 | R24: -1313772.625 | S24: =R24/E24 -> -31.85710675
M27: =SUM(M17:M26) -> 1359340.859 | N27: =SUM(N17:N26) -> -4021727.385 | O27: =SUM(M27:N27) -> -2662386.526
O28: =O27-'3. Continuity Schedule'!CN39+'7B. CBR Allocation_new Class B'!D25 -> 1.171429176e-09
B30: 1 When calculating the revenue reconciliation for distributors with Class A customers, the balances of sub-account 1580-CBR Class A and B will not be taken into consideration since the rate riders, if any, are calculated outside of the model.
B31: 2 Only for rate classes with WMP customers are the Deferral/Variance Account Rate Riders for Non-WMP (column H and J) calculated separately. For all rate classes without WMP customers, balances in account 1580 and 1588 are included in column H and disposed through a combined Deferral/Variance Account and Rate Rider.

Sheet 9. STS-Tax Change
A1: Back to Index | U1: Tax Rates | V1: Effective
B2: =+'1. Information Sheet'!B2 -> INCENTIVE REGULATION MODEL FOR 2019 FILERS | U2: Federal & Provincial | V2: 2016-01-01
U3: As of June 20, 2012
U5: Federal income tax | V5: 0.38
U6: General corporate rate | V6: -0.1
U7: Federal tax abatement | V7: =SUM(V5:V6) -> 0.28
U8: Adjusted federal rate | V8: -0.13
U9: Rate reduction | V9: =V7+V8 -> 0.15
U10: Ontario income tax | V10: 0.115
U12: Combined federal and Ontario | V12: =V9+V10 -> 0.265
B13: Summary - Sharing of Tax Change Forecast Amounts
U14: Federal & Ontario Small Business
B15: ="For the " & '1. Information Sheet'!G32 & " year, enter any Tax Credits from the Cost of Service Tax Calculation (Positive #)" -> For the 2013 year, enter any Tax Credits from the Cost of Service Tax Calculation (Positive #) | U15: Federal small business threshold | V15: 500000
U16: Ontario Small Business Threshold | V16: 500000
B18: 1. Tax Related Amounts Forecast from Capital Tax Rate Changes | M18: ='1. Information Sheet'!G32 -> 2013 | O18: 2018 | U18: Federal small business rate | V18: 0.105
B19: Taxable Capital (if you are not claiming capital tax, please enter your OEB-Approved Rate Base) | O19: =M19 -> 0
U20: Ontario small business rate | V20: 0.045
B21: Deduction from taxable capital up to $15,000,000 | O21: =M21 -> 0
B23: Net Taxable Capital | M23: =M19-M21 -> 0 | O23: =O19-O21 -> 0
B25: Rate | O25: 0 | U25: Ontario Tax Rate (Maximum 11.5%)
U26: Federal tax rate (Maximum 15%)
B27: Ontario Capital Tax (Deductible, not grossed-up) | M27: =IF(M23>0, M23*M25, 0)*181/365 -> 0 | O27: 0 | U27: Combined tax rate (Maximum 26.5%)
B29: 2. Tax Related Amounts Forecast from lncome Tax Rate Changes
B30: Regulatory Taxable Income | O30: =M30 -> 0
B32: Corporate Tax Rate | M32: 0.265 | O32: =IF(ratebase>15000000, 26.5%, IF(ratebase<10000000, 15%, 15%+11.5%*((ratebase-10000000)/5000000))) -> 0.15
B34: Tax Impact | M34: =M30*M32-M15 -> 0 | O34: =O30*O32-M15 -> 0
B36: Grossed-up Tax Amount | M36: =M34/(1-M32) -> 0 | O36: =O34/(1-O32) -> 0
B38: Tax Related Amounts Forecast from Capital Tax Rate Changes | M38: =M27 -> 0 | O38: =O27 -> 0
B40: Tax Related Amounts Forecast from lncome Tax Rate Changes | M40: =M36 -> 0 | O40: =O36 -> 0
B42: Total Tax Related Amounts | M42: =SUM(M40,M38) -> 0 | O42: =SUM(O40,O38) -> 0
B44: Incremental Tax Savings | O44: =O42-M42 -> 0
B46: Sharing of Tax Amount (50%) | O46: =0.5*O44 -> 0

Sheet 10. Shared Tax - RR
A1: Back to Index
B2: =+'1. Information Sheet'!B2 -> INCENTIVE REGULATION MODEL FOR 2019 FILERS
B12: Calculation of Rebased Revenue Requirement and Allocation of Tax Sharing Amount. Enter data from the last OEB-Approved Cost of Service application in columns D through I.
B13: As per Chapter 3 Filing Requirements, shared tax rate riders are based on a 1 year disposition.
B15: Rate Class | D15: Re-based Billed Customers or Connections | E15: Re-based Billed kWh | F15: Re-based Billed kW | G15: Re-based Service Charge | H15: Re-based Distribution Volumetric Rate kWh | I15: Re-based Distribution Volumetric Rate kW | J15: Service Charge Revenue | K15: Distribution Volumetric Rate Revenue kWh | L15: Distribution Volumetric Rate Revenue kW | M15: Revenue Requirement from Rates | N15: Service Charge % Revenue | O15: Distribution Volumetric Rate % Revenue kWh | P15: Distribution Volumetric Rate % Revenue kW | Q15: Total % Revenue
D16: A | E16: B | F16: C | G16: D | H16: E | I16: F | J16: G = A * D *12 | K16: H = B * E | L16: I = C * F | M16: J = G + H + I | N16: K = G / J | O16: L = H / J | P16: M = I / J | Q16: N = J / R
B17: ='4. Billing Det. for Def-Var'!B17 -> RESIDENTIAL SERVICE CLASSIFICATION | C17: ='4. Billing Det. for Def-Var'!C17 -> kWh | D17: 140979.1817 | E17: 1308264983 | F17: 0 | G17: 11.07 | H17: 0.0155 | I17: 0 | J17: =G17*D17*12 -> 18727674.5 | K17: =E17*H17 -> 20278107.24 | L17: =F17*I17 -> 0 | M17: =J17+K17+L17 -> 39005781.74 | N17: =IF(ISERROR(J17/M17),0,J17/M17) -> 0.4801256035 | O17: =IF(ISERROR(K17/M17),0,K17/M17) -> 0.5198743965 | P17: =IF(ISERROR(L17/M17),0,L17/M17) -> 0 | Q17: =IF(ISERROR(M17/M$30),0,M17/M$30) -> 0.5614328307
B18: ='4. Billing Det. for Def-Var'!B18 -> GENERAL SERVICE LESS THAN 50 kW SERVICE CLASSIFICATION | C18: ='4. Billing Det. for Def-Var'!C18 -> kWh | D18: 8989.460008 | E18: 354668870.3 | F18: 0 | G18: 24.39 | H18: 0.0161 | I18: 0 | J18: 2631035.155 | K18: 5710168.812 | L18: 0 | M18: 8341203.967 | N18: =IF(ISERROR(J18/M18),0,J18/M18) -> 0.3154263061 | O18: =IF(ISERROR(K18/M18),0,K18/M18) -> 0.6845736939 | P18: =IF(ISERROR(L18/M18),0,L18/M18) -> 0 | Q18: =IF(ISERROR(M18/M$30),0,M18/M$30) -> 0.1200597846
B19: ='4. Billing Det. for Def-Var'!B19 -> GENERAL SERVICE 50 to 499 kW SERVICE CLASSIFICATION | C19: ='4. Billing Det. for Def-Var'!C19 -> kW | D19: 1490.72449 | E19: 1064497599 | F19: 2979825.698 | G19: 121.18 | H19: 0 | I19: 2.7446 | J19: 2167751.925 | K19: 0 | L19: 8178429.611 | M19: 10346181.54 | N19: 0.2095219301 | O19: 0 | P19: =IF(ISERROR(L19/M19),0,L19/M19) -> 0.7904780699 | Q19: 0.1489185892
B20: ='4. Billing Det. for Def-Var'!B20 -> GENERAL SERVICE 500 to 4,999 kW SERVICE CLASSIFICATION | C20: ='4. Billing Det. for Def-Var'!C20 -> kW | D20: 114.6164114 | E20: 806154179.9 | F20: 1969146.402 | G20: 1093.35 | H20: 0 | I20: 3.1861 | J20: 1503790.241 | K20: 0 | L20: 6273897.352 | M20: 7777687.593 | N20: 0.1933467015 | O20: 0 | P20: 0.8066532985 | Q20: 0.1119487667
B21: ='4. Billing Det. for Def-Var'!B21 -> LARGE USE SERVICE CLASSIFICATION | C21: ='4. Billing Det. for Def-Var'!C21 -> kW | D21: 6 | E21: 382619513.4 | F21: 719987.0916 | G21: 4549.67 | H21: 0 | I21: 2.4122 | J21: 327576.24 | K21: 0 | L21: 1736752.862 | M21: 2064329.102 | N21: 0.1586841166 | O21: 0 | P21: 0.8413158834 | Q21: 0.02971308559
B22: ='4. Billing Det. for Def-Var'!B22 -> STANDBY POWER SERVICE CLASSIFICATION | C22: ='4. Billing Det. for Def-Var'!C22 -> kW | D22: 1 | E22: 0 | F22: 54580 | G22: 0 | H22: 0 | I22: 1.6224 | J22: 0 | K22: 0 | L22: 88550.592 | M22: 88550.592 | N22: 0 | O22: 0 | P22: 1 | Q22: 0.001274560009
B23: ='4. Billing Det. for Def-Var'!B23 -> UNMETERED SCATTERED LOAD SERVICE CLASSIFICATION | C23: ='4. Billing Det. for Def-Var'!C23 -> kWh | D23: 1561.718162 | E23: 5931732.904 | F23: 0 | G23: 1.05 | H23: 0.0192 | I23: 0 | J23: 19677.64884 | K23: 113889.2718 | L23: 0 | M23: 133566.9206 | N23: 0.1473242682 | O23: 0.8526757318 | P23: 0 | Q23: 0.001922506125
B24: ='4. Billing Det. for Def-Var'!B24 -> STREET LIGHTING SERVICE CLASSIFICATION | C24: ='4. Billing Det. for Def-Var'!C24 -> kW | D24: 22334.56352 | E24: 33306954.55 | F24: 100671.8914 | G24: 2.22 | H24: 0 | I24: 11.1563 | J24: 594992.7721 | K24: 0 | L24: 1123125.823 | M24: 1718118.595 | N24: 0.3463048325 | O24: 0 | P24: 0.6536951675 | Q24: 0.02472987703
J25: 0 | K25: 0 | L25: 0 | M25: 0 | N25: 0 | O25: 0 | P25: 0 | Q25: 0
J26: =G26*D26*12 -> 0 | K26: =E26*H26 -> 0 | L26: =F26*I26 -> 0 | M26: =J26+K26+L26 -> 0 | N26: =IF(ISERROR(J26/M26),0,J26/M26) -> 0 | O26: =IF(ISERROR(K26/M26),0,K26/M26) -> 0 | P26: =IF(ISERROR(L26/M26),0,L26/M26) -> 0 | Q26: 0
J27: 0 | K27: 0 | L27: 0 | M27: 0 | N27: 0 | O27: 0 | P27: 0 | Q27: 0
J28: 0 | K28: 0 | L28: 0 | M28: 0 | N28: 0 | O28: 0 | P28: 0 | Q28: 0
J29: 0 | K29: 0 | L29: 0 | M29: 0 | N29: 0 | O29: 0 | P29: 0 | Q29: 0
B30: Total | D30: =SUM(D17:D29) -> 175477.2643 | E30: =SUM(E17:E29) -> 3955443833 | F30: 5824211.083 | J30: =SUM(J17:J29) -> 25972498.48 | K30: =SUM(K17:K29) -> 26102165.32 | L30: 17400756.24 | M30: 69475420.05 | Q30: =SUM(Q17:Q29) -> 1
B33: Rate Class | D33: Total kWh (most recent RRR filing) | E33: Total kW (most recent RRR filing) | F33: Allocation of Tax Savings by Rate Class | G33: Distribution Rate Rider
B34: =B17 -> RESIDENTIAL SERVICE CLASSIFICATION | C34: kWh | D34: ='4. Billing Det. for Def-Var'!D17 -> 1440461108 | E34: ='4. Billing Det. for Def-Var'!E17 -> 0 | F34: =F$48*Q17 -> 0 | G34: =ROUND(F34/'4. Billing Det. for Def-Var'!U17,2) -> 0 | H34: $/Customer | I34: If the allocated tax sharing amount does not produce a rate rider in one or more rate class (except for the Standby rate class), a distributor is required to transfer the entire OEB-approved tax sharing amount into account 1595 for disposition at a later date (see Filing Requirements, Appendix B)
B35: GENERAL SERVICE LESS THAN 50 kW SERVICE CLASSIFICATION | C35: kWh | D35: ='4. Billing Det. for Def-Var'!D18 -> 618679646.4 | E35: ='4. Billing Det. for Def-Var'!E18 -> 0 | F35: 0 | G35: =IFERROR(ROUND(IF(E35<>0,F35/E35,F35/D35),4),"") -> 0 | H35: $/kWh
B36: GENERAL SERVICE 50 to 499 kW SERVICE CLASSIFICATION | C36: kW | D36: ='4. Billing Det. for Def-Var'!D19 -> 1993768779 | E36: ='4. Billing Det. for Def-Var'!E19 -> 5780039.102 | F36: 0 | G36: =IFERROR(ROUND(IF(E36<>0,F36/E36,F36/D36),4),"") -> 0 | H36: $/kW
B37: GENERAL SERVICE 500 to 4,999 kW SERVICE CLASSIFICATION | C37: kW | D37: ='4. Billing Det. for Def-Var'!D20 -> 2006067810 | E37: ='4. Billing Det. for Def-Var'!E20 -> 4610762.335 | F37: 0 | G37: 0 | H37: $/kW
B38: LARGE USE SERVICE CLASSIFICATION | C38: kW | D38: ='4. Billing Det. for Def-Var'!D21 -> 981267691.3 | E38: ='4. Billing Det. for Def-Var'!E21 -> 1753815.619 | F38: 0 | G38: 0 | H38: $/kWh
B39: STANDBY POWER SERVICE CLASSIFICATION | C39: kW | D39: ='4. Billing Det. for Def-Var'!D22 -> 0 | E39: ='4. Billing Det. for Def-Var'!E22 -> 0 | F39: 0 | H39: $/kWh
B40: UNMETERED SCATTERED LOAD SERVICE CLASSIFICATION | C40: kWh | D40: ='4. Billing Det. for Def-Var'!D23 -> 11421124.46 | E40: ='4. Billing Det. for Def-Var'!E23 -> 0 | F40: 0 | G40: 0 | H40: $/kW
B41: STREET LIGHTING SERVICE CLASSIFICATION | C41: kW | D41: ='4. Billing Det. for Def-Var'!D24 -> 14875866.2 | E41: ='4. Billing Det. for Def-Var'!E24 -> 41239.54618 | F41: 0 | G41: 0 | H41: $/kW
D42: ='4. Billing Det. for Def-Var'!D25 -> 0 | E42: ='4. Billing Det. for Def-Var'!E25 -> 0 | F42: 0 | H42: $/kWh
D43: ='4. Billing Det. for Def-Var'!D26 -> 0 | E43: ='4. Billing Det. for Def-Var'!E26 -> 0 | F43: =F$48*Q30 -> 0 | H43: $/kWh
D44: ='4. Billing Det. for Def-Var'!D27 -> 0 | E44: ='4. Billing Det. for Def-Var'!E27 -> 0 | F44: =F$48*Q31 -> 0 | H44: $/kW
F45: 0 | G45: =IFERROR(ROUND(IF(E45<>"",F45/E45,F45/D45),4),"") -> 
F46: 0
D48: =SUM(D34:D47) -> 7066542026 | E48: =SUM(E34:E47) -> 12185856.6 | F48: =ROUND('9. STS-Tax Change'!O46,2) -> 0

Sheet 11. RTSR - Current Rates
A1: Back to Index | B1: Back to Index | BA1: 1
B2: =+'1. Information Sheet'!B2 -> INCENTIVE REGULATION MODEL FOR 2019 FILERS
B13: Columns F and G must match the data from the most recent RRR filing. Rates have been imported from Tab 2. As well, the Loss Factor has been imported from "Model Specs" tab. If the data needs to be modified, please make the necessary adjustments and note the changes in your manager's summary.
B15: Rate Class | C15: Rate Description | D15: Unit | E15: Rate | F15: Non-Loss Adjusted Metered kWh | G15: Non-Loss Adjusted Metered kW | H15: Applicable Loss Factor | I15: Loss Adjusted Billed kWh
A16: R_TN | B16: ='Model Specs'!C15 -> RESIDENTIAL SERVICE CLASSIFICATION | C16: Retail Transmission Rate – Network Service Rate | D16: $/kWh | E16: =VLOOKUP(A16,RATES,4,FALSE) -> 0.007570643242 | F16: ='4. Billing Det. for Def-Var'!D17 -> 1440461108 | G16: 0 | H16: 1 | I16: =IF(D16="$/kwh",F16*H16,"") -> 1440461108
A17: R_TC | B17: =B16 -> RESIDENTIAL SERVICE CLASSIFICATION | C17: Retail Transmission Rate – Line and Transformation Connection Service Rate | D17: $/kWh | E17: 0.007083661816 | F17: =F16 -> 1440461108 | G17: 0 | H17: =H16 -> 1 | I17: =IF(D17="$/kwh",F17*H17,"") -> 1440461108
A18: GSL_TN | B18: ='Model Specs'!C16 -> GENERAL SERVICE LESS THAN 50 kW SERVICE CLASSIFICATION | C18: Retail Transmission Rate – Network Service Rate | D18: $/kWh | E18: 0.0071 | F18: ='4. Billing Det. for Def-Var'!D18 -> 618679646.4 | G18: 0 | H18: =H17 -> 1 | I18: 618679646.4
A19: GSL_TC | B19: =B18 -> GENERAL SERVICE LESS THAN 50 kW SERVICE CLASSIFICATION | C19: Retail Transmission Rate – Line and Transformation Connection Service Rate | D19: $/kWh | E19: 0.0064 | F19: =F18 -> 618679646.4 | G19: 0 | H19: 1 | I19: 618679646.4
A20: GS50_499_TN | B20: ='Model Specs'!C17 -> GENERAL SERVICE 50 to 499 kW SERVICE CLASSIFICATION | C20: Retail Transmission Rate – Network Service Rate | D20: $/kW | E20: 2.7325 | F20: ='4. Billing Det. for Def-Var'!D19 -> 1993768779 | G20: ='4. Billing Det. for Def-Var'!E19 -> 5780039.102 | H20: 1
A21: GS50_499_TC | B21: =B20 -> GENERAL SERVICE 50 to 499 kW SERVICE CLASSIFICATION | C21: Retail Transmission Rate – Line and Transformation Connection Service Rate | D21: $/kW | E21: 2.5347 | F21: =F20 -> 1993768779 | G21: =G20 -> 5780039.102 | H21: 1
A22: GS500_TN | B22: ='Model Specs'!C18 -> GENERAL SERVICE 500 to 4,999 kW SERVICE CLASSIFICATION | C22: Retail Transmission Rate – Network Service Rate | D22: $/kW | E22: 2.6436 | F22: ='4. Billing Det. for Def-Var'!D20 -> 2006067810 | G22: ='4. Billing Det. for Def-Var'!E20 -> 4610762.335 | H22: 1
A23: GS500_TC | B23: =B22 -> GENERAL SERVICE 500 to 4,999 kW SERVICE CLASSIFICATION | C23: Retail Transmission Rate – Line and Transformation Connection Service Rate | D23: $/kW | E23: 2.4803 | F23: =F22 -> 2006067810 | G23: =G22 -> 4610762.335 | H23: 1
A24: LU_TN | B24: ='Model Specs'!C19 -> LARGE USE SERVICE CLASSIFICATION | C24: Retail Transmission Rate – Network Service Rate – Interval Metered | D24: $/kW | E24: 2.8211 | F24: ='4. Billing Det. for Def-Var'!D21 -> 981267691.3 | G24: ='4. Billing Det. for Def-Var'!E21 -> 1753815.619 | H24: 1
A25: LU_TC | B25: =B24 -> LARGE USE SERVICE CLASSIFICATION | C25: Retail Transmission Rate – Line and Transformation Connection Service Rate – Interval Metered | D25: $/kW | E25: 2.6491 | F25: =F24 -> 981267691.3 | G25: =G24 -> 1753815.619 | H25: 1
A26: USL_TN | B26: ='Model Specs'!C21 -> UNMETERED SCATTERED LOAD SERVICE CLASSIFICATION | C26: Retail Transmission Rate – Network Service Rate | D26: $/kWh | E26: 0.0071 | F26: ='4. Billing Det. for Def-Var'!D23 -> 11421124.46 | G26: ='4. Billing Det. for Def-Var'!E23 -> 0 | H26: 1 | I26: 11421124.46
A27: USL_TC | B27: =B26 -> UNMETERED SCATTERED LOAD SERVICE CLASSIFICATION | C27: Retail Transmission Rate – Line and Transformation Connection Service Rate | D27: $/kWh | E27: 0.0064 | F27: =F26 -> 11421124.46 | G27: =G26 -> 0 | H27: 1 | I27: 11421124.46
A28: SL_TN | B28: ='4. Billing Det. for Def-Var'!B24 -> STREET LIGHTING SERVICE CLASSIFICATION | C28: Retail Transmission Rate – Network Service Rate | D28: $/kW | E28: 1.8924 | F28: ='4. Billing Det. for Def-Var'!D24 -> 14875866.2 | G28: ='4. Billing Det. for Def-Var'!E24 -> 41239.54618 | H28: 1
A29: SL_TC | B29: =B28 -> STREET LIGHTING SERVICE CLASSIFICATION | C29: Retail Transmission Rate – Line and Transformation Connection Service Rate | D29: $/kW | E29: 1.8329 | F29: =F28 -> 14875866.2 | G29: =G28 -> 41239.54618 | H29: 1

Sheet 12. RTSR-UTRs & Sub-Tx
A1: Back to Index
B2: =+'1. Information Sheet'!B2 -> INCENTIVE REGULATION MODEL FOR 2019 FILERS
B12: Uniform Transmission Rates | C12: Unit | E12: 2017 | H12: 2018 | J12: 2019
B14: Rate Description | E14: Rate | H14: Rate | J14: Rate
B16: Network Service Rate | C16: kW | E16: 3.52 | H16: 3.61 | J16: =H16 -> 3.61
B18: Line Connection Service Rate | C18: kW | E18: 0.88 | H18: 0.95 | J18: =H18 -> 0.95
B20: Transformation Connection Service Rate | C20: kW | E20: 2.13 | H20: 2.34 | J20: =H20 -> 2.34
B23: Hydro One Sub-Transmission Rates | C23: Unit | E23: 2017 | H23: 2018 | J23: 2019
B27: Rate Description | E27: Rate | F27: Rate | H27: Rate | J27: Rate
B29: Network Service Rate | C29: kW | E29: 3.1942 | H29: 3.1942 | J29: =H29 -> 3.1942
B31: Line Connection Service Rate | C31: kW | E31: 0.771 | H31: 0.771 | J31: =H31 -> 0.771
B33: Transformation Connection Service Rate | C33: kW | E33: 1.7493 | H33: 1.7493 | J33: =H33 -> 1.7493
B35: Both Line and Transformation Connection Service Rate | C35: kW | E35: =SUM(E33,E31) -> 2.5203 | H35: =SUM(H33,H31) -> 2.5203 | J35: =H35 -> 2.5203
B38: If needed, add extra host here. (I) | C38: Unit | E38: 2016 | H38: 2017 | J38: 2018
B42: Rate Description | E42: Rate | H42: Rate | J42: Rate
B44: Network Service Rate | C44: kW
B46: Line Connection Service Rate | C46: kW
B48: Transformation Connection Service Rate | C48: kW
B50: Both Line and Transformation Connection Service Rate | C50: kW | E50: =F48+F46 -> 0 | H50: =H48+H46 -> 0 | J50: =J48+J46 -> 0
B53: If needed, add extra host here. (II) | C53: Unit | E53: 2016 | H53: 2017 | J53: 2018
B57: Rate Description | E57: Rate | H57: Rate | J57: Rate
B59: Network Service Rate | C59: kW
B61: Line Connection Service Rate | C61: kW
B63: Transformation Connection Service Rate | C63: kW
B65: Both Line and Transformation Connection Service Rate | C65: kW | E65: =F63+F61 -> 0 | H65: =H63+H61 -> 0 | J65: =J63+J61 -> 0
E67: Historical 2016 | H67: Current 2017 | J67: Forecast 2018
B68: Low Voltage Switchgear Credit (if applicable, enter as a negative value) | C68: $

Sheet 13. RTSR-Historic Wholesale
A1: Back to Index
B2: =+'1. Information Sheet'!B2 -> INCENTIVE REGULATION MODEL FOR 2019 FILERS
B13: In the green shaded cells, enter billing detail for wholesale transmission for the same reporting period as the billing determinants on Tab 10. For Hydro One Sub-transmission Rates, if you are charged a combined Line and Transformer connection rate, please ensure that both the Line Connection and Transformation Connection columns are completed. If any of the Hydro One Sub-transmission rates (column E, I and M) are highlighted in orange, please double check the billing data entered in "Units Billed" and "Amount" columns. The highlighted rates do not match the Hydro One Sub-transmission rates approved for that time period. If data has been entered correctly, please provide explanation for the discrepancy in rates.
B16: IESO | D16: Network | H16: Line Connection | L16: Transformation Connection | P16: Total Line
B17: Month | D17: Units Billed | E17: Rate | F17: Amount | H17: Units Billed | I17: Rate | J17: Amount | L17: Units Billed | M17: Rate | N17: Amount | P17: Amount
B19: January | D19: 911329 | E19: =IF(D19<>0,F19/D19,0) -> 3.66 | F19: 3335464.14 | H19: 993026 | I19: =IF(H19<>0,J19/H19,0) -> 0.87 | J19: 863932.62 | L19: 993026 | M19: =IF(L19<>0,N19/L19,0) -> 2.02 | N19: 2005912.52 | P19: =J19+N19 -> 2869845.14
B20: February | D20: 885223 | E20: 3.66 | F20: 3239916.18 | H20: 924639 | I20: 0.87 | J20: 804435.93 | L20: 924639 | M20: 2.02 | N20: 1867770.78 | P20: 2672206.71
B21: March | D21: 858237 | E21: 3.659999511 | F21: 3141147 | H21: 922202 | I21: 0.8700002819 | J21: 802316 | L21: 922202 | M21: 2.019999957 | N21: 1862848 | P21: 2665164
B22: April | D22: 814375 | E22: 3.66 | F22: 2980612.5 | H22: 861996 | I22: 0.8740223621 | J22: 753403.78 | L22: 861996 | M22: 2.029339266 | N22: 1749282.33 | P22: 2502686.11
B23: May | D23: 923087 | E23: 3.66 | F23: 3378498.42 | H23: 980758 | I23: 0.87 | J23: 853259.46 | L23: 980758 | M23: 2.02 | N23: 1981131.16 | P23: 2834390.62
B24: June | D24: 1127983 | E24: 3.66 | F24: 4128417.78 | H24: 1176871 | I24: 0.87 | J24: 1023877.77 | L24: 1176871 | M24: 2.02 | N24: 2377279.42 | P24: 3401157.19
B25: July | D25: 1083391 | E25: 3.66 | F25: 3965211.06 | H25: 1139021 | I25: 0.87 | J25: 990948.27 | L25: 1139021 | M25: 2.02 | N25: 2300822.42 | P25: 3291770.69
B26: August | D26: 1084014 | E26: 3.755094621 | F26: 4070575.14 | H26: 1122294 | I26: 0.9181909553 | J26: 1030480.2 | L26: 1122294 | M26: 2.131891643 | N26: 2392609.2 | P26: 3423089.4
B27: September | D27: 1111718 | E27: 3.567275136 | F27: 3965803.98 | H27: 1181855 | I27: 0.8332457197 | J27: 984775.62 | L27: 1181855 | M27: 1.934662476 | N27: 2286490.52 | P27: 3271266.14
B28: October | D28: 846142 | E28: 3.66 | F28: 3096879.72 | H28: 911316 | I28: 0.87 | J28: 792844.92 | L28: 911316 | M28: 2.02 | N28: 1840858.32 | P28: 2633703.24
B29: November | D29: 827342 | E29: 1.887821457 | F29: 1561873.98 | H29: 897408 | I29: 0.9939527952 | J29: 891981.19 | L29: 897408 | M29: 3.383480747 | N29: 3036362.69 | P29: 3928343.88
B30: December | D30: 961225 | E30: 4.924842633 | F30: 4733881.86 | H30: 1022498 | I30: 0.7799879217 | J30: 797536.09 | L30: 1022498 | M30: 1.029867139 | N30: 1053037.09 | P30: 1850573.18 | Q30: The IESO adjusted back the adjustment made in November. Email from Abdi who insisted this is what they needed to do.
B32: Total | D32: =SUM(D19:D30) -> 11434066 | E32: =IF(D32<>0,F32/D32,0) -> 3.638100546 | F32: =SUM(F19:F30) -> 41598281.76 | H32: =SUM(H19:H30) -> 12133884 | I32: =IF(H32<>0,J32/H32,0) -> 0.8727454334 | J32: =SUM(J19:J30) -> 10589791.85 | L32: =SUM(L19:L30) -> 12133884 | M32: =IF(L32<>0,N32/L32,0) -> 2.04010558 | N32: =SUM(N19:N30) -> 24754404.45 | P32: =SUM(P19:P30) -> 35344196.3
B34: Hydro One | D34: Network | H34: Line Connection | L34: Transformation Connection | P34: Total Line
B36: Month | D36: Units Billed | E36: Rate | F36: Amount | H36: Units Billed | I36: Rate | J36: Amount | L36: Units Billed | M36: Rate | N36: Amount | P36: Amount
B38: January | D38: 190372.4 | E38: =IF(D38<>0,F38/D38,0) -> 3.1942 | F38: 608087.5201 | H38: 174972.8 | I38: =IF(H38<>0,J38/H38,0) -> 0.771 | J38: 134904.0288 | L38: 200561.3 | M38: =IF(L38<>0,N38/L38,0) -> 1.7493 | N38: 350841.8821 | P38: =J38+N38 -> 485745.9109
B39: February | D39: 173119 | E39: =IF(D39<>0,F39/D39,0) -> 3.1942 | F39: 552976.7098 | H39: 149924 | I39: 0.771 | J39: 115591.404 | L39: 176107.1 | M39: 1.7493 | N39: 308064.15 | P39: =J39+N39 -> 423655.554
B40: March | D40: 184167.3 | E40: 3.1942 | F40: 588267.1897 | H40: 159688.3 | I40: 0.771 | J40: 123119.6793 | L40: 188667.8 | M40: 1.7493 | N40: 330036.5825 | P40: 453156.2618
B41: April | D41: 160011.1 | E41: 3.194198004 | F41: 511107.1362 | H41: 137658.3 | I41: 0.771 | J41: 106134.5493 | L41: 160018.4 | M41: 1.7493 | N41: 279920.1871 | P41: 386054.7364
B42: May | D42: 186789.4 | E42: 3.1942 | F42: 596642.7015 | H42: 183988.96 | I42: 0.771 | J42: 141855.4882 | L42: 208329.26 | M42: 1.7493 | N42: 364430.3745 | P42: 506285.8627
B43: June | D43: 198958.6 | E43: 3.194198395 | F43: 635513.2407 | H43: 180215.21 | I43: 0.771 | J43: 138945.9269 | L43: 205609.35 | M43: 1.7493 | N43: 359672.436 | P43: 498618.3629
B44: July | D44: 207903 | E44: 3.1942 | F44: 664083.7626 | H44: 220222.12 | I44: 0.771 | J44: 169791.2545 | L44: 245742.66 | M44: 1.7493 | N44: 429877.6351 | P44: 599668.8897
B45: August | D45: 202326.4 | E45: 3.1942 | F45: 646270.9869 | H45: 213420 | I45: 0.771 | J45: 164546.82 | L45: 240730 | M45: 1.7493 | N45: 421108.989 | P45: 585655.809
B46: September | D46: 198923.8 | E46: 3.1942 | F46: 635402.402 | H46: 178943.8 | I46: 0.771 | J46: 137965.6698 | L46: 204012.3 | M46: 1.7493 | N46: 356878.7164 | P46: 494844.3862
B47: October | D47: 192116.28 | E47: 3.1942 | F47: 613657.8216 | H47: 167754.16 | I47: 0.771 | J47: 129338.4574 | L47: 192822.66 | M47: 1.7493 | N47: 337304.6791 | P47: 466643.1365
B48: November | D48: 194541.61 | E48: 3.1942 | F48: 621404.8107 | H48: 171279.58 | I48: 0.771 | J48: 132056.5562 | L48: 194780.84 | M48: 1.7493 | N48: 340730.1234 | P48: 472786.6796
B49: December | D49: 207697.07 | E49: 3.1942 | F49: 663425.981 | H49: 182641.68 | I49: 0.771 | J49: 140816.7353 | L49: 207697.07 | M49: 1.7493 | N49: 363324.4846 | P49: 504141.2198
B51: Total | D51: =SUM(D38:D49) -> 2296925.96 | E51: =IF(D51<>0,F51/D51,0) -> 3.194199722 | F51: =SUM(F38:F49) -> 7336840.263 | H51: =SUM(H38:H49) -> 2120708.91 | I51: =IF(H51<>0,J51/H51,0) -> 0.771 | J51: =SUM(J38:J49) -> 1635066.57 | L51: =SUM(L38:L49) -> 2425078.74 | M51: =IF(L51<>0,N51/L51,0) -> 1.7493 | N51: =SUM(N38:N49) -> 4242190.24 | P51: =SUM(P38:P49) -> 5877256.809
B53: Add Extra Host Here (I) | D53: Network | H53: Line Connection | L53: Transformation Connection | P53: Total Line
B54: (if needed)
B55: Month | D55: Units Billed | E55: Rate | F55: Amount | H55: Units Billed | I55: Rate | J55: Amount | L55: Units Billed | M55: Rate | N55: Amount | P55: Amount
B57: January | E57: =IF(D57<>0,F57/D57,0) -> 0 | I57: =IF(H57<>0,J57/H57,0) -> 0 | M57: =IF(L57<>0,N57/L57,0) -> 0 | P57: =J57+N57 -> 0
B58: February | E58: 0 | I58: 0 | M58: 0 | P58: 0
B59: March | E59: 0 | I59: 0 | M59: 0 | P59: 0
B60: April | E60: 0 | I60: 0 | M60: 0 | P60: 0
B61: May | E61: 0 | I61: 0 | M61: 0 | P61: 0
B62: June | E62: 0 | I62: 0 | M62: 0 | P62: 0
B63: July | E63: 0 | I63: 0 | M63: 0 | P63: 0
B64: August | E64: 0 | I64: 0 | M64: 0 | P64: 0
B65: September | E65: 0 | I65: 0 | M65: 0 | P65: 0
B66: October | E66: 0 | I66: 0 | M66: 0 | P66: 0
B67: November | E67: 0 | I67: 0 | M67: 0 | P67: 0
B68: December | E68: 0 | I68: 0 | M68: 0 | P68: 0
B70: Total | D70: =SUM(D57:D68) -> 0 | E70: =IF(D70<>0,F70/D70,0) -> 0 | F70: =SUM(F57:F68) -> 0 | H70: =SUM(H57:H68) -> 0 | I70: =IF(H70<>0,J70/H70,0) -> 0 | J70: =SUM(J57:J68) -> 0 | L70: =SUM(L57:L68) -> 0 | M70: =IF(L70<>0,N70/L70,0) -> 0 | N70: =SUM(N57:N68) -> 0 | P70: =SUM(P57:P68) -> 0
B72: Add Extra Host Here (II) | D72: Network | H72: Line Connection | L72: Transformation Connection | P72: Total Line
B73: (if needed)
B74: Month | D74: Units Billed | E74: Rate | F74: Amount | H74: Units Billed | I74: Rate | J74: Amount | L74: Units Billed | M74: Rate | N74: Amount | P74: Amount
B76: January | E76: =IF(D76<>0,F76/D76,0) -> 0 | I76: =IF(H76<>0,J76/H76,0) -> 0 | M76: =IF(L76<>0,N76/L76,0) -> 0 | P76: =J76+N76 -> 0
B77: February | E77: 0 | I77: 0 | M77: 0 | P77: 0
B78: March | E78: 0 | I78: 0 | M78: 0 | P78: 0
B79: April | E79: 0 | I79: 0 | M79: 0 | P79: 0
B80: May | E80: 0 | I80: 0 | M80: 0 | P80: 0
B81: June | E81: 0 | I81: 0 | M81: 0 | P81: 0
B82: July | E82: 0 | I82: 0 | M82: 0 | P82: 0
B83: August | E83: 0 | I83: 0 | M83: 0 | P83: 0
B84: September | E84: 0 | I84: 0 | M84: 0 | P84: 0
B85: October | E85: 0 | I85: 0 | M85: 0 | P85: 0
B86: November | E86: 0 | I86: 0 | M86: 0 | P86: 0
B87: December | E87: 0 | I87: 0 | M87: 0 | P87: 0
B89: Total | D89: =SUM(D76:D87) -> 0 | E89: =IF(D89<>0,F89/D89,0) -> 0 | F89: =SUM(F76:F87) -> 0 | H89: =SUM(H76:H87) -> 0 | I89: =IF(H89<>0,J89/H89,0) -> 0 | J89: =SUM(J76:J87) -> 0 | L89: =SUM(L76:L87) -> 0 | M89: =IF(L89<>0,N89/L89,0) -> 0 | N89: =SUM(N76:N87) -> 0 | P89: =SUM(P76:P87) -> 0
B91: Total | D91: Network | H91: Line Connection | L91: Transformation Connection | P91: Total Line
B93: Month | D93: Units Billed | E93: Rate | F93: Amount | H93: Units Billed | I93: Rate | J93: Amount | L93: Units Billed | M93: Rate | N93: Amount | P93: Amount
B95: January | D95: =D19+D38+D57+D76 -> 1101701.4 | E95: =IF(D95<>0,F95/D95,0) -> 3.579510437 | F95: =F19+F38+F57+F76 -> 3943551.66 | H95: =H19+H38+H57+H76 -> 1167998.8 | I95: =IF(H95<>0,J95/H95,0) -> 0.8551692423 | J95: =J19+J38+J57+J76 -> 998836.6488 | L95: =L19+L38+L57+L76 -> 1193587.3 | M95: =IF(L95<>0,N95/L95,0) -> 1.974513638 | N95: =N19+N38+N57+N76 -> 2356754.402 | P95: =J95+N95 -> 3355591.051
B96: February | D96: =D20+D39+D58+D77 -> 1058342 | E96: 3.583806454 | F96: =F20+F39+F58+F77 -> 3792892.89 | H96: =H20+H39+H58+H77 -> 1074563 | I96: 0.8561874306 | J96: =J20+J39+J58+J77 -> 920027.334 | L96: =L20+L39+L58+L77 -> 1100746.1 | M96: 1.976691019 | N96: =N20+N39+N58+N77 -> 2175834.93 | P96: 3095862.264
B97: March | D97: 1042404.3 | E97: 3.57770415 | F97: 3729414.19 | H97: 1081890.3 | I97: 0.8553877221 | J97: 925435.6793 | L97: 1110869.8 | M97: 1.974024843 | N97: 2192884.583 | P97: 3118320.262
B98: April | D98: 974386.1 | E98: 3.583507232 | F98: 3491719.636 | H98: 999654.3 | I98: 0.8598355745 | J98: 859538.3293 | L98: 1022014.4 | M98: 1.985493078 | N98: 2029202.517 | P98: 2888740.846
B99: May | D99: 1109876.4 | E99: 3.581607034 | F99: 3975141.121 | H99: 1164746.96 | I99: 0.8543614899 | J99: 995114.9482 | L99: 1189087.26 | M99: 1.972573093 | N99: 2345561.535 | P99: 3340676.483
B100: June | D100: 1326941.6 | E100: 3.590158769 | F100: 4763931.021 | H100: 1357086.21 | I100: 0.8568532259 | J100: 1162823.697 | L100: 1382480.35 | M100: 1.97974015 | N100: 2736951.856 | P100: 3899775.553
B101: July | D101: 1291294 | E101: 3.585004517 | F101: 4629294.823 | H101: 1359243.12 | I101: 0.8539601985 | J101: 1160739.525 | L101: 1384763.66 | M101: 1.971961089 | N101: 2730700.055 | P101: 3891439.58
B102: August | D102: 1286340.4 | E102: 3.666872413 | F102: 4716846.127 | H102: 1335714 | I102: 0.8946728267 | J102: 1195027.02 | L102: 1363024 | M102: 2.064320356 | N102: 2813718.189 | P102: 4008745.209
B103: September | D103: 1310641.8 | E103: 3.510651333 | F103: 4601206.382 | H103: 1360798.8 | I103: 0.8250604643 | J103: 1122741.29 | L103: 1385867.3 | M103: 1.907375429 | N103: 2643369.236 | P103: 3766110.526
B104: October | D104: 1038258.28 | E104: 3.573809728 | F104: 3710537.542 | H104: 1079070.16 | I104: 0.8546092845 | J104: 922183.3774 | L104: 1104138.66 | M104: 1.972725961 | N104: 2178162.999 | P104: 3100346.376
B105: November | D105: 1021883.61 | E105: 2.136523934 | F105: 2183278.791 | H105: 1068687.58 | I105: 0.9582199376 | J105: 1024037.746 | L105: 1092188.84 | M105: 3.092041129 | N105: 3377092.813 | P105: 4401130.56
B106: December | D106: 1168922.07 | E106: 4.617337613 | F106: 5397307.841 | H106: 1205139.68 | I106: 0.7786257816 | J106: 938352.8253 | L106: 1230195.07 | M106: 1.151330882 | N106: 1416361.575 | P106: 2354714.4
B108: Total | D108: =SUM(D95:D106) -> 13730991.96 | E108: =IF(D108<>0,F108/D108,0) -> 3.563844634 | F108: =SUM(F95:F106) -> 48935122.02 | H108: =SUM(H95:H106) -> 14254592.91 | I108: =IF(H108<>0,J108/H108,0) -> 0.8576083861 | J108: =SUM(J95:J106) -> 12224858.42 | L108: =SUM(L95:L106) -> 14558962.74 | M108: =IF(L108<>0,N108/L108,0) -> 1.991666248 | N108: =SUM(N95:N106) -> 28996594.69 | P108: =SUM(P95:P106) -> 41221453.11
N110: Low Voltage Switchgear Credit (if applicable) | P110: ='12. RTSR-UTRs & Sub-Tx'!F68 -> 0
N112: Total including deduction for Low Voltage Switchgear Credit | P112: =P108+P110 -> 41221453.11

Sheet 14. RTSR-Current Wholesale
A1: Back to Index
B2: =+'1. Information Sheet'!B2 -> INCENTIVE REGULATION MODEL FOR 2019 FILERS
B13: The purpose of this sheet is to calculate the expected billing when current 2018 Uniform Transmission Rates are applied against historical 2017 transmission units.
B16: IESO | D16: Network | H16: Line Connection | L16: Transformation Connection | P16: Total Line
B18: Month | D18: Units Billed | E18: Rate | F18: Amount | H18: Units Billed | I18: Rate | J18: Amount | L18: Units Billed | M18: Rate | N18: Amount | P18: Amount
B20: January | D20: ='13. RTSR-Historic Wholesale'!D19 -> 911329 | E20: ='12. RTSR-UTRs & Sub-Tx'!H16 -> 3.61 | F20: =D20*E20 -> 3289897.69 | H20: ='13. RTSR-Historic Wholesale'!H19 -> 993026 | I20: ='12. RTSR-UTRs & Sub-Tx'!H18 -> 0.95 | J20: =H20*I20 -> 943374.7 | L20: ='13. RTSR-Historic Wholesale'!L19 -> 993026 | M20: ='12. RTSR-UTRs & Sub-Tx'!H20 -> 2.34 | N20: =L20*M20 -> 2323680.84 | P20: =J20+N20 -> 3267055.54
B21: February | D21: ='13. RTSR-Historic Wholesale'!D20 -> 885223 | E21: =E20 -> 3.61 | F21: =D21*E21 -> 3195655.03 | H21: ='13. RTSR-Historic Wholesale'!H20 -> 924639 | I21: =I20 -> 0.95 | J21: =H21*I21 -> 878407.05 | L21: ='13. RTSR-Historic Wholesale'!L20 -> 924639 | M21: =M20 -> 2.34 | N21: =L21*M21 -> 2163655.26 | P21: 3042062.31
B22: March | D22: ='13. RTSR-Historic Wholesale'!D21 -> 858237 | E22: =E21 -> 3.61 | F22: 3098235.57 | H22: ='13. RTSR-Historic Wholesale'!H21 -> 922202 | I22: =I21 -> 0.95 | J22: 876091.9 | L22: ='13. RTSR-Historic Wholesale'!L21 -> 922202 | M22: =M21 -> 2.34 | N22: 2157952.68 | P22: 3034044.58
B23: April | D23: ='13. RTSR-Historic Wholesale'!D22 -> 814375 | E23: 3.61 | F23: 2939893.75 | H23: ='13. RTSR-Historic Wholesale'!H22 -> 861996 | I23: 0.95 | J23: 818896.2 | L23: ='13. RTSR-Historic Wholesale'!L22 -> 861996 | M23: 2.34 | N23: 2017070.64 | P23: 2835966.84
B24: May | D24: ='13. RTSR-Historic Wholesale'!D23 -> 923087 | E24: 3.61 | F24: 3332344.07 | H24: ='13. RTSR-Historic Wholesale'!H23 -> 980758 | I24: 0.95 | J24: 931720.1 | L24: ='13. RTSR-Historic Wholesale'!L23 -> 980758 | M24: 2.34 | N24: 2294973.72 | P24: 3226693.82
B25: June | D25: ='13. RTSR-Historic Wholesale'!D24 -> 1127983 | E25: 3.61 | F25: 4072018.63 | H25: ='13. RTSR-Historic Wholesale'!H24 -> 1176871 | I25: 0.95 | J25: 1118027.45 | L25: ='13. RTSR-Historic Wholesale'!L24 -> 1176871 | M25: 2.34 | N25: 2753878.14 | P25: 3871905.59
B26: July | D26: ='13. RTSR-Historic Wholesale'!D25 -> 1083391 | E26: 3.61 | F26: 3911041.51 | H26: ='13. RTSR-Historic Wholesale'!H25 -> 1139021 | I26: 0.95 | J26: 1082069.95 | L26: ='13. RTSR-Historic Wholesale'!L25 -> 1139021 | M26: 2.34 | N26: 2665309.14 | P26: 3747379.09
B27: August | D27: ='13. RTSR-Historic Wholesale'!D26 -> 1084014 | E27: 3.61 | F27: 3913290.54 | H27: ='13. RTSR-Historic Wholesale'!H26 -> 1122294 | I27: 0.95 | J27: 1066179.3 | L27: ='13. RTSR-Historic Wholesale'!L26 -> 1122294 | M27: 2.34 | N27: 2626167.96 | P27: 3692347.26
B28: September | D28: ='13. RTSR-Historic Wholesale'!D27 -> 1111718 | E28: 3.61 | F28: 4013301.98 | H28: ='13. RTSR-Historic Wholesale'!H27 -> 1181855 | I28: 0.95 | J28: 1122762.25 | L28: ='13. RTSR-Historic Wholesale'!L27 -> 1181855 | M28: 2.34 | N28: 2765540.7 | P28: 3888302.95
B29: October | D29: ='13. RTSR-Historic Wholesale'!D28 -> 846142 | E29: 3.61 | F29: 3054572.62 | H29: ='13. RTSR-Historic Wholesale'!H28 -> 911316 | I29: 0.95 | J29: 865750.2 | L29: ='13. RTSR-Historic Wholesale'!L28 -> 911316 | M29: 2.34 | N29: 2132479.44 | P29: 2998229.64
B30: November | D30: ='13. RTSR-Historic Wholesale'!D29 -> 827342 | E30: 3.61 | F30: 2986704.62 | H30: ='13. RTSR-Historic Wholesale'!H29 -> 897408 | I30: 0.95 | J30: 852537.6 | L30: ='13. RTSR-Historic Wholesale'!L29 -> 897408 | M30: 2.34 | N30: 2099934.72 | P30: 2952472.32
B31: December | D31: ='13. RTSR-Historic Wholesale'!D30 -> 961225 | E31: 3.61 | F31: 3470022.25 | H31: ='13. RTSR-Historic Wholesale'!H30 -> 1022498 | I31: 0.95 | J31: 971373.1 | L31: ='13. RTSR-Historic Wholesale'!L30 -> 1022498 | M31: 2.34 | N31: 2392645.32 | P31: 3364018.42
B33: Total | D33: =SUM(D20:D31) -> 11434066 | E33: =IF(D33<>0,F33/D33,0) -> 3.61 | F33: =SUM(F20:F31) -> 41276978.26 | H33: =SUM(H20:H31) -> 12133884 | I33: =IF(H33<>0,J33/H33,0) -> 0.95 | J33: =SUM(J20:J31) -> 11527189.8 | L33: =SUM(L20:L31) -> 12133884 | M33: =IF(L33<>0,N33/L33,0) -> 2.34 | N33: =SUM(N20:N31) -> 28393288.56 | P33: =SUM(P20:P31) -> 39920478.36
B35: Hydro One | D35: Network | H35: Line Connection | L35: Transformation Connection | P35: Total Line
B37: Month | D37: Units Billed | E37: Rate | F37: Amount | H37: Units Billed | I37: Rate | J37: Amount | L37: Units Billed | M37: Rate | N37: Amount | P37: Amount
B39: January | D39: ='13. RTSR-Historic Wholesale'!D38 -> 190372.4 | E39: ='12. RTSR-UTRs & Sub-Tx'!H29 -> 3.1942 | F39: =D39*E39 -> 608087.5201 | H39: ='13. RTSR-Historic Wholesale'!H38 -> 174972.8 | I39: ='12. RTSR-UTRs & Sub-Tx'!H31 -> 0.771 | J39: =H39*I39 -> 134904.0288 | L39: ='13. RTSR-Historic Wholesale'!L38 -> 200561.3 | M39: ='12. RTSR-UTRs & Sub-Tx'!H33 -> 1.7493 | N39: =L39*M39 -> 350841.8821 | P39: =J39+N39 -> 485745.9109
B40: February | D40: ='13. RTSR-Historic Wholesale'!D39 -> 173119 | E40: =E39 -> 3.1942 | F40: =D40*E40 -> 552976.7098 | H40: ='13. RTSR-Historic Wholesale'!H39 -> 149924 | I40: =I39 -> 0.771 | J40: =H40*I40 -> 115591.404 | L40: ='13. RTSR-Historic Wholesale'!L39 -> 176107.1 | M40: =M39 -> 1.7493 | N40: =L40*M40 -> 308064.15 | P40: 423655.554
B41: March | D41: ='13. RTSR-Historic Wholesale'!D40 -> 184167.3 | E41: =E40 -> 3.1942 | F41: 588267.1897 | H41: ='13. RTSR-Historic Wholesale'!H40 -> 159688.3 | I41: =I40 -> 0.771 | J41: 123119.6793 | L41: ='13. RTSR-Historic Wholesale'!L40 -> 188667.8 | M41: =M40 -> 1.7493 | N41: 330036.5825 | P41: 453156.2618
B42: April | D42: ='13. RTSR-Historic Wholesale'!D41 -> 160011.1 | E42: 3.1942 | F42: 511107.4556 | H42: ='13. RTSR-Historic Wholesale'!H41 -> 137658.3 | I42: 0.771 | J42: 106134.5493 | L42: ='13. RTSR-Historic Wholesale'!L41 -> 160018.4 | M42: =M41 -> 1.7493 | N42: 279920.1871 | P42: 386054.7364
B43: May | D43: ='13. RTSR-Historic Wholesale'!D42 -> 186789.4 | E43: 3.1942 | F43: 596642.7015 | H43: ='13. RTSR-Historic Wholesale'!H42 -> 183988.96 | I43: 0.771 | J43: 141855.4882 | L43: ='13. RTSR-Historic Wholesale'!L42 -> 208329.26 | M43: 1.7493 | N43: 364430.3745 | P43: 506285.8627
B44: June | D44: ='13. RTSR-Historic Wholesale'!D43 -> 198958.6 | E44: 3.1942 | F44: 635513.5601 | H44: ='13. RTSR-Historic Wholesale'!H43 -> 180215.21 | I44: 0.771 | J44: 138945.9269 | L44: ='13. RTSR-Historic Wholesale'!L43 -> 205609.35 | M44: 1.7493 | N44: 359672.436 | P44: 498618.3629
B45: July | D45: ='13. RTSR-Historic Wholesale'!D44 -> 207903 | E45: 3.1942 | F45: 664083.7626 | H45: ='13. RTSR-Historic Wholesale'!H44 -> 220222.12 | I45: 0.771 | J45: 169791.2545 | L45: ='13. RTSR-Historic Wholesale'!L44 -> 245742.66 | M45: 1.7493 | N45: 429877.6351 | P45: 599668.8897
B46: August | D46: ='13. RTSR-Historic Wholesale'!D45 -> 202326.4 | E46: 3.1942 | F46: 646270.9869 | H46: ='13. RTSR-Historic Wholesale'!H45 -> 213420 | I46: 0.771 | J46: 164546.82 | L46: ='13. RTSR-Historic Wholesale'!L45 -> 240730 | M46: 1.7493 | N46: 421108.989 | P46: 585655.809
B47: September | D47: ='13. RTSR-Historic Wholesale'!D46 -> 198923.8 | E47: 3.1942 | F47: 635402.402 | H47: ='13. RTSR-Historic Wholesale'!H46 -> 178943.8 | I47: 0.771 | J47: 137965.6698 | L47: ='13. RTSR-Historic Wholesale'!L46 -> 204012.3 | M47: 1.7493 | N47: 356878.7164 | P47: 494844.3862
B48: October | D48: ='13. RTSR-Historic Wholesale'!D47 -> 192116.28 | E48: 3.1942 | F48: 613657.8216 | H48: ='13. RTSR-Historic Wholesale'!H47 -> 167754.16 | I48: 0.771 | J48: 129338.4574 | L48: ='13. RTSR-Historic Wholesale'!L47 -> 192822.66 | M48: 1.7493 | N48: 337304.6791 | P48: 466643.1365
B49: November | D49: ='13. RTSR-Historic Wholesale'!D48 -> 194541.61 | E49: 3.1942 | F49: 621404.8107 | H49: ='13. RTSR-Historic Wholesale'!H48 -> 171279.58 | I49: 0.771 | J49: 132056.5562 | L49: ='13. RTSR-Historic Wholesale'!L48 -> 194780.84 | M49: 1.7493 | N49: 340730.1234 | P49: 472786.6796
B50: December | D50: ='13. RTSR-Historic Wholesale'!D49 -> 207697.07 | E50: 3.1942 | F50: 663425.981 | H50: ='13. RTSR-Historic Wholesale'!H49 -> 182641.68 | I50: 0.771 | J50: 140816.7353 | L50: ='13. RTSR-Historic Wholesale'!L49 -> 207697.07 | M50: 1.7493 | N50: 363324.4846 | P50: 504141.2198
B52: Total | D52: =SUM(D39:D50) -> 2296925.96 | E52: =IF(D52<>0,F52/D52,0) -> 3.1942 | F52: =SUM(F39:F50) -> 7336840.901 | H52: =SUM(H39:H50) -> 2120708.91 | I52: =IF(H52<>0,J52/H52,0) -> 0.771 | J52: =SUM(J39:J50) -> 1635066.57 | L52: =SUM(L39:L50) -> 2425078.74 | M52: =IF(L52<>0,N52/L52,0) -> 1.7493 | N52: =SUM(N39:N50) -> 4242190.24 | P52: =SUM(P39:P50) -> 5877256.809
B54: Add Extra Host Here (I) | D54: Network | H54: Line Connection | L54: Transformation Connection | P54: Total Line
B56: Month | D56: Units Billed | E56: Rate | F56: Amount | H56: Units Billed | I56: Rate | J56: Amount | L56: Units Billed | M56: Rate | N56: Amount | P56: Amount
B58: January | D58: ='13. RTSR-Historic Wholesale'!D57 -> 0 | E58: ='12. RTSR-UTRs & Sub-Tx'!H44 -> 0 | F58: =D58*E58 -> 0 | H58: ='13. RTSR-Historic Wholesale'!H57 -> 0 | I58: ='12. RTSR-UTRs & Sub-Tx'!H46 -> 0 | J58: =H58*I58 -> 0 | L58: ='13. RTSR-Historic Wholesale'!L57 -> 0 | M58: ='12. RTSR-UTRs & Sub-Tx'!H48 -> 0 | N58: =L58*M58 -> 0 | P58: =J58+N58 -> 0
B59: February | D59: ='13. RTSR-Historic Wholesale'!D58 -> 0 | E59: =E58 -> 0 | F59: =D59*E59 -> 0 | H59: ='13. RTSR-Historic Wholesale'!H58 -> 0 | I59: =I58 -> 0 | J59: =H59*I59 -> 0 | L59: ='13. RTSR-Historic Wholesale'!L58 -> 0 | M59: =M58 -> 0 | N59: =L59*M59 -> 0 | P59: 0
B60: March | D60: ='13. RTSR-Historic Wholesale'!D59 -> 0 | E60: =E59 -> 0 | F60: 0 | H60: ='13. RTSR-Historic Wholesale'!H59 -> 0 | I60: =I59 -> 0 | J60: 0 | L60: ='13. RTSR-Historic Wholesale'!L59 -> 0 | M60: =M59 -> 0 | N60: 0 | P60: 0
B61: April | D61: ='13. RTSR-Historic Wholesale'!D60 -> 0 | E61: 0 | F61: 0 | H61: ='13. RTSR-Historic Wholesale'!H60 -> 0 | I61: 0 | J61: 0 | L61: ='13. RTSR-Historic Wholesale'!L60 -> 0 | M61: 0 | N61: 0 | P61: 0
B62: May | D62: ='13. RTSR-Historic Wholesale'!D61 -> 0 | E62: 0 | F62: 0 | H62: ='13. RTSR-Historic Wholesale'!H61 -> 0 | I62: 0 | J62: 0 | L62: ='13. RTSR-Historic Wholesale'!L61 -> 0 | M62: 0 | N62: 0 | P62: 0
B63: June | D63: ='13. RTSR-Historic Wholesale'!D62 -> 0 | E63: 0 | F63: 0 | H63: ='13. RTSR-Historic Wholesale'!H62 -> 0 | I63: 0 | J63: 0 | L63: ='13. RTSR-Historic Wholesale'!L62 -> 0 | M63: 0 | N63: 0 | P63: 0
B64: July | D64: ='13. RTSR-Historic Wholesale'!D63 -> 0 | E64: 0 | F64: 0 | H64: ='13. RTSR-Historic Wholesale'!H63 -> 0 | I64: 0 | J64: 0 | L64: ='13. RTSR-Historic Wholesale'!L63 -> 0 | M64: 0 | N64: 0 | P64: 0
B65: August | D65: ='13. RTSR-Historic Wholesale'!D64 -> 0 | E65: 0 | F65: 0 | H65: ='13. RTSR-Historic Wholesale'!H64 -> 0 | I65: 0 | J65: 0 | L65: ='13. RTSR-Historic Wholesale'!L64 -> 0 | M65: 0 | N65: 0 | P65: 0
B66: September | D66: ='13. RTSR-Historic Wholesale'!D65 -> 0 | E66: 0 | F66: 0 | H66: ='13. RTSR-Historic Wholesale'!H65 -> 0 | I66: 0 | J66: 0 | L66: ='13. RTSR-Historic Wholesale'!L65 -> 0 | M66: 0 | N66: 0 | P66: 0
B67: October | D67: ='13. RTSR-Historic Wholesale'!D66 -> 0 | E67: 0 | F67: 0 | H67: ='13. RTSR-Historic Wholesale'!H66 -> 0 | I67: 0 | J67: 0 | L67: ='13. RTSR-Historic Wholesale'!L66 -> 0 | M67: 0 | N67: 0 | P67: 0
B68: November | D68: ='13. RTSR-Historic Wholesale'!D67 -> 0 | E68: 0 | F68: 0 | H68: ='13. RTSR-Historic Wholesale'!H67 -> 0 | I68: 0 | J68: 0 | L68: ='13. RTSR-Historic Wholesale'!L67 -> 0 | M68: 0 | N68: 0 | P68: 0
B69: December | D69: ='13. RTSR-Historic Wholesale'!D68 -> 0 | E69: 0 | F69: 0 | H69: ='13. RTSR-Historic Wholesale'!H68 -> 0 | I69: 0 | J69: 0 | L69: ='13. RTSR-Historic Wholesale'!L68 -> 0 | M69: 0 | N69: 0 | P69: 0
B71: Total | D71: =SUM(D58:D69) -> 0 | E71: =IF(D71<>0,F71/D71,0) -> 0 | F71: =SUM(F58:F69) -> 0 | H71: =SUM(H58:H69) -> 0 | I71: =IF(H71<>0,J71/H71,0) -> 0 | J71: =SUM(J58:J69) -> 0 | L71: =SUM(L58:L69) -> 0 | M71: =IF(L71<>0,N71/L71,0) -> 0 | N71: =SUM(N58:N69) -> 0 | P71: =SUM(P58:P69) -> 0
B73: Add Extra Host Here (II) | D73: Network | H73: Line Connection | L73: Transformation Connection | P73: Total Line
B75: Month | D75: Units Billed | E75: Rate | F75: Amount | H75: Units Billed | I75: Rate | J75: Amount | L75: Units Billed | M75: Rate | N75: Amount | P75: Amount
B77: January | D77: ='13. RTSR-Historic Wholesale'!D76 -> 0 | E77: ='12. RTSR-UTRs & Sub-Tx'!H59 -> 0 | F77: =D77*E77 -> 0 | H77: ='13. RTSR-Historic Wholesale'!H76 -> 0 | I77: ='12. RTSR-UTRs & Sub-Tx'!H61 -> 0 | J77: =H77*I77 -> 0 | L77: ='13. RTSR-Historic Wholesale'!L76 -> 0 | M77: ='12. RTSR-UTRs & Sub-Tx'!H63 -> 0 | N77: =L77*M77 -> 0 | P77: =J77+N77 -> 0
B78: February | D78: ='13. RTSR-Historic Wholesale'!D77 -> 0 | E78: =E77 -> 0 | F78: =D78*E78 -> 0 | H78: ='13. RTSR-Historic Wholesale'!H77 -> 0 | I78: =I77 -> 0 | J78: =H78*I78 -> 0 | L78: ='13. RTSR-Historic Wholesale'!L77 -> 0 | M78: =M77 -> 0 | N78: =L78*M78 -> 0 | P78: 0
B79: March | D79: ='13. RTSR-Historic Wholesale'!D78 -> 0 | E79: =E78 -> 0 | F79: 0 | H79: ='13. RTSR-Historic Wholesale'!H78 -> 0 | I79: =I78 -> 0 | J79: 0 | L79: ='13. RTSR-Historic Wholesale'!L78 -> 0 | M79: =M78 -> 0 | N79: 0 | P79: 0
B80: April | D80: ='13. RTSR-Historic Wholesale'!D79 -> 0 | E80: 0 | F80: 0 | H80: ='13. RTSR-Historic Wholesale'!H79 -> 0 | I80: 0 | J80: 0 | L80: ='13. RTSR-Historic Wholesale'!L79 -> 0 | M80: =M79 -> 0 | N80: 0 | P80: 0
B81: May | D81: ='13. RTSR-Historic Wholesale'!D80 -> 0 | E81: 0 | F81: 0 | H81: ='13. RTSR-Historic Wholesale'!H80 -> 0 | I81: 0 | J81: 0 | L81: ='13. RTSR-Historic Wholesale'!L80 -> 0 | M81: 0 | N81: 0 | P81: 0
B82: June | D82: ='13. RTSR-Historic Wholesale'!D81 -> 0 | E82: 0 | F82: 0 | H82: ='13. RTSR-Historic Wholesale'!H81 -> 0 | I82: 0 | J82: 0 | L82: ='13. RTSR-Historic Wholesale'!L81 -> 0 | M82: 0 | N82: 0 | P82: 0
B83: July | D83: ='13. RTSR-Historic Wholesale'!D82 -> 0 | E83: 0 | F83: 0 | H83: ='13. RTSR-Historic Wholesale'!H82 -> 0 | I83: 0 | J83: 0 | L83: ='13. RTSR-Historic Wholesale'!L82 -> 0 | M83: 0 | N83: 0 | P83: 0
B84: August | D84: ='13. RTSR-Historic Wholesale'!D83 -> 0 | E84: 0 | F84: 0 | H84: ='13. RTSR-Historic Wholesale'!H83 -> 0 | I84: 0 | J84: 0 | L84: ='13. RTSR-Historic Wholesale'!L83 -> 0 | M84: 0 | N84: 0 | P84: 0
B85: September | D85: ='13. RTSR-Historic Wholesale'!D84 -> 0 | E85: 0 | F85: 0 | H85: ='13. RTSR-Historic Wholesale'!H84 -> 0 | I85: 0 | J85: 0 | L85: ='13. RTSR-Historic Wholesale'!L84 -> 0 | M85: 0 | N85: 0 | P85: 0
B86: October | D86: ='13. RTSR-Historic Wholesale'!D85 -> 0 | E86: 0 | F86: 0 | H86: ='13. RTSR-Historic Wholesale'!H85 -> 0 | I86: 0 | J86: 0 | L86: ='13. RTSR-Historic Wholesale'!L85 -> 0 | M86: 0 | N86: 0 | P86: 0
B87: November | D87: ='13. RTSR-Historic Wholesale'!D86 -> 0 | E87: 0 | F87: 0 | H87: ='13. RTSR-Historic Wholesale'!H86 -> 0 | I87: 0 | J87: 0 | L87: ='13. RTSR-Historic Wholesale'!L86 -> 0 | M87: 0 | N87: 0 | P87: 0
B88: December | D88: ='13. RTSR-Historic Wholesale'!D87 -> 0 | E88: 0 | F88: 0 | H88: ='13. RTSR-Historic Wholesale'!H87 -> 0 | I88: 0 | J88: 0 | L88: ='13. RTSR-Historic Wholesale'!L87 -> 0 | M88: 0 | N88: 0 | P88: 0
B90: Total | D90: =SUM(D77:D88) -> 0 | E90: =IF(D90<>0,F90/D90,0) -> 0 | F90: =SUM(F77:F88) -> 0 | H90: =SUM(H77:H88) -> 0 | I90: =IF(H90<>0,J90/H90,0) -> 0 | J90: =SUM(J77:J88) -> 0 | L90: =SUM(L77:L88) -> 0 | M90: =IF(L90<>0,N90/L90,0) -> 0 | N90: =SUM(N77:N88) -> 0 | P90: =SUM(P77:P88) -> 0
B92: Total | D92: Network | H92: Line Connection | L92: Transformation Connection | P92: Total Line
B94: Month | D94: Units Billed | E94: Rate | F94: Amount | H94: Units Billed | I94: Rate | J94: Amount | L94: Units Billed | M94: Rate | N94: Amount | P94: Amount
B96: January | D96: =D20+D39+D58+D77 -> 1101701.4 | E96: =IF(D96<>0,F96/D96,0) -> 3.538150365 | F96: =F20+F39+F58+F77 -> 3897985.21 | H96: =H20+H39+H58+H77 -> 1167998.8 | I96: =IF(H96<>0,J96/H96,0) -> 0.9231847916 | J96: =J20+J39+J58+J77 -> 1078278.729 | L96: =L20+L39+L58+L77 -> 1193587.3 | M96: =IF(L96<>0,N96/L96,0) -> 2.24074328 | N96: =N20+N39+N58+N77 -> 2674522.722 | P96: =J96+N96 -> 3752801.451
B97: February | D97: =D21+D40+D59+D78 -> 1058342 | E97: 3.541985237 | F97: =F21+F40+F59+F78 -> 3748631.74 | H97: =H21+H40+H59+H78 -> 1074563 | I97: 0.9250257584 | J97: =J21+J40+J59+J78 -> 993998.454 | L97: =L21+L40+L59+L78 -> 1100746.1 | M97: 2.245494588 | N97: =N21+N40+N59+N78 -> 2471719.41 | P97: 3465717.864
B98: March | D98: 1042404.3 | E98: 3.536538327 | F98: 3686502.76 | H98: 1081890.3 | I98: 0.9235793863 | J98: 999211.5793 | L98: 1110869.8 | M98: 2.239676749 | N98: 2487989.263 | P98: 3487200.842
B99: April | D99: 974386.1 | E99: 3.541718427 | F99: 3451001.206 | H99: 999654.3 | I99: 0.925350643 | J99: 925030.7493 | L99: 1022014.4 | M99: 2.247513173 | N99: 2296990.827 | P99: 3222021.576
B100: May | D100: 1109876.4 | E100: 3.540021908 | F100: 3928986.771 | H100: 1164746.96 | I100: 0.9217243101 | J100: 1073575.588 | L100: 1189087.26 | M100: 2.236508778 | N100: 2659404.095 | P100: 3732979.683
B101: June | D101: 1326941.6 | E101: 3.547655895 | F101: 4707532.19 | H101: 1357086.21 | I101: 0.9262295701 | J101: 1256973.377 | L101: 1382480.35 | M101: 2.25214816 | N101: 3113550.576 | P101: 4370523.953
B102: July | D102: 1291294 | E102: 3.543054698 | F102: 4575125.273 | H102: 1359243.12 | I102: 0.9209987427 | J102: 1251861.205 | L102: 1384763.66 | M102: 2.235173311 | N102: 3095186.775 | P102: 4347047.98
B103: August | D103: 1286340.4 | E103: 3.544599491 | F103: 4559561.527 | H103: 1335714 | I103: 0.9213994313 | J103: 1230726.12 | L103: 1363024 | M103: 2.235673729 | N103: 3047276.949 | P103: 4278003.069
B104: September | D104: 1310641.8 | E104: 3.546891593 | F104: 4648704.382 | H104: 1360798.8 | I104: 0.9264616634 | J104: 1260727.92 | L104: 1385867.3 | M104: 2.253043575 | N104: 3122419.416 | P104: 4383147.336
B105: October | D105: 1038258.28 | E105: 3.533061582 | F105: 3668230.442 | H105: 1079070.16 | I105: 0.9221723427 | J105: 995088.6574 | L105: 1104138.66 | M105: 2.236842354 | N105: 2469784.119 | P105: 3464872.776
B106: November | D106: 1021883.61 | E106: 3.530841864 | F106: 3608109.431 | H106: 1068687.58 | I106: 0.9213114989 | J106: 984594.1562 | L106: 1092188.84 | M106: 2.234654626 | N106: 2440664.843 | P106: 3425259
B107: December | D107: 1168922.07 | E107: 3.53611959 | F107: 4133448.231 | H107: 1205139.68 | I107: 0.9228721398 | J107: 1112189.835 | L107: 1230195.07 | M107: 2.240270565 | N107: 2755969.805 | P107: 3868159.64
B109: Total | D109: =SUM(D96:D107) -> 13730991.96 | E109: =IF(D109<>0,F109/D109,0) -> 3.540444806 | F109: =SUM(F96:F107) -> 48613819.16 | H109: =SUM(H96:H107) -> 14254592.91 | I109: =IF(H109<>0,J109/H109,0) -> 0.9233695029 | J109: =SUM(J96:J107) -> 13162256.37 | L109: =SUM(L96:L107) -> 14558962.74 | M109: =IF(L109<>0,N109/L109,0) -> 2.241607413 | N109: =SUM(N96:N107) -> 32635478.8 | P109: =SUM(P96:P107) -> 45797735.17
N111: Low Voltage Switchgear Credit (if applicable) | P111: ='12. RTSR-UTRs & Sub-Tx'!H68 -> 0
N113: Total including deduction for Low Voltage Switchgear Credit | P113: =P109+P111 -> 45797735.17

Sheet 15. RTSR-Forecast Wholesale
A1: Back to Index
B2: =+'1. Information Sheet'!B2 -> INCENTIVE REGULATION MODEL FOR 2019 FILERS
B13: The purpose of this sheet is to calculate the expected billing when forecasted 2019 Uniform Transmission Rates are applied against historical 2017 transmission units.
B16: IESO | D16: Network | H16: Line Connection | L16: Transformation Connection | P16: Total Line
B18: Month | D18: Units Billed | E18: Rate | F18: Amount | H18: Units Billed | I18: Rate | J18: Amount | L18: Units Billed | M18: Rate | N18: Amount | P18: Amount
B20: January | D20: ='13. RTSR-Historic Wholesale'!D19 -> 911329 | E20: ='12. RTSR-UTRs & Sub-Tx'!J16 -> 3.61 | F20: =D20*E20 -> 3289897.69 | H20: ='13. RTSR-Historic Wholesale'!H19 -> 993026 | I20: ='12. RTSR-UTRs & Sub-Tx'!J18 -> 0.95 | J20: =H20*I20 -> 943374.7 | L20: ='13. RTSR-Historic Wholesale'!L19 -> 993026 | M20: ='12. RTSR-UTRs & Sub-Tx'!J20 -> 2.34 | N20: =L20*M20 -> 2323680.84 | P20: =J20+N20 -> 3267055.54
B21: February | D21: ='13. RTSR-Historic Wholesale'!D20 -> 885223 | E21: =E20 -> 3.61 | F21: 3195655.03 | H21: ='13. RTSR-Historic Wholesale'!H20 -> 924639 | I21: =I20 -> 0.95 | J21: 878407.05 | L21: ='13. RTSR-Historic Wholesale'!L20 -> 924639 | M21: =M20 -> 2.34 | N21: 2163655.26 | P21: 3042062.31
B22: March | D22: ='13. RTSR-Historic Wholesale'!D21 -> 858237 | E22: 3.61 | F22: 3098235.57 | H22: ='13. RTSR-Historic Wholesale'!H21 -> 922202 | I22: 0.95 | J22: 876091.9 | L22: ='13. RTSR-Historic Wholesale'!L21 -> 922202 | M22: 2.34 | N22: 2157952.68 | P22: 3034044.58
B23: April | D23: ='13. RTSR-Historic Wholesale'!D22 -> 814375 | E23: 3.61 | F23: 2939893.75 | H23: ='13. RTSR-Historic Wholesale'!H22 -> 861996 | I23: 0.95 | J23: 818896.2 | L23: ='13. RTSR-Historic Wholesale'!L22 -> 861996 | M23: 2.34 | N23: 2017070.64 | P23: 2835966.84
B24: May | D24: ='13. RTSR-Historic Wholesale'!D23 -> 923087 | E24: 3.61 | F24: 3332344.07 | H24: ='13. RTSR-Historic Wholesale'!H23 -> 980758 | I24: 0.95 | J24: 931720.1 | L24: ='13. RTSR-Historic Wholesale'!L23 -> 980758 | M24: 2.34 | N24: 2294973.72 | P24: 3226693.82
B25: June | D25: ='13. RTSR-Historic Wholesale'!D24 -> 1127983 | E25: 3.61 | F25: 4072018.63 | H25: ='13. RTSR-Historic Wholesale'!H24 -> 1176871 | I25: 0.95 | J25: 1118027.45 | L25: ='13. RTSR-Historic Wholesale'!L24 -> 1176871 | M25: 2.34 | N25: 2753878.14 | P25: 3871905.59
B26: July | D26: ='13. RTSR-Historic Wholesale'!D25 -> 1083391 | E26: 3.61 | F26: 3911041.51 | H26: ='13. RTSR-Historic Wholesale'!H25 -> 1139021 | I26: 0.95 | J26: 1082069.95 | L26: ='13. RTSR-Historic Wholesale'!L25 -> 1139021 | M26: 2.34 | N26: 2665309.14 | P26: 3747379.09
B27: August | D27: ='13. RTSR-Historic Wholesale'!D26 -> 1084014 | E27: 3.61 | F27: 3913290.54 | H27: ='13. RTSR-Historic Wholesale'!H26 -> 1122294 | I27: 0.95 | J27: 1066179.3 | L27: ='13. RTSR-Historic Wholesale'!L26 -> 1122294 | M27: 2.34 | N27: 2626167.96 | P27: 3692347.26
B28: September | D28: ='13. RTSR-Historic Wholesale'!D27 -> 1111718 | E28: 3.61 | F28: 4013301.98 | H28: ='13. RTSR-Historic Wholesale'!H27 -> 1181855 | I28: 0.95 | J28: 1122762.25 | L28: ='13. RTSR-Historic Wholesale'!L27 -> 1181855 | M28: 2.34 | N28: 2765540.7 | P28: 3888302.95
B29: October | D29: ='13. RTSR-Historic Wholesale'!D28 -> 846142 | E29: 3.61 | F29: 3054572.62 | H29: ='13. RTSR-Historic Wholesale'!H28 -> 911316 | I29: 0.95 | J29: 865750.2 | L29: ='13. RTSR-Historic Wholesale'!L28 -> 911316 | M29: 2.34 | N29: 2132479.44 | P29: 2998229.64
B30: November | D30: ='13. RTSR-Historic Wholesale'!D29 -> 827342 | E30: 3.61 | F30: 2986704.62 | H30: ='13. RTSR-Historic Wholesale'!H29 -> 897408 | I30: 0.95 | J30: 852537.6 | L30: ='13. RTSR-Historic Wholesale'!L29 -> 897408 | M30: 2.34 | N30: 2099934.72 | P30: 2952472.32
B31: December | D31: ='13. RTSR-Historic Wholesale'!D30 -> 961225 | E31: 3.61 | F31: 3470022.25 | H31: ='13. RTSR-Historic Wholesale'!H30 -> 1022498 | I31: 0.95 | J31: 971373.1 | L31: ='13. RTSR-Historic Wholesale'!L30 -> 1022498 | M31: 2.34 | N31: 2392645.32 | P31: 3364018.42
B33: Total | D33: =SUM(D20:D31) -> 11434066 | E33: =IF(D33<>0,F33/D33,0) -> 3.61 | F33: =SUM(F20:F31) -> 41276978.26 | H33: =SUM(H20:H31) -> 12133884 | I33: =IF(H33<>0,J33/H33,0) -> 0.95 | J33: =SUM(J20:J31) -> 11527189.8 | L33: =SUM(L20:L31) -> 12133884 | M33: =IF(L33<>0,N33/L33,0) -> 2.34 | N33: =SUM(N20:N31) -> 28393288.56 | P33: =SUM(P20:P31) -> 39920478.36
B35: Hydro One | D35: Network | H35: Line Connection | L35: Transformation Connection | P35: Total Line
B37: Month | D37: Units Billed | E37: Rate | F37: Amount | H37: Units Billed | I37: Rate | J37: Amount | L37: Units Billed | M37: Rate | N37: Amount | P37: Amount
B39: January | D39: ='13. RTSR-Historic Wholesale'!D38 -> 190372.4 | E39: ='12. RTSR-UTRs & Sub-Tx'!J29 -> 3.1942 | F39: =D39*E39 -> 608087.5201 | H39: ='13. RTSR-Historic Wholesale'!H38 -> 174972.8 | I39: ='12. RTSR-UTRs & Sub-Tx'!J31 -> 0.771 | J39: =H39*I39 -> 134904.0288 | L39: ='13. RTSR-Historic Wholesale'!L38 -> 200561.3 | M39: ='12. RTSR-UTRs & Sub-Tx'!J33 -> 1.7493 | N39: =L39*M39 -> 350841.8821 | P39: =J39+N39 -> 485745.9109
B40: February | D40: ='13. RTSR-Historic Wholesale'!D39 -> 173119 | E40: =E39 -> 3.1942 | F40: 552976.7098 | H40: ='13. RTSR-Historic Wholesale'!H39 -> 149924 | I40: =I39 -> 0.771 | J40: 115591.404 | L40: ='13. RTSR-Historic Wholesale'!L39 -> 176107.1 | M40: =M39 -> 1.7493 | N40: 308064.15 | P40: 423655.554
B41: March | D41: ='13. RTSR-Historic Wholesale'!D40 -> 184167.3 | E41: 3.1942 | F41: 588267.1897 | H41: ='13. RTSR-Historic Wholesale'!H40 -> 159688.3 | I41: 0.771 | J41: 123119.6793 | L41: ='13. RTSR-Historic Wholesale'!L40 -> 188667.8 | M41: 1.7493 | N41: 330036.5825 | P41: 453156.2618
B42: April | D42: ='13. RTSR-Historic Wholesale'!D41 -> 160011.1 | E42: 3.1942 | F42: 511107.4556 | H42: ='13. RTSR-Historic Wholesale'!H41 -> 137658.3 | I42: 0.771 | J42: 106134.5493 | L42: ='13. RTSR-Historic Wholesale'!L41 -> 160018.4 | M42: 1.7493 | N42: 279920.1871 | P42: 386054.7364
B43: May | D43: ='13. RTSR-Historic Wholesale'!D42 -> 186789.4 | E43: 3.1942 | F43: 596642.7015 | H43: ='13. RTSR-Historic Wholesale'!H42 -> 183988.96 | I43: 0.771 | J43: 141855.4882 | L43: ='13. RTSR-Historic Wholesale'!L42 -> 208329.26 | M43: 1.7493 | N43: 364430.3745 | P43: 506285.8627
B44: June | D44: ='13. RTSR-Historic Wholesale'!D43 -> 198958.6 | E44: 3.1942 | F44: 635513.5601 | H44: ='13. RTSR-Historic Wholesale'!H43 -> 180215.21 | I44: 0.771 | J44: 138945.9269 | L44: ='13. RTSR-Historic Wholesale'!L43 -> 205609.35 | M44: 1.7493 | N44: 359672.436 | P44: 498618.3629
B45: July | D45: ='13. RTSR-Historic Wholesale'!D44 -> 207903 | E45: 3.1942 | F45: 664083.7626 | H45: ='13. RTSR-Historic Wholesale'!H44 -> 220222.12 | I45: 0.771 | J45: 169791.2545 | L45: ='13. RTSR-Historic Wholesale'!L44 -> 245742.66 | M45: 1.7493 | N45: 429877.6351 | P45: 599668.8897
B46: August | D46: ='13. RTSR-Historic Wholesale'!D45 -> 202326.4 | E46: 3.1942 | F46: 646270.9869 | H46: ='13. RTSR-Historic Wholesale'!H45 -> 213420 | I46: 0.771 | J46: 164546.82 | L46: ='13. RTSR-Historic Wholesale'!L45 -> 240730 | M46: 1.7493 | N46: 421108.989 | P46: 585655.809
B47: September | D47: ='13. RTSR-Historic Wholesale'!D46 -> 198923.8 | E47: 3.1942 | F47: 635402.402 | H47: ='13. RTSR-Historic Wholesale'!H46 -> 178943.8 | I47: 0.771 | J47: 137965.6698 | L47: ='13. RTSR-Historic Wholesale'!L46 -> 204012.3 | M47: 1.7493 | N47: 356878.7164 | P47: 494844.3862
B48: October | D48: ='13. RTSR-Historic Wholesale'!D47 -> 192116.28 | E48: 3.1942 | F48: 613657.8216 | H48: ='13. RTSR-Historic Wholesale'!H47 -> 167754.16 | I48: 0.771 | J48: 129338.4574 | L48: ='13. RTSR-Historic Wholesale'!L47 -> 192822.66 | M48: 1.7493 | N48: 337304.6791 | P48: 466643.1365
B49: November | D49: ='13. RTSR-Historic Wholesale'!D48 -> 194541.61 | E49: 3.1942 | F49: 621404.8107 | H49: ='13. RTSR-Historic Wholesale'!H48 -> 171279.58 | I49: 0.771 | J49: 132056.5562 | L49: ='13. RTSR-Historic Wholesale'!L48 -> 194780.84 | M49: 1.7493 | N49: 340730.1234 | P49: 472786.6796
B50: December | D50: ='13. RTSR-Historic Wholesale'!D49 -> 207697.07 | E50: 3.1942 | F50: 663425.981 | H50: ='13. RTSR-Historic Wholesale'!H49 -> 182641.68 | I50: 0.771 | J50: 140816.7353 | L50: ='13. RTSR-Historic Wholesale'!L49 -> 207697.07 | M50: 1.7493 | N50: 363324.4846 | P50: 504141.2198
B52: Total | D52: =SUM(D39:D50) -> 2296925.96 | E52: =IF(D52<>0,F52/D52,0) -> 3.1942 | F52: =SUM(F39:F50) -> 7336840.901 | H52: =SUM(H39:H50) -> 2120708.91 | I52: =IF(H52<>0,J52/H52,0) -> 0.771 | J52: =SUM(J39:J50) -> 1635066.57 | L52: =SUM(L39:L50) -> 2425078.74 | M52: =IF(L52<>0,N52/L52,0) -> 1.7493 | N52: =SUM(N39:N50) -> 4242190.24 | P52: =SUM(P39:P50) -> 5877256.809
B54: Add Extra Host Here (I) | D54: Network | H54: Line Connection | L54: Transformation Connection | P54: Total Line
B56: Month | D56: Units Billed | E56: Rate | F56: Amount | H56: Units Billed | I56: Rate | J56: Amount | L56: Units Billed | M56: Rate | N56: Amount | P56: Amount
B58: January | D58: ='13. RTSR-Historic Wholesale'!D57 -> 0 | E58: ='12. RTSR-UTRs & Sub-Tx'!J44 -> 0 | F58: =D58*E58 -> 0 | H58: ='13. RTSR-Historic Wholesale'!H57 -> 0 | I58: ='12. RTSR-UTRs & Sub-Tx'!J46 -> 0 | J58: =H58*I58 -> 0 | L58: ='13. RTSR-Historic Wholesale'!L57 -> 0 | M58: ='12. RTSR-UTRs & Sub-Tx'!J48 -> 0 | N58: =L58*M58 -> 0 | P58: =J58+N58 -> 0
B59: February | D59: ='13. RTSR-Historic Wholesale'!D58 -> 0 | E59: =E58 -> 0 | F59: 0 | H59: ='13. RTSR-Historic Wholesale'!H58 -> 0 | I59: =I58 -> 0 | J59: 0 | L59: ='13. RTSR-Historic Wholesale'!L58 -> 0 | M59: =M58 -> 0 | N59: 0 | P59: 0
B60: March | D60: ='13. RTSR-Historic Wholesale'!D59 -> 0 | E60: 0 | F60: 0 | H60: ='13. RTSR-Historic Wholesale'!H59 -> 0 | I60: 0 | J60: 0 | L60: ='13. RTSR-Historic Wholesale'!L59 -> 0 | M60: 0 | N60: 0 | P60: 0
B61: April | D61: ='13. RTSR-Historic Wholesale'!D60 -> 0 | E61: 0 | F61: 0 | H61: ='13. RTSR-Historic Wholesale'!H60 -> 0 | I61: 0 | J61: 0 | L61: ='13. RTSR-Historic Wholesale'!L60 -> 0 | M61: 0 | N61: 0 | P61: 0
B62: May | D62: ='13. RTSR-Historic Wholesale'!D61 -> 0 | E62: 0 | F62: 0 | H62: ='13. RTSR-Historic Wholesale'!H61 -> 0 | I62: 0 | J62: 0 | L62: ='13. RTSR-Historic Wholesale'!L61 -> 0 | M62: 0 | N62: 0 | P62: 0
B63: June | D63: ='13. RTSR-Historic Wholesale'!D62 -> 0 | E63: 0 | F63: 0 | H63: ='13. RTSR-Historic Wholesale'!H62 -> 0 | I63: 0 | J63: 0 | L63: ='13. RTSR-Historic Wholesale'!L62 -> 0 | M63: 0 | N63: 0 | P63: 0
B64: July | D64: ='13. RTSR-Historic Wholesale'!D63 -> 0 | E64: 0 | F64: 0 | H64: ='13. RTSR-Historic Wholesale'!H63 -> 0 | I64: 0 | J64: 0 | L64: ='13. RTSR-Historic Wholesale'!L63 -> 0 | M64: 0 | N64: 0 | P64: 0
B65: August | D65: ='13. RTSR-Historic Wholesale'!D64 -> 0 | E65: 0 | F65: 0 | H65: ='13. RTSR-Historic Wholesale'!H64 -> 0 | I65: 0 | J65: 0 | L65: ='13. RTSR-Historic Wholesale'!L64 -> 0 | M65: 0 | N65: 0 | P65: 0
B66: September | D66: ='13. RTSR-Historic Wholesale'!D65 -> 0 | E66: 0 | F66: 0 | H66: ='13. RTSR-Historic Wholesale'!H65 -> 0 | I66: 0 | J66: 0 | L66: ='13. RTSR-Historic Wholesale'!L65 -> 0 | M66: 0 | N66: 0 | P66: 0
B67: October | D67: ='13. RTSR-Historic Wholesale'!D66 -> 0 | E67: 0 | F67: 0 | H67: ='13. RTSR-Historic Wholesale'!H66 -> 0 | I67: 0 | J67: 0 | L67: ='13. RTSR-Historic Wholesale'!L66 -> 0 | M67: 0 | N67: 0 | P67: 0
B68: November | D68: ='13. RTSR-Historic Wholesale'!D67 -> 0 | E68: 0 | F68: 0 | H68: ='13. RTSR-Historic Wholesale'!H67 -> 0 | I68: 0 | J68: 0 | L68: ='13. RTSR-Historic Wholesale'!L67 -> 0 | M68: 0 | N68: 0 | P68: 0
B69: December | D69: ='13. RTSR-Historic Wholesale'!D68 -> 0 | E69: 0 | F69: 0 | H69: ='13. RTSR-Historic Wholesale'!H68 -> 0 | I69: 0 | J69: 0 | L69: ='13. RTSR-Historic Wholesale'!L68 -> 0 | M69: 0 | N69: 0 | P69: 0
B71: Total | D71: =SUM(D58:D69) -> 0 | E71: =IF(D71<>0,F71/D71,0) -> 0 | F71: =SUM(F58:F69) -> 0 | H71: =SUM(H58:H69) -> 0 | I71: =IF(H71<>0,J71/H71,0) -> 0 | J71: =SUM(J58:J69) -> 0 | L71: =SUM(L58:L69) -> 0 | M71: =IF(L71<>0,N71/L71,0) -> 0 | N71: =SUM(N58:N69) -> 0 | P71: =SUM(P58:P69) -> 0
B73: Add Extra Host Here (II) | D73: Network | H73: Line Connection | L73: Transformation Connection | P73: Total Line
B75: Month | D75: Units Billed | E75: Rate | F75: Amount | H75: Units Billed | I75: Rate | J75: Amount | L75: Units Billed | M75: Rate | N75: Amount | P75: Amount
B77: January | D77: ='13. RTSR-Historic Wholesale'!D76 -> 0 | E77: ='12. RTSR-UTRs & Sub-Tx'!J59 -> 0 | F77: =D77*E77 -> 0 | H77: ='13. RTSR-Historic Wholesale'!H76 -> 0 | I77: ='12. RTSR-UTRs & Sub-Tx'!J61 -> 0 | J77: =H77*I77 -> 0 | L77: ='13. RTSR-Historic Wholesale'!L76 -> 0 | M77: ='12. RTSR-UTRs & Sub-Tx'!J63 -> 0 | N77: =L77*M77 -> 0 | P77: =J77+N77 -> 0
B78: February | D78: ='13. RTSR-Historic Wholesale'!D77 -> 0 | E78: =E77 -> 0 | F78: 0 | H78: ='13. RTSR-Historic Wholesale'!H77 -> 0 | I78: =I77 -> 0 | J78: 0 | L78: ='13. RTSR-Historic Wholesale'!L77 -> 0 | M78: =M77 -> 0 | N78: 0 | P78: 0
B79: March | D79: ='13. RTSR-Historic Wholesale'!D78 -> 0 | E79: 0 | F79: 0 | H79: ='13. RTSR-Historic Wholesale'!H78 -> 0 | I79: 0 | J79: 0 | L79: ='13. RTSR-Historic Wholesale'!L78 -> 0 | M79: 0 | N79: 0 | P79: 0
B80: April | D80: ='13. RTSR-Historic Wholesale'!D79 -> 0 | E80: 0 | F80: 0 | H80: ='13. RTSR-Historic Wholesale'!H79 -> 0 | I80: 0 | J80: 0 | L80: ='13. RTSR-Historic Wholesale'!L79 -> 0 | M80: 0 | N80: 0 | P80: 0
B81: May | D81: ='13. RTSR-Historic Wholesale'!D80 -> 0 | E81: 0 | F81: 0 | H81: ='13. RTSR-Historic Wholesale'!H80 -> 0 | I81: 0 | J81: 0 | L81: ='13. RTSR-Historic Wholesale'!L80 -> 0 | M81: 0 | N81: 0 | P81: 0
B82: June | D82: ='13. RTSR-Historic Wholesale'!D81 -> 0 | E82: 0 | F82: 0 | H82: ='13. RTSR-Historic Wholesale'!H81 -> 0 | I82: 0 | J82: 0 | L82: ='13. RTSR-Historic Wholesale'!L81 -> 0 | M82: 0 | N82: 0 | P82: 0
B83: July | D83: ='13. RTSR-Historic Wholesale'!D82 -> 0 | E83: 0 | F83: 0 | H83: ='13. RTSR-Historic Wholesale'!H82 -> 0 | I83: 0 | J83: 0 | L83: ='13. RTSR-Historic Wholesale'!L82 -> 0 | M83: 0 | N83: 0 | P83: 0
B84: August | D84: ='13. RTSR-Historic Wholesale'!D83 -> 0 | E84: 0 | F84: 0 | H84: ='13. RTSR-Historic Wholesale'!H83 -> 0 | I84: 0 | J84: 0 | L84: ='13. RTSR-Historic Wholesale'!L83 -> 0 | M84: 0 | N84: 0 | P84: 0
B85: September | D85: ='13. RTSR-Historic Wholesale'!D84 -> 0 | E85: 0 | F85: 0 | H85: ='13. RTSR-Historic Wholesale'!H84 -> 0 | I85: 0 | J85: 0 | L85: ='13. RTSR-Historic Wholesale'!L84 -> 0 | M85: 0 | N85: 0 | P85: 0
B86: October | D86: ='13. RTSR-Historic Wholesale'!D85 -> 0 | E86: 0 | F86: 0 | H86: ='13. RTSR-Historic Wholesale'!H85 -> 0 | I86: 0 | J86: 0 | L86: ='13. RTSR-Historic Wholesale'!L85 -> 0 | M86: 0 | N86: 0 | P86: 0
B87: November | D87: ='13. RTSR-Historic Wholesale'!D86 -> 0 | E87: 0 | F87: 0 | H87: ='13. RTSR-Historic Wholesale'!H86 -> 0 | I87: 0 | J87: 0 | L87: ='13. RTSR-Historic Wholesale'!L86 -> 0 | M87: 0 | N87: 0 | P87: 0
B88: December | D88: ='13. RTSR-Historic Wholesale'!D87 -> 0 | E88: 0 | F88: 0 | H88: ='13. RTSR-Historic Wholesale'!H87 -> 0 | I88: 0 | J88: 0 | L88: ='13. RTSR-Historic Wholesale'!L87 -> 0 | M88: 0 | N88: 0 | P88: 0
L89: ='13. RTSR-Historic Wholesale'!L88 -> 0
B90: Total | D90: =SUM(D77:D88) -> 0 | E90: =IF(D90<>0,F90/D90,0) -> 0 | F90: =SUM(F77:F88) -> 0 | H90: =SUM(H77:H88) -> 0 | I90: =IF(H90<>0,J90/H90,0) -> 0 | J90: =SUM(J77:J88) -> 0 | L90: =SUM(L77:L88) -> 0 | M90: =IF(L90<>0,N90/L90,0) -> 0 | N90: =SUM(N77:N88) -> 0 | P90: =SUM(P77:P88) -> 0
B92: Total | D92: Network | H92: Line Connection | L92: Transformation Connection | P92: Total Line
B94: Month | D94: Units Billed | E94: Rate | F94: Amount | H94: Units Billed | I94: Rate | J94: Amount | L94: Units Billed | M94: Rate | N94: Amount | P94: Amount
B96: January | D96: =D20+D39+D58+D77 -> 1101701.4 | E96: =IF(D96<>0,F96/D96,0) -> 3.538150365 | F96: =F20+F39+F58+F77 -> 3897985.21 | H96: =H20+H39+H58+H77 -> 1167998.8 | I96: =IF(H96<>0,J96/H96,0) -> 0.9231847916 | J96: =J20+J39+J58+J77 -> 1078278.729 | L96: =L20+L39+L58+L77 -> 1193587.3 | M96: =IF(L96<>0,N96/L96,0) -> 2.24074328 | N96: =N20+N39+N58+N77 -> 2674522.722 | P96: =J96+N96 -> 3752801.451
B97: February | D97: =D21+D40+D59+D78 -> 1058342 | E97: 3.541985237 | F97: =F21+F40+F59+F78 -> 3748631.74 | H97: =H21+H40+H59+H78 -> 1074563 | I97: 0.9250257584 | J97: =J21+J40+J59+J78 -> 993998.454 | L97: =L21+L40+L59+L78 -> 1100746.1 | M97: 2.245494588 | N97: =N21+N40+N59+N78 -> 2471719.41 | P97: 3465717.864
B98: March | D98: 1042404.3 | E98: 3.536538327 | F98: 3686502.76 | H98: 1081890.3 | I98: 0.9235793863 | J98: 999211.5793 | L98: 1110869.8 | M98: 2.239676749 | N98: 2487989.263 | P98: 3487200.842
B99: April | D99: 974386.1 | E99: 3.541718427 | F99: 3451001.206 | H99: 999654.3 | I99: 0.925350643 | J99: 925030.7493 | L99: 1022014.4 | M99: 2.247513173 | N99: 2296990.827 | P99: 3222021.576
B100: May | D100: 1109876.4 | E100: 3.540021908 | F100: 3928986.771 | H100: 1164746.96 | I100: 0.9217243101 | J100: 1073575.588 | L100: 1189087.26 | M100: 2.236508778 | N100: 2659404.095 | P100: 3732979.683
B101: June | D101: 1326941.6 | E101: 3.547655895 | F101: 4707532.19 | H101: 1357086.21 | I101: 0.9262295701 | J101: 1256973.377 | L101: 1382480.35 | M101: 2.25214816 | N101: 3113550.576 | P101: 4370523.953
B102: July | D102: 1291294 | E102: 3.543054698 | F102: 4575125.273 | H102: 1359243.12 | I102: 0.9209987427 | J102: 1251861.205 | L102: 1384763.66 | M102: 2.235173311 | N102: 3095186.775 | P102: 4347047.98
B103: August | D103: 1286340.4 | E103: 3.544599491 | F103: 4559561.527 | H103: 1335714 | I103: 0.9213994313 | J103: 1230726.12 | L103: 1363024 | M103: 2.235673729 | N103: 3047276.949 | P103: 4278003.069
B104: September | D104: 1310641.8 | E104: 3.546891593 | F104: 4648704.382 | H104: 1360798.8 | I104: 0.9264616634 | J104: 1260727.92 | L104: 1385867.3 | M104: 2.253043575 | N104: 3122419.416 | P104: 4383147.336
B105: October | D105: 1038258.28 | E105: 3.533061582 | F105: 3668230.442 | H105: 1079070.16 | I105: 0.9221723427 | J105: 995088.6574 | L105: 1104138.66 | M105: 2.236842354 | N105: 2469784.119 | P105: 3464872.776
B106: November | D106: 1021883.61 | E106: 3.530841864 | F106: 3608109.431 | H106: 1068687.58 | I106: 0.9213114989 | J106: 984594.1562 | L106: 1092188.84 | M106: 2.234654626 | N106: 2440664.843 | P106: 3425259
B107: December | D107: 1168922.07 | E107: 3.53611959 | F107: 4133448.231 | H107: 1205139.68 | I107: 0.9228721398 | J107: 1112189.835 | L107: 1230195.07 | M107: 2.240270565 | N107: 2755969.805 | P107: 3868159.64
B109: Total | D109: =SUM(D96:D107) -> 13730991.96 | E109: =IF(D109<>0,F109/D109,0) -> 3.540444806 | F109: =SUM(F96:F107) -> 48613819.16 | H109: =SUM(H96:H107) -> 14254592.91 | I109: =IF(H109<>0,J109/H109,0) -> 0.9233695029 | J109: =SUM(J96:J107) -> 13162256.37 | L109: =SUM(L96:L107) -> 14558962.74 | M109: =IF(L109<>0,N109/L109,0) -> 2.241607413 | N109: =SUM(N96:N107) -> 32635478.8 | P109: =SUM(P96:P107) -> 45797735.17
N111: Low Voltage Switchgear Credit (if applicable) | P111: ='12. RTSR-UTRs & Sub-Tx'!J68 -> 0
N113: Total including deduction for Low Voltage Switchgear Credit | P113: =P109+P111 -> 45797735.17

Sheet 16. RTSR-Rates to Forecast
A1: Back to Index | B1: Back to Index
B2: =+'1. Information Sheet'!B2 -> INCENTIVE REGULATION MODEL FOR 2019 FILERS
B13: The purpose of this table is to re-align the current RTS Network Rates to recover current wholesale network costs.
B15: Rate Class | C15: Rate Description | D15: Unit | E15: Current RTSR-Network | F15: Loss Adjusted Billed kWh | G15: Billed kW | H15: Billed Amount | I15: Billed Amount % | J15: Current Wholesale Billing | K15: Adjusted RTSR Network
A17: ='11. RTSR - Current Rates'!A16 -> R_TN | B17: ='4. Billing Det. for Def-Var'!B17 -> RESIDENTIAL SERVICE CLASSIFICATION | C17: =VLOOKUP(A17,RTSR,3,FALSE) -> Retail Transmission Rate – Network Service Rate | D17: =VLOOKUP(A17,RTSR,4,FALSE) -> $/kWh | E17: =VLOOKUP(A17,RATES,4,FALSE) -> 0.007570643242 | F17: =VLOOKUP(A17,RTSR,9,FALSE) -> 1440461108 | G17: =VLOOKUP(A17,RTSR,7,FALSE) -> 0 | H17: =IF(ISERROR(E17*F17), 0, ROUND(E17*F17, 2)) -> 10905217.15 | I17: =H17/SUM(H$17:H$26) -> 0.2253719961 | J17: =I17*total_wholesale_TN -> 10956193.46 | K17: =IF(ISERROR(J17/F17), 0, J17/F17) -> 0.007606032124
A18: ='11. RTSR - Current Rates'!A18 -> GSL_TN | B18: ='4. Billing Det. for Def-Var'!B18 -> GENERAL SERVICE LESS THAN 50 kW SERVICE CLASSIFICATION | C18: Retail Transmission Rate – Network Service Rate | D18: $/kWh | E18: =VLOOKUP(A18,RATES,4,FALSE) -> 0.0071 | F18: =VLOOKUP(A18,RTSR,9,FALSE) -> 618679646.4 | G18: =VLOOKUP(A18,RTSR,7,FALSE) -> 0 | H18: =IF(ISERROR(E18*F18), 0, ROUND(E18*F18, 2)) -> 4392625.49 | I18: =H18/SUM(H$17:H$26) -> 0.09077992313 | J18: =I18*total_wholesale_TN -> 4413158.767 | K18: =IF(ISERROR(J18/F18), 0, J18/F18) -> 0.007133188868
A19: ='11. RTSR - Current Rates'!A20 -> GS50_499_TN | B19: ='4. Billing Det. for Def-Var'!B19 -> GENERAL SERVICE 50 to 499 kW SERVICE CLASSIFICATION | C19: Retail Transmission Rate – Network Service Rate | D19: $/kW | E19: 2.7325 | G19: 5780039.102 | H19: =IF(ISERROR(E19*G19), 0, ROUND(E19*G19, 2)) -> 15793956.85 | I19: 0.3264048328 | J19: 15867785.52 | K19: =IF(ISERROR(J19/G19), 0, J19/G19) -> 2.74527304
A20: ='11. RTSR - Current Rates'!A22 -> GS500_TN | B20: ='4. Billing Det. for Def-Var'!B20 -> GENERAL SERVICE 500 to 4,999 kW SERVICE CLASSIFICATION | C20: Retail Transmission Rate – Network Service Rate | D20: $/kW | E20: 2.6436 | G20: 4610762.335 | H20: =IF(ISERROR(E20*G20), 0, ROUND(E20*G20, 2)) -> 12189011.31 | I20: 0.2519034487 | J20: 12245988.7 | K20: =IF(ISERROR(J20/G20), 0, J20/G20) -> 2.655957478
A21: ='11. RTSR - Current Rates'!A24 -> LU_TN | B21: ='4. Billing Det. for Def-Var'!B21 -> LARGE USE SERVICE CLASSIFICATION | C21: Retail Transmission Rate – Network Service Rate – Interval Metered | D21: $/kW | E21: 2.8211 | G21: 1753815.619 | H21: 4947689.24 | I21: 0.1022511138 | J21: 4970817.156 | K21: 2.834287198
B22: ='4. Billing Det. for Def-Var'!B22 -> STANDBY POWER SERVICE CLASSIFICATION
A23: ='11. RTSR - Current Rates'!A26 -> USL_TN | B23: ='4. Billing Det. for Def-Var'!B23 -> UNMETERED SCATTERED LOAD SERVICE CLASSIFICATION | C23: Retail Transmission Rate – Network Service Rate | D23: $/kWh | E23: 0.0071 | F23: 11421124.46 | G23: 0 | H23: =IF(ISERROR(E23*F23), 0, ROUND(E23*F23, 2)) -> 81089.98 | I23: 0.001675841059 | J23: 81469.03417 | K23: =IF(ISERROR(J23/F23), 0, J23/F23) -> 0.007133188546
A24: SL_TN | B24: ='4. Billing Det. for Def-Var'!B24 -> STREET LIGHTING SERVICE CLASSIFICATION | C24: Retail Transmission Rate – Network Service Rate | D24: $/kW | E24: 1.8924 | G24: 41239.54618 | H24: 78041.72 | I24: 0.001612844382 | J24: 78406.52511 | K24: 1.90124607
B27: The purpose of this table is to re-align the current RTS Connection Rates to recover current wholesale connection costs.
B28: Rate Class | C28: Rate Description | D28: Unit | E28: Current RTSR-Connection | F28: Loss Adjusted Billed kWh | G28: Billed kW | H28: Billed Amount | I28: Billed Amount % | J28: Current Wholesale Billing | K28: Adjusted RTSR-Connection
A30: R_TC | B30: =B17 -> RESIDENTIAL SERVICE CLASSIFICATION | C30: =VLOOKUP(A30,RTSR,3,FALSE) -> Retail Transmission Rate – Line and Transformation Connection Service Rate | D30: =VLOOKUP(A30,RTSR,4,FALSE) -> $/kWh | E30: =VLOOKUP(A30,RATES,4,FALSE) -> 0.007083661816 | F30: =F17 -> 1440461108 | G30: =G17 -> 0 | H30: =IF(ISERROR(E30*F30), 0, ROUND(E30*F30, 2)) -> 10203739.35 | I30: =H30/SUM(H$30:H$39) -> 0.2265245268 | J30: =I30*total_wholesale_LinePlus -> 10374310.29 | K30: =IF(ISERROR(J30/F30), 0, J30/F30) -> 0.007202075939
A31: GSL_TC | B31: =B18 -> GENERAL SERVICE LESS THAN 50 kW SERVICE CLASSIFICATION | C31: Retail Transmission Rate – Line and Transformation Connection Service Rate | D31: $/kWh | E31: 0.0064 | F31: =F18 -> 618679646.4 | G31: 0 | H31: =IF(ISERROR(E31*F31), 0, ROUND(E31*F31, 2)) -> 3959549.74 | I31: =H31/SUM(H$30:H$39) -> 0.08790259143 | J31: 4025739.603 | K31: =IF(ISERROR(J31/F31), 0, J31/F31) -> 0.006506985685
A32: GS50_499_TC | B32: GENERAL SERVICE 50 to 499 kW SERVICE CLASSIFICATION | C32: Retail Transmission Rate – Line and Transformation Connection Service Rate | D32: $/kW | E32: 2.5347 | G32: 5780039.102 | H32: =IF(ISERROR(E32*G32), 0, ROUND(E32*G32, 2)) -> 14650665.11 | I32: 0.3252469381 | J32: 14895573.14 | K32: =IF(ISERROR(J32/G32), 0, J32/G32) -> 2.577071344
A33: GS500_TC | B33: GENERAL SERVICE 500 to 4,999 kW SERVICE CLASSIFICATION | C33: Retail Transmission Rate – Line and Transformation Connection Service Rate | D33: $/kW | E33: 2.4803 | G33: 4610762.335 | H33: =IF(ISERROR(E33*G33), 0, ROUND(E33*G33, 2)) -> 11436073.82 | I33: 0.2538825348 | J33: 11627245.09 | K33: =IF(ISERROR(J33/G33), 0, J33/G33) -> 2.521761966
A34: LU_TC | B34: LARGE USE SERVICE CLASSIFICATION | C34: Retail Transmission Rate – Line and Transformation Connection Service Rate – Interval Metered | D34: $/kW | E34: 2.6491 | G34: 1753815.619 | H34: 4646032.96 | I34: 0.1031426207 | J34: 4723698.428 | K34: 2.693383716
B35: STANDBY POWER SERVICE CLASSIFICATION
A36: USL_TC | B36: UNMETERED SCATTERED LOAD SERVICE CLASSIFICATION | C36: Retail Transmission Rate – Line and Transformation Connection Service Rate | D36: $/kWh | E36: 0.0064 | F36: 11421124.46 | G36: 0 | H36: =IF(ISERROR(E36*F36), 0, ROUND(E36*F36, 2)) -> 73095.2 | I36: 0.00162272428 | J36: 74317.09683 | K36: =IF(ISERROR(J36/F36), 0, J36/F36) -> 0.006506985989
A37: SL_TC | B37: STREET LIGHTING SERVICE CLASSIFICATION | C37: Retail Transmission Rate – Line and Transformation Connection Service Rate | D37: $/kW | E37: 1.8329 | G37: 41239.54618 | H37: 75587.96 | I37: 0.001678063922 | J37: 76851.52708 | K37: 1.863539592
B40: The purpose of this table is to update the re-aligned RTS Network Rates to recover future wholesale network costs.
B41: Rate Class | C41: Rate Description | D41: Unit | E41: Adjusted RTSR-Network | F41: Loss Adjusted Billed kWh | G41: Billed kW | H41: Billed Amount | I41: Billed Amount % | J41: Current Wholesale Billing | K41: Proposed RTSR-Network
A43: R_TN | B43: =B17 -> RESIDENTIAL SERVICE CLASSIFICATION | C43: =VLOOKUP(A43,RTSR,3,FALSE) -> Retail Transmission Rate – Network Service Rate | D43: =VLOOKUP(A43,RTSR,4,FALSE) -> $/kWh | E43: =K17 -> 0.007606032124 | F43: =VLOOKUP(A43,RTSR,9,FALSE) -> 1440461108 | G43: =VLOOKUP(A43,RTSR,7,FALSE) -> 0 | H43: =IF(ISERROR(E43*F43), 0, ROUND(E43*F43, 2)) -> 10956193.46 | I43: =H43/SUM(H$43:H$52) -> 0.225371996 | J43: =I43*forecast_wholesale_TN -> 10956193.46 | K43: =IF(ISERROR(J43/F43), 0, J43/F43) -> 0.007606032122
A44: GSL_TN | B44: =B18 -> GENERAL SERVICE LESS THAN 50 kW SERVICE CLASSIFICATION | C44: Retail Transmission Rate – Network Service Rate | D44: $/kWh | E44: =K18 -> 0.007133188868 | F44: 618679646.4 | G44: 0 | H44: =IF(ISERROR(E44*F44), 0, ROUND(E44*F44, 2)) -> 4413158.77 | I44: =H44/SUM(H$43:H$52) -> 0.09077992319 | J44: 4413158.769 | K44: =IF(ISERROR(J44/F44), 0, J44/F44) -> 0.007133188872
A45: GS50_499_TN | B45: GENERAL SERVICE 50 to 499 kW SERVICE CLASSIFICATION | C45: Retail Transmission Rate – Network Service Rate | D45: $/kW | E45: 2.74527304 | G45: 5780039.102 | H45: =IF(ISERROR(E45*G45), 0, ROUND(E45*G45, 2)) -> 15867785.52 | I45: 0.3264048328 | J45: 15867785.52 | K45: =IF(ISERROR(J45/G45), 0, J45/G45) -> 2.74527304
A46: GS500_TN | B46: GENERAL SERVICE 500 to 4,999 kW SERVICE CLASSIFICATION | C46: Retail Transmission Rate – Network Service Rate | D46: $/kW | E46: 2.655957478 | G46: 4610762.335 | H46: =IF(ISERROR(E46*G46), 0, ROUND(E46*G46, 2)) -> 12245988.7 | I46: 0.2519034486 | J46: 12245988.7 | K46: =IF(ISERROR(J46/G46), 0, J46/G46) -> 2.655957477
A47: LU_TN | B47: LARGE USE SERVICE CLASSIFICATION | C47: Retail Transmission Rate – Network Service Rate – Interval Metered | D47: $/kW | E47: 2.834287198 | G47: 1753815.619 | H47: 4970817.16 | I47: 0.1022511139 | J47: 4970817.159 | K47: 2.8342872
B48: STANDBY POWER SERVICE CLASSIFICATION
A49: USL_TN | B49: UNMETERED SCATTERED LOAD SERVICE CLASSIFICATION | C49: Retail Transmission Rate – Network Service Rate | D49: $/kWh | E49: 0.007133188546 | F49: 11421124.46 | G49: 0 | H49: =IF(ISERROR(E49*F49), 0, ROUND(E49*F49, 2)) -> 81469.03 | I49: 0.001675840973 | J49: 81469.02999 | K49: =IF(ISERROR(J49/F49), 0, J49/F49) -> 0.00713318818
A50: SL_TN | B50: STREET LIGHTING SERVICE CLASSIFICATION | C50: Retail Transmission Rate – Network Service Rate | D50: $/kW | E50: 1.90124607 | G50: 41239.54618 | H50: 78406.53 | I50: 0.001612844482 | J50: 78406.52999 | K50: 1.901246188
B53: The purpose of this table is to update the re-aligned RTS Connection Rates to recover future wholesale connection costs.
B54: Rate Class | C54: Rate Description | D54: Unit | E54: Adjusted RTSR-Connection | F54: Loss Adjusted Billed kWh | G54: Billed kW | H54: Billed Amount | I54: Billed Amount % | J54: Current Wholesale Billing | K54: Proposed RTSR-Connection
A56: R_TC | B56: =B17 -> RESIDENTIAL SERVICE CLASSIFICATION | C56: =VLOOKUP(A56,RTSR,3,FALSE) -> Retail Transmission Rate – Line and Transformation Connection Service Rate | D56: =VLOOKUP(A56,RTSR,4,FALSE) -> $/kWh | E56: =K30 -> 0.007202075939 | F56: =VLOOKUP(A56,RTSR,9,FALSE) -> 1440461108 | G56: =VLOOKUP(A56,RTSR,7,FALSE) -> 0 | H56: =IF(ISERROR(E56*F56), 0, ROUND(E56*F56, 2)) -> 10374310.29 | I56: =H56/SUM(H$56:H$65) -> 0.2265245268 | J56: =I56*forecast_wholesale_LNPlus -> 10374310.29 | K56: =IF(ISERROR(J56/F56), 0, J56/F56) -> 0.007202075939
A57: GSL_TC | B57: =B18 -> GENERAL SERVICE LESS THAN 50 kW SERVICE CLASSIFICATION | C57: Retail Transmission Rate – Line and Transformation Connection Service Rate | D57: $/kWh | E57: =K31 -> 0.006506985685 | F57: 618679646.4 | G57: 0 | H57: =IF(ISERROR(E57*F57), 0, ROUND(E57*F57, 2)) -> 4025739.6 | I57: =H57/SUM(H$56:H$65) -> 0.08790259134 | J57: 4025739.599 | K57: =IF(ISERROR(J57/F57), 0, J57/F57) -> 0.006506985679
A58: GS50_499_TC | B58: GENERAL SERVICE 50 to 499 kW SERVICE CLASSIFICATION | C58: Retail Transmission Rate – Line and Transformation Connection Service Rate | D58: $/kW | E58: 2.577071344 | G58: 5780039.102 | H58: =IF(ISERROR(E58*G58), 0, ROUND(E58*G58, 2)) -> 14895573.14 | I58: 0.3252469381 | J58: 14895573.14 | K58: =IF(ISERROR(J58/G58), 0, J58/G58) -> 2.577071344
A59: GS500_TC | B59: GENERAL SERVICE 500 to 4,999 kW SERVICE CLASSIFICATION | C59: Retail Transmission Rate – Line and Transformation Connection Service Rate | D59: $/kW | E59: 2.521761966 | G59: 4610762.335 | H59: =IF(ISERROR(E59*G59), 0, ROUND(E59*G59, 2)) -> 11627245.09 | I59: 0.2538825347 | J59: 11627245.09 | K59: =IF(ISERROR(J59/G59), 0, J59/G59) -> 2.521761965
A60: LU_TC | B60: LARGE USE SERVICE CLASSIFICATION | C60: Retail Transmission Rate – Line and Transformation Connection Service Rate – Interval Metered | D60: $/kW | E60: 2.693383716 | G60: 1753815.619 | H60: 4723698.43 | I60: 0.1031426207 | J60: 4723698.429 | K60: 2.693383716
B61: STANDBY POWER SERVICE CLASSIFICATION
A62: USL_TC | B62: UNMETERED SCATTERED LOAD SERVICE CLASSIFICATION | C62: Retail Transmission Rate – Line and Transformation Connection Service Rate | D62: $/kWh | E62: 0.006506985989 | F62: 11421124.46 | G62: 0 | H62: =IF(ISERROR(E62*F62), 0, ROUND(E62*F62, 2)) -> 74317.1 | I62: 0.001622724349 | J62: 74317.09998 | K62: =IF(ISERROR(J62/F62), 0, J62/F62) -> 0.006506986265
A63: SL_TC | B63: STREET LIGHTING SERVICE CLASSIFICATION | C63: Retail Transmission Rate – Line and Transformation Connection Service Rate | D63: $/kW | E63: 1.863539592 | G63: 41239.54618 | H63: 76851.53 | I63: 0.001678063985 | J63: 76851.52998 | K63: 1.863539663

Sheet 17. Rev2Cost-GDPIPI
A1: Back to Index | C1: Back to Index | AA1: FALSE | AB1: 0 | AE1: NO
C2: =+'1. Information Sheet'!B2 -> INCENTIVE REGULATION MODEL FOR 2019 FILERS | S2: TRUE
C11: If applicable, please enter any adjustments related to the revenue to cost ratio model into columns C and E. The Price Escalator and Stretch Factor have been set at the 2016 values and will be updated by OEB staff at a later date.
C12: Price Escalator | D12: 0.012 | E12: Productivity Factor | F12: 0 | G12: # of Residential Customers (approved in the last CoS) | H12: 176865 | I12: Effective Year of Residential Rate Design Transition (yyyy) | J12: 2016
C13: Choose Stretch Factor Group | D13: III | E13: Price Cap Index | F13: =D12-F12-D14 -> 0.009 | G13: Billed kWh for Residential Class (approved in the last CoS) | H13: 1423857475 | I13: OEB-approved # of Transition Years | J13: 4
C14: Associated Stretch Factor Value | D14: =IF(D13="I", 0%, IF(D13="II", 0.15%, IF(D13="III", 0.3%, IF(D13="IV", 0.45%, 0.6%)))) -> 0.003 | G14: Rate Design Transition Years Left | H14: 1
C15: Rate Class | D15: Current MFC | E15: MFC Adjustment from R/C Model | F15: Current Volumetric Charge | G15: DVR Adjustment from R/C Model | H15: Price Cap Index to be Applied to MFC and DVR | I15: Proposed MFC | J15: Proposed Volumetric Charge
A17: R_F | B17: R_V | C17: ='4. Billing Det. for Def-Var'!B17 -> RESIDENTIAL SERVICE CLASSIFICATION | D17: =IFERROR(VLOOKUP(A17,RATES,4,FALSE),"") -> 21.61 | F17: =IFERROR(VLOOKUP(B17,RATES,4,FALSE),"") -> 0.0035 | H17: =F$13 -> 0.009 | I17: =J28*(1+F13) -> 24.17564 | J17: =J29*(1+F13) -> 0
A18: GSL_F | B18: GSL_V | C18: ='4. Billing Det. for Def-Var'!B18 -> GENERAL SERVICE LESS THAN 50 kW SERVICE CLASSIFICATION | D18: 43.99 | F18: 0.0128 | H18: =F$13 -> 0.009 | I18: =(D18+E18)*(1+F$13) -> 44.38591 | J18: =(F18+G18)*(1+F$13) -> 0.0129152
A19: GS50_499_F | B19: GS50_499_V | C19: ='4. Billing Det. for Def-Var'!B19 -> GENERAL SERVICE 50 to 499 kW SERVICE CLASSIFICATION | D19: 77.48 | F19: 4.6629 | H19: 0.009 | I19: =(D19+E19)*(1+F$13) -> 78.17732 | J19: =(F19+G19)*(1+F$13) -> 4.7048661
A20: GS500_F | B20: GS500_V | C20: ='4. Billing Det. for Def-Var'!B20 -> GENERAL SERVICE 500 to 4,999 kW SERVICE CLASSIFICATION | D20: 1764.42 | F20: 2.3994 | H20: 0.009 | I20: =(D20+E20)*(1+F$13) -> 1780.29978 | J20: 2.4209946
A21: LU_F | B21: LU_V | C21: ='4. Billing Det. for Def-Var'!B21 -> LARGE USE SERVICE CLASSIFICATION | D21: 13911.73 | F21: 2.9782 | H21: 0.009 | I21: 14036.93557 | J21: 3.0050038
C22: ='4. Billing Det. for Def-Var'!B22 -> STANDBY POWER SERVICE CLASSIFICATION | H22: 0.009 | I22: 0 | J22: 0
A23: USL_F | B23: USL_V | C23: ='4. Billing Det. for Def-Var'!B23 -> UNMETERED SCATTERED LOAD SERVICE CLASSIFICATION | D23: 9.08 | F23: 0.0165 | H23: 0.009 | I23: 9.16172 | J23: 0.0166485
A24: SL_F | B24: SL_V | C24: ='4. Billing Det. for Def-Var'!B24 -> STREET LIGHTING SERVICE CLASSIFICATION | D24: 1.52 | F24: 11.6504 | H24: 0.009 | I24: 1.53368 | J24: 11.7552536
C25: microFIT SERVICE CLASSIFICATION | D25: 5.4 | H25: 0.009 | I25: =D25 -> 5.4 | J25: 0
C27: Rate Design Transition | E27: Revenue from Rates | F27: Current F/V Split | G27: Decoupling MFC Split | H27: Incremental Fixed Charge ($/month/year) | I27: New F/V Split | J27: Adjusted Rates1 | K27: Revenue at New F/V Split
C28: Current Residential Fixed Rate (inclusive of R/C adj.) | D28: =D17+E17 -> 21.61 | E28: =D28*COS_RES_CUSTOMERS*12 -> 45864631.8 | F28: =IF(ISERROR(E28/E30), 0, E28/E30) -> 0.9019924455 | G28: =IF(ISERROR((1-F28)/YRS_LEFT), 0, (1-F28)/YRS_LEFT) -> 0.0980075545 | H28: =IF(ISERROR(ROUND(G28*E30/COS_RES_CUSTOMERS/12, 2)), 0, ROUND(G28*E30/COS_RES_CUSTOMERS/12, 2)) -> 2.35 | I28: =G28+F28 -> 1 | J28: =IF(ISERROR(ROUND(I28*E30/COS_RES_CUSTOMERS/12, 2)), 0, ROUND(I28*E30/COS_RES_CUSTOMERS/12, 2)) -> 23.96 | K28: =ROUND(J28*COS_RES_CUSTOMERS*12, 2) -> 50852224.8
C29: Current Residential Variable Rate (inclusive of R/C adj.) | D29: =F17+G17 -> 0.0035 | E29: =D29*COS_RES_KWH -> 4983501.163 | F29: =IF(ISERROR(E29/E30), 0, E29/E30) -> 0.0980075545 | I29: =1-I28 -> 0 | J29: =IF(ISERROR(ROUND(I29*E30/COS_RES_KWH, 4)), 0, ROUND(I29*E30/COS_RES_KWH, 4)) -> 0 | K29: =ROUND(J29*COS_RES_KWH, 2) -> 0
E30: =SUM(E28+E29) -> 50848132.96 | K30: =SUM(K28+K29) -> 50852224.8
C33: =IF((J28-D28)>=4, "The Rate Design Transition has calculated a monthly fixed charge greater than or equal to $4. Please refer to Section 3.2.3 of the Chapter 3 Filing Requirements for mitigation instructions.", "") -> 
C35: 1 These are the residential rates to which the Price Cap Index will be applied to.

Sheet 18. Regulatory Charges
A1: Back to Index
B2: =+'1. Information Sheet'!B2 -> INCENTIVE REGULATION MODEL FOR 2019 FILERS
C12: Update the following rates if an OEB Decision has been issued at the time of completing this application
E13: Proposed
C14: Wholesale Market Service Rate (WMS) - not including CBR | D14: $/kWh | E14: 0.0032
C15: Capacity Based Recovery (CBR) - Applicable for Class B Customers | D15: $/kWh | E15: 0.0004
C16: Rural or Remote Electricity Rate Protection Charge (RRRP) | D16: $/kWh | E16: 0.0003
C17: Standard Supply Service - Administrative Charge (if applicable) | D17: $ | E17: 0.25
C20: Time-of-Use RPP Prices
C21: As of | D21: 2017-08-01
C22: Off-Peak | D22: $/kWh | E22: 0.065
C23: Mid-Peak | D23: $/kWh | E23: 0.094
C24: On-Peak | D24: $/kWh | E24: 0.132

Sheet 19. Additional Rates
A1: Back to Index | AB1: 3
B2: =+'1. Information Sheet'!B2 -> INCENTIVE REGULATION MODEL FOR 2019 FILERS
B11: In the Green Cells below, enter any proposed rate riders that are not already included in this model (e.g.: proposed ICM rate riders). Please note that existing SMIRR and SM Entity Charge do not need to be included below. In column A, the rate rider descriptions must begin with "Rate Rider for". In column B, choose the associated unit from the drop-down menu. In column C, enter the rate. All rate riders with a "$" unit should be rounded to 2 decimal places and all others rounded to 4 decimal places. In column E, enter the expiry date (e.g. April 30, 2018) or description of the expiry date in text (e.g. the effective date of the next cost of service-based rate order). In column G, choose the sub-total as applicable in the bill impact calculation from the drop-down menu
D12: INPUT ICM RATE RIDERS ONLY
B13: ='4. Billing Det. for Def-Var'!B17 -> RESIDENTIAL SERVICE CLASSIFICATION
B14: Rate Rider for Incremental Capital Module (ICM) | C14: $ | D14: 0.1624797652 | E14: - effective until | F14: the effective date of the next cost of service-based rate order | H14: A
B15: Capitalization Policy Rate Rider (2019) effective until December 31, 2019 | C15: $ | D15: -0.23 | E15: - effective until | F15: 2019-12-31
E16: - effective until
E17: - effective until
E18: - effective until
E19: - effective until
E20: - effective until
E21: - effective until
E22: - effective until
E23: - effective until
B26: ='4. Billing Det. for Def-Var'!B18 -> GENERAL SERVICE LESS THAN 50 kW SERVICE CLASSIFICATION
B27: Rate Rider for Incremental Capital Module (ICM) | C27: $ | D27: 0.2990079109 | E27: - effective until | F27: the effective date of the next cost of service-based rate order | H27: A
B28: Rate Rider for Incremental Capital Module (ICM) | C28: $/kWh | D28: 8.700389315e-05 | E28: - effective until | F28: the effective date of the next cost of service-based rate order | H28: A
B29: Capitalization Policy Rate Rider (2019) effective until December 31, 2019 | C29: $ | D29: -0.42 | E29: - effective until
B30: Capitalization Policy Rate Rider (2019) effective until December 31, 2019 | C30: $/kWh | D30: -0.0001 | E30: - effective until
E31: - effective until
E32: - effective until
E33: - effective until
E34: - effective until
E35: - effective until
B38: ='4. Billing Det. for Def-Var'!B19 -> GENERAL SERVICE 50 to 499 kW SERVICE CLASSIFICATION
B39: Rate Rider for Incremental Capital Module (ICM) | C39: $ | D39: 0.5266454407 | E39: - effective until | F39: the effective date of the next cost of service-based rate order | H39: A
B40: Rate Rider for Incremental Capital Module (ICM) | C40: $/kW | D40: 0.03169456667 | E40: - effective until | F40: the effective date of the next cost of service-based rate order | H40: A
B41: Capitalization Policy Rate Rider (2019) effective until December 31, 2019 | C41: $ | D41: -0.74 | E41: - effective until
B42: Capitalization Policy Rate Rider (2019) effective until December 31, 2019 | C42: $/kW | D42: -0.0447 | E42: - effective until
E43: - effective until
E44: - effective until
E45: - effective until
E46: - effective until
E47: - effective until
B50: ='4. Billing Det. for Def-Var'!B20 -> GENERAL SERVICE 500 to 4,999 kW SERVICE CLASSIFICATION
B51: Rate Rider for Incremental Capital Module (ICM) | C51: $ | D51: 11.99307884 | E51: - effective until | F51: the effective date of the next cost of service-based rate order | H51: A
B52: Rate Rider for Incremental Capital Module (ICM) | C52: $/kW | D52: 0.01630915166 | E52: - effective until | F52: the effective date of the next cost of service-based rate order | H52: A
B53: Capitalization Policy Rate Rider (2019) effective until December 31, 2019 | C53: $ | D53: -16.9 | E53: - effective until
B54: Capitalization Policy Rate Rider (2019) effective until December 31, 2019 | C54: $/kW | D54: -0.023 | E54: - effective until
E55: - effective until
E56: - effective until
E57: - effective until
E58: - effective until
E59: - effective until
B62: ='4. Billing Det. for Def-Var'!B21 -> LARGE USE SERVICE CLASSIFICATION
B63: Rate Rider for Incremental Capital Module (ICM) | C63: $ | D63: 94.56052112 | E63: - effective until | F63: the effective date of the next cost of service-based rate order | H63: A
B64: Rate Rider for Incremental Capital Module (ICM) | C64: $/kW | D64: 0.02024335895 | E64: - effective until | F64: the effective date of the next cost of service-based rate order | H64: A
B65: Capitalization Policy Rate Rider (2019) effective until December 31, 2019 | C65: $ | D65: -133.24 | E65: - effective until
B66: Capitalization Policy Rate Rider (2019) effective until December 31, 2019 | C66: $/kW | D66: -0.0285 | E66: - effective until
E67: - effective until
E68: - effective until
E69: - effective until
E70: - effective until
E71: - effective until
B74: ='4. Billing Det. for Def-Var'!B23 -> UNMETERED SCATTERED LOAD SERVICE CLASSIFICATION
B75: Rate Rider for Incremental Capital Module (ICM) | C75: $ | D75: 0.0617183867 | E75: - effective until | F75: the effective date of the next cost of service-based rate order | H75: A
B76: Rate Rider for Incremental Capital Module (ICM) | C76: $/kWh | D76: 0.000112153456 | E76: - effective until | F76: the effective date of the next cost of service-based rate order | H76: A
B77: Capitalization Policy Rate Rider (2019) effective until December 31, 2019 | C77: $ | D77: -0.09 | E77: - effective until
B78: Capitalization Policy Rate Rider (2019) effective until December 31, 2019 | C78: $/kWh | D78: -0.0002 | E78: - effective until
E79: - effective until
E80: - effective until
E81: - effective until
E82: - effective until
E83: - effective until
B86: ='4. Billing Det. for Def-Var'!B24 -> STREET LIGHTING SERVICE CLASSIFICATION
B87: Rate Rider for Incremental Capital Module (ICM) | C87: $ | D87: 0.01033171231 | E87: - effective until | F87: the effective date of the next cost of service-based rate order | H87: A
B88: Rate Rider for Incremental Capital Module (ICM) | C88: $/kW | D88: 0.07918985599 | E88: - effective until | F88: the effective date of the next cost of service-based rate order | H88: A
B89: Capitalization Policy Rate Rider (2019) effective until December 31, 2019 | C89: $ | D89: -0.01 | E89: - effective until
B90: Capitalization Policy Rate Rider (2019) effective until December 31, 2019 | C90: $/kW | D90: -0.1116 | E90: - effective until
E91: - effective until
E92: - effective until
E93: - effective until
E94: - effective until
E95: - effective until
B98: ='4. Billing Det. for Def-Var'!B25 -> 0
E99: - effective until
E100: - effective until
E101: - effective until
E102: - effective until
E103: - effective until
E104: - effective until
E105: - effective until
E106: - effective until
E107: - effective until
B110: ='4. Billing Det. for Def-Var'!B26 -> 0
E111: - effective until
E112: - effective until
E113: - effective until
E114: - effective until
E115: - effective until
E116: - effective until
E117: - effective until
E118: - effective until
E119: - effective until
B122: ='4. Billing Det. for Def-Var'!B27 -> 0
E123: - effective until
E124: - effective until
E125: - effective until
E126: - effective until
E127: - effective until
E128: - effective until
E129: - effective until
E130: - effective until
E131: - effective until
B134: MICROFIT SERVICE CLASSIFICATION
E135: - effective until
E136: - effective until
E137: - effective until
E138: - effective until
E139: - effective until
E140: - effective until
E141: - effective until
E142: - effective until
E143: - effective until
E144: - effective until

Sheet 20. Final Tariff Schedule
A1: Back to Index
B2: =+'1. Information Sheet'!B2 -> INCENTIVE REGULATION MODEL FOR 2019 FILERS
B11: ='Model Specs'!C4 -> Alectra - Enersource
B12: TARIFF OF RATES AND CHARGES
B13: Effective Date January 1, 2019
B14: Implementation Date January 1, 2019
B16: This schedule supersedes and replaces all previously
B17: approved schedules of Rates, Charges and Loss Factors
B18: EB-2018-0016
B19: RESIDENTIAL SERVICE CLASSIFICATION
B20: This classification applies to an account where the electricity is supplied exclusively to single-family dwelling units for domestic or household purposes, including seasonal occupancy. This includes, but is not limited to, detached houses, one unit of a semi-detached, duplex, triplex or quadruplex house, with a residential zoning. Separately metered dwellings within a town house complex also qualify as residential customers. Further servicing details are available in the distributor’s Conditions of Service.
B22: APPLICATION
B24: The application of these rates and charges shall be in accordance with the Licence of the Distributor and any Code or Order of the Ontario Energy Board, and amendments thereto as approved by the Ontario Energy Board, which may be applicable to the administration of this schedule.
B26: No rates and charges for the distribution of electricity and charges to meet the costs of any work or service done or furnished for the purpose of the distribution of electricity shall be made except as permitted by this schedule, unless required by the Distributor’s Licence or a Code or Order of the Ontario Energy Ontario Energy Board, and amendments thereto as approved by the Ontario Energy Board, or as specified herein.
B28: Unless specifically noted, this schedule does not contain any charges for the electricity commodity, be it under the Regulated Price Plan, a contract with a retailer or the wholesale market price, as applicable. In addition, the charges in the MONTHLY RATES AND CHARGES - Regulatory Component of this schedule do not apply to a customer that is an embedded wholesale market participant.
B30: It should be noted that this schedule does not list any charges, assessments, or credits that are required by law to be invoiced by a distributor and that are not subject to Ontario Energy Board approval, such as the Debt Retirement Charge, the Global Adjustment and the HST.
B32: MONTHLY RATES AND CHARGES - Delivery Component
A34: R_F | B34: =RATES!C15 -> Service Charge | C34: =RATES!G15 -> $ | D34: =RATES!I15 -> 24.18
B35: =RATES!C18 -> Smart Metering Entity Charge - effective until December 31, 2022 | C35: =RATES!G18 -> $ | D35: =RATES!I18 -> 0.57
A36: R_GA16 | B36: =RATES!C19 -> Rate Rider for Recovery of Incremental Capital Module (2017) - in effect until the effective date of the next cost of service based rate order | C36: =RATES!G19 -> $ | D36: =RATES!I19 -> 0.6
B37: =+RATES!C30 -> Rate Rider for Recovery of Incremental Capital Module (2018) - in effect until the effective date of the next cost of service based rate order | C37: =+RATES!G30 -> $ | D37: =+RATES!I30 -> 0.16
B38: =RATES!C27 -> Rate Rider for Recovery of Incremental Capital Module (2019) - in effect until the effective date of the next cost of service based rate order | C38: =RATES!G27 -> $ | D38: =RATES!I27 -> 0.16
B39: =+RATES!C28 -> Rate Rider for Disposition of Capitalization Policy Rate Rider (2019) - effective until December 31, 2019 | C39: =+RATES!G28 -> $ | D39: =+ROUND(RATES!I28,2) -> -0.23
A40: R_V | B40: =RATES!C17 -> Low Voltage Service Rate | C40: =RATES!G17 -> $/kWh | D40: =RATES!I17 -> 0.0002
B41: =RATES!C20 -> Rate Rider for Disposition of Global Adjustment Account (2018) - effective until April 30, 2019 Applicable only for Non-RPP Customers | C41: =RATES!G20 -> $/kWh | D41: =RATES!I20 -> -0.0005
B42: =RATES!C23 -> Rate Rider for Disposition of Global Adjustment Account (2019) - effective until December 31, 2019 Applicable only for Non-RPP Customers | C42: =RATES!G23 -> $/kWh | D42: =RATES!I23 -> 0.0017
B43: =RATES!C21 -> Rate Rider for Disposition of Deferral/Variance Accounts (2018) - effective until April 30, 2019 | C43: =RATES!G21 -> $/kWh | D43: =RATES!I21 -> -0.0007
B44: =RATES!C24 -> Rate Rider for Disposition of Deferral/Variance Accounts (2019) - effective until December 31, 2019 | C44: =RATES!G24 -> $/kWh | D44: =RATES!I24 -> -0.0004
B45: =RATES!C22 -> Rate Rider for Disposition of Capacity Based Recovery Account (2018) - effective until April 30, 2019 Applicable Only for Class B Customers | C45: =RATES!G22 -> $/kWh | D45: =RATES!I22 -> -5e-05
B46: =RATES!C25 -> Rate Rider for Disposition of Capacity Based Recovery Account (2019) - effective until December 31, 2019 Applicable Only for Class B Customers | C46: =RATES!G25 -> $/kWh | D46: =RATES!I25 -> 1e-05
B47: =RATES!C29 -> Rate Rider for Disposition of Lost Revenue Adjustment Mechanism Variance Account (LRAMVA) (2018) - effective until April 30, 2019 | C47: =RATES!G29 -> $/kWh | D47: =RATES!I29 -> -0.0002
B48: =RATES!C26 -> Rate Rider for Disposition of Lost Revenue Adjustment Mechanism Variance Account (LRAMVA) (2019) - effective until December 31, 2019 | C48: =RATES!G26 -> $/kWh | D48: =RATES!I26 -> 0.0002
B50: Retail Transmission Rate – Network Service Rate | C50: $/kWh | D50: ='16. RTSR-Rates to Forecast'!K43 -> 0.007606032122
B51: Retail Transmission Rate – Line and Transformation Connection Service Rate | C51: $/kWh | D51: ='16. RTSR-Rates to Forecast'!K56 -> 0.007202075939
B54: MONTHLY RATES AND CHARGES - Regulatory Component
B56: Wholesale Market Service Rate (WMS) - Not including CBR | C56: $/kWh | D56: 0.0032
B57: Capacity Based Recovery (CBR) - Applicable for Class B Customers | C57: $/kWh | D57: 0.0004
B58: Rural or Remote Electricity Rate Protection Charge (RRRP) | C58: $/kWh | D58: 0.0003
B59: Standard Supply Service - Administrative Charge (if applicable) | C59: $ | D59: 0.25
B60: GENERAL SERVICE LESS THAN 50 KW SERVICE CLASSIFICATION
B62: This classification refers to a non-residential account whose monthly average peak demand is less than, or is forecast to be less than, 50 kW. Class B consumers are defined in accordance with O. Reg. 429/04. Further servicing details are available in the distributor’s Conditions of Service.
B64: APPLICATION
B66: The application of these rates and charges shall be in accordance with the Licence of the Distributor and any Code or Order of the Ontario Energy Board, and amendments thereto as approved by the Ontario Energy Board, which may be applicable to the administration of this schedule.
B68: No rates and charges for the distribution of electricity and charges to meet the costs of any work or service done or furnished for the purpose of the distribution of electricity shall be made except as permitted by this schedule, unless required by the Distributor’s Licence or a Code or Order of the Ontario Energy Board, and amendments thereto as approved by the Ontario Energy Board, or as specified herein.
B70: Unless specifically noted, this schedule does not contain any charges for the electricity commodity, be it under the Regulated Price Plan, a contract with a retailer or the wholesale market price, as applicable. In addition, the charges in the MONTHLY RATES AND CHARGES - Regulatory Component of this schedule do not apply to a customer that is an embedded wholesale market participant.
B72: It should be noted that this schedule does not list any charges, assessments, or credits that are required by law to be invoiced by a distributor and that are not subject to Ontario Energy Board approval, such as the Debt Retirement Charge, the Global Adjustment and the HST.
B73: MONTHLY RATES AND CHARGES - Delivery Component
A75: GSL_F | B75: =RATES!C42 -> Service Charge | C75: =RATES!G42 -> $ | D75: =RATES!I42 -> 44.39
B76: =RATES!C45 -> Smart Metering Entity Charge - effective until December 31, 2022 | C76: =RATES!G45 -> $ | D76: =RATES!I45 -> 0.57
A77: GSL_GA16 | B77: =RATES!C46 -> Rate Rider for Recovery of Incremental Capital Module (2017) - in effect until the effective date of the next cost of service based rate order | C77: =RATES!G46 -> $ | D77: =RATES!I46 -> 1.1
A78: GSL_GA16 | B78: =RATES!C61 -> Rate Rider for Recovery of Incremental Capital Module (2018) - in effect until the effective date of the next cost of service based rate order | C78: =RATES!G61 -> $ | D78: =RATES!I61 -> 0.29
B79: =RATES!C56 -> Rate Rider for Recovery of Incremental Capital Module (2019) - in effect until the effective date of the next cost of service based rate order | C79: =RATES!G56 -> $ | D79: =RATES!I56 -> 0.3
B80: =+RATES!C58 -> Rate Rider for Disposition of Capitalization Policy Rate Rider (2019) - effective until December 31, 2019 | C80: =+RATES!G58 -> $ | D80: =+RATES!I58 -> -0.42
B81: =RATES!C43 -> Distribution Volumetric Rate | C81: =RATES!G43 -> $/kWh | D81: =RATES!I43 -> 0.0129
A82: GSL_V | B82: =RATES!C44 -> Low Voltage Service Rate | C82: =RATES!G44 -> $/kWh | D82: =RATES!I44 -> 0.0002
A83: GSL_GA16 | B83: =RATES!C47 -> Rate Rider for Disposition of Global Adjustment Account (2018) - effective until April 30, 2019 Applicable only for Non-RPP Customers | C83: =RATES!G47 -> $/kWh | D83: =RATES!I47 -> -0.0005
B84: =RATES!C52 -> Rate Rider for Disposition of Global Adjustment Account (2019) - effective until December 31, 2019 Applicable only for Non-RPP Customers | C84: =RATES!G52 -> $/kWh | D84: =RATES!I52 -> 0.0017
A85: GSL_TN | B85: =RATES!C48 -> Rate Rider for Disposition of Deferral/Variance Accounts (2018) - effective until April 30, 2019 | C85: =RATES!G48 -> $/kWh | D85: =RATES!I48 -> -0.0007
A86: GSL_TN | B86: =RATES!C53 -> Rate Rider for Disposition of Deferral/Variance Accounts (2019) - effective until December 31, 2019 | C86: =RATES!G53 -> $/kWh | D86: =RATES!I53 -> -0.0004
B87: =RATES!C50 -> Rate Rider for Disposition of Capacity Based Recovery Account (2018) - effective until April 30, 2019 Applicable Only for Class B Customers | C87: =RATES!G50 -> $/kWh | D87: =RATES!I50 -> -5e-05
B88: =RATES!C54 -> Rate Rider for Disposition of Capacity Based Recovery Account (2019) - effective until December 31, 2019 Applicable Only for Class B Customers | C88: =RATES!G54 -> $/kWh | D88: =RATES!I54 -> 1e-05
A89: GSL_TN | B89: =RATES!C51 -> Rate Rider for Disposition of Lost Revenue Adjustment Mechanism Variance Account (LRAMVA) (2018) - effective until April 30, 2019 | C89: =RATES!G51 -> $/kWh | D89: =RATES!I51 -> 0.0006
B90: =RATES!C55 -> Rate Rider for Disposition of Lost Revenue Adjustment Mechanism Variance Account (LRAMVA) (2019) - effective until December 31, 2019 | C90: =RATES!G55 -> $/kWh | D90: =RATES!I55 -> 0.0002
A91: GSL_1576 | B91: =RATES!C49 -> Rate Rider for Recovery of Incremental Capital Module (2017) - in effect until the effective date of the next cost of service based rate order | C91: =RATES!G49 -> $/kWh | D91: =RATES!I49 -> 0.0003
A92: GSL_1576 | B92: =RATES!C60 -> Rate Rider for Recovery of Incremental Capital Module (2018) - in effect until the effective date of the next cost of service based rate order | C92: =RATES!G60 -> $/kWh | D92: =RATES!I60 -> 0.0001
B93: =RATES!C57 -> Rate Rider for Recovery of Incremental Capital Module (2019) - in effect until the effective date of the next cost of service based rate order | C93: =RATES!G57 -> $/kWh | D93: =RATES!I57 -> 0.0001
B94: =+RATES!C59 -> Rate Rider for Disposition of Capitalization Policy Rate Rider (2019) - effective until December 31, 2019 | C94: =+RATES!G59 -> $/kWh | D94: =+RATES!I59 -> -0.0001
A95: GSL_TC | B95: Retail Transmission Rate – Network Service Rate | C95: $/kWh | D95: =RATES!I71 -> 0.0071
B96: Retail Transmission Rate – Line and Transformation Connection Service Rate | C96: $/kWh | D96: =RATES!I72 -> 0.0065
B98: MONTHLY RATES AND CHARGES - Regulatory Component
B100: Wholesale Market Service Rate (WMS) - Not including CBR | C100: $/kWh | D100: 0.0032
B101: Capacity Based Recovery (CBR) - Applicable for Class B Customers | C101: $/kWh | D101: 0.0004
B102: Rural or Remote Electricity Rate Protection Charge (RRRP) | C102: $/kWh | D102: 0.0003
B103: Standard Supply Service - Administrative Charge (if applicable) | C103: $ | D103: 0.25
B104: GENERAL SERVICE 50 TO 499 KW SERVICE CLASSIFICATION
B106: This classification refers to a non-residential account whose monthly average peak demand is equal to or greater than, or is forecast to be equal to or greater than, 50 kW but less than 500 kW. Class B consumers are defined in accordance with O. Reg. 429/04. Further servicing details are available in the distributor’s Conditions of Service.
B108: APPLICATION
B110: The application of these rates and charges shall be in accordance with the Licence of the Distributor and any Code or Order of the Ontario Energy Board, and amendments thereto as approved by the Ontario Energy Board, which may be applicable to the administration of this schedule.
B112: No rates and charges for the distribution of electricity and charges to meet the costs of any work or service done or furnished for the purpose of the distribution of electricity shall be made except as permitted by this schedule, unless required by the Distributor’s Licence or a Code or Order of the Ontario Energy Board, and amendments thereto as approved by the Ontario Energy Board, or as specified herein.
B114: Unless specifically noted, this schedule does not contain any charges for the electricity commodity, be it under the Regulated Price Plan, a contract with a retailer or the wholesale market price, as applicable. In addition, the charges in the MONTHLY RATES AND CHARGES - Regulatory Component of this schedule do not apply to a customer that is an embedded wholesale market participant.
B116: It should be noted that this schedule does not list any charges, assessments, or credits that are required by law to be invoiced by a distributor and that are not subject to Ontario Energy Board approval, such as the Debt Retirement Charge, the Global Adjustment and the HST.
B118: Billing demands are established at the greater of 100% of the kW, or 90% of the kVA amounts.
B120: MONTHLY RATES AND CHARGES - Delivery Component
B122: =RATES!C74 -> Service Charge | C122: =RATES!G74 -> $ | D122: =RATES!I74 -> 78.18
A123: GS50_699_F | B123: =RATES!C78 -> Rate Rider for Recovery of Incremental Capital Module (2017) - in effect until the effective date of the next cost of service based rate order | C123: =RATES!G78 -> $ | D123: =RATES!I78 -> 1.93
A124: GS50_699_F | B124: =RATES!C93 -> Rate Rider for Recovery of Incremental Capital Module (2018) - in effect until the effective date of the next cost of service based rate order | C124: =RATES!G93 -> $ | D124: =RATES!I93 -> 0.51
B125: =RATES!C89 -> Rate Rider for Recovery of Incremental Capital Module (2019) - in effect until the effective date of the next cost of service based rate order | C125: =RATES!G89 -> $ | D125: =RATES!I89 -> 0.53
B126: =+RATES!C91 -> Rate Rider for Disposition of Capitalization Policy Rate Rider (2019) - effective until December 31, 2019 | C126: =+RATES!G91 -> $ | D126: =+RATES!I91 -> -0.74
B127: =RATES!C75 -> Distribution Volumetric Rate | C127: =RATES!G75 -> $/kW | D127: =RATES!I75 -> 4.7049
B128: =RATES!C76 -> Low Voltage Service Rate | C128: =RATES!G76 -> $/kW | D128: =RATES!I76 -> 0.0802
A129: GS50_699_1576 | B129: =RATES!C79 -> Rate Rider for Disposition of Global Adjustment Account (2018) - effective until April 30, 2019 Applicable only for Non-RPP Customers | C129: =RATES!G79 -> $/kWh | D129: =RATES!I79 -> -0.0005
A130: GS50_699_1576 | B130: =RATES!C84 -> Rate Rider for Disposition of Global Adjustment Account (2019) - effective until December 31, 2019 Applicable only for Non-RPP Customers | C130: =RATES!G84 -> $/kWh | D130: =RATES!I84 -> 0.0017
A131: GS50_699_1576 | B131: =RATES!C80 -> Rate Rider for Disposition of Deferral/Variance Accounts (2018) - effective until April 30, 2019 | C131: =RATES!G80 -> $/kW | D131: =RATES!I80 -> 0.1005
B132: =RATES!C86 -> Rate Rider for Disposition of Deferral/Variance Accounts (2019) - effective until December 31, 2019 | C132: =RATES!G86 -> $/kW | D132: =RATES!I86 -> 0.2188
A133: GS50_699_1576 | B133: =RATES!C81 -> Rate Rider for Disposition of Deferral/Variance Accounts (2018) - effective until April 30, 2019 Applicable only for Non-Wholesale Market Participants | C133: =RATES!G81 -> $/kW | D133: =RATES!I81 -> -0.3538
B134: =RATES!C85 -> Rate Rider for Disposition of Deferral/Variance Accounts (2019) - effective until December 31, 2019 Applicable only for Non-Wholesale Market Participants | C134: =RATES!G85 -> $/kW | D134: =RATES!I85 -> -0.3484
A135: GS50_699_1576 | B135: =RATES!C83 -> Rate Rider for Disposition of Capacity Based Recovery Account (2018) - effective until April 30, 2019 Applicable Only for Non-WMP Class B Customers | C135: =RATES!G83 -> $/kW | D135: =RATES!I83 -> -0.01606
B136: =RATES!C87 -> Rate Rider for Disposition of Capacity Based Recovery Account (2019) - effective until December 31, 2019 Applicable Only for Non-WMP Class B Customers | C136: =RATES!G87 -> $/kW | D136: =RATES!I87 -> 0.00237
B137: =RATES!C94 -> Rate Rider for Disposition of Lost Revenue Adjustment Mechanism Variance Account (LRAMVA) (2018) - effective until April 30, 2019 | C137: =RATES!G94 -> $/kW | D137: =RATES!I94 -> 0.4585
B138: =RATES!C88 -> Rate Rider for Disposition of Lost Revenue Adjustment Mechanism Variance Account (LRAMVA) (2019) - effective until December 31, 2019 | C138: =RATES!G88 -> $/kW | D138: =RATES!I88 -> 0.1951
A139: GS50_699_DVA16 | B139: =RATES!C82 -> Rate Rider for Recovery of Incremental Capital Module (2017) - in effect until the effective date of the next cost of service based rate order | C139: =RATES!G82 -> $/kW | D139: =RATES!I82 -> 0.1163
A140: GS50_699_DVA16 | B140: =RATES!C95 -> Rate Rider for Recovery of Incremental Capital Module (2018) - in effect until the effective date of the next cost of service based rate order | C140: =RATES!G95 -> $/kW | D140: =RATES!I95 -> 0.0308
B141: =RATES!C90 -> Rate Rider for Recovery of Incremental Capital Module (2019) - in effect until the effective date of the next cost of service based rate order | C141: =RATES!G90 -> $/kW | D141: =RATES!I90 -> 0.0317
B142: =+RATES!C92 -> Rate Rider for Disposition of Capitalization Policy Rate Rider (2019) - effective until December 31, 2019 | C142: =+RATES!G92 -> $/kW | D142: =+RATES!I92 -> -0.0447
A144: GS50_699_CBR16 | B144: Retail Transmission Rate – Network Service Rate | C144: $/kW | D144: =RATES!I102 -> 2.7453
A145: GS50_699_TN | B145: Retail Transmission Rate – Line and Transformation Connection Service Rate | C145: $/kW | D145: =RATES!I103 -> 2.5771
A146: GS50_699_TC
B148: MONTHLY RATES AND CHARGES - Regulatory Component
B150: Wholesale Market Service Rate (WMS) - Not including CBR | C150: $/kWh | D150: 0.0032
B151: Capacity Based Recovery (CBR) - Applicable for Class B Customers | C151: $/kWh | D151: 0.0004
B152: Rural or Remote Electricity Rate Protection Charge (RRRP) | C152: $/kWh | D152: 0.0003
B153: Standard Supply Service - Administrative Charge (if applicable) | C153: $ | D153: 0.25
B154: GENERAL SERVICE 500 TO 4,999 KW SERVICE CLASSIFICATION
B156: This classification refers to a non-residential account whose monthly average peak demand is equal to or greater than, or is forecast to be equal to or greater than, 500 kW but less than 5,000 kW. Class A and Class B consumers are defined in accordance with O. Reg. 429/04. Further servicing details are available in the distributor’s Conditions of Service.
B158: APPLICATION
B160: The application of these rates and charges shall be in accordance with the Licence of the Distributor and any Code or Order of the Ontario Energy Board, and amendments thereto as approved by the Ontario Energy Board, which may be applicable to the administration of this schedule.
B162: No rates and charges for the distribution of electricity and charges to meet the costs of any work or service done or furnished for the purpose of the distribution of electricity shall be made except as permitted by this schedule, unless required by the Distributor’s Licence or a Code or Order of the Ontario Energy Board, and amendments thereto as approved by the Ontario Energy Board, or as specified herein.
B164: Unless specifically noted, this schedule does not contain any charges for the electricity commodity, be it under the Regulated Price Plan, a contract with a retailer or the wholesale market price, as applicable. In addition, the charges in the MONTHLY RATES AND CHARGES - Regulatory Component of this schedule do not apply to a customer that is an embedded wholesale market participant.
B166: The rate rider for the disposition of WMS – Sub-account CBR Class B is not applicable to wholesale market participants (WMP), customers that transitioned between Class A and Class B during the variance account accumulation period, or to customers that were in Class A for the entire period. Customers who transitioned are to be charged or refunded their share of the variance disposed through customer specific billing adjustments. This rate rider is to be consistently applied for the entire period to the sunset date of the rate rider. In addition, this rate rider is applicable to all new Class B customers.
B168: The rate rider for the disposition of Global Adjustment is only applicable to non-RPP Class B customers. It is not applicable to WMP customers that transitioned between Class A and Class B during the variance account accumulation period, or to customers that were in Class A for the entire period. Customers who transitioned are to be charged or refunded their share of the variance disposed through customer specific billing adjustments. This rate order is applicable to all new non-RPP Class B customers.
B170: It should be noted that this schedule does not list any charges, assessments, or credits that are required by law to be invoiced by a distributor and that are not subject to Ontario Energy Board approval, such as the Debt Retirement Charge, the Global Adjustment and the HST.
B172: Billing demands are established at the greater of 100% of the kW, or 90% of the kVA amounts.
B174: MONTHLY RATES AND CHARGES - Delivery Component
A176: GS700_F | B176: =RATES!C105 -> Service Charge | C176: =RATES!G105 -> $ | D176: =RATES!I105 -> 1780.3
A177: GS700_LRVA16 | B177: =RATES!C109 -> Rate Rider for Recovery of Incremental Capital Module (2017) - in effect until the effective date of the next cost of service based rate order | C177: =RATES!G109 -> $ | D177: =RATES!I109 -> 44
A178: GS700_LRVA16 | B178: =RATES!C124 -> Rate Rider for Recovery of Incremental Capital Module (2018) - in effect until the effective date of the next cost of service based rate order | C178: =RATES!G124 -> $ | D178: =RATES!I124 -> 11.65
B179: =RATES!C120 -> Rate Rider for Recovery of Incremental Capital Module (2019) - in effect until the effective date of the next cost of service based rate order | C179: =RATES!G120 -> $ | D179: =RATES!I120 -> 11.99
B180: =+RATES!C122 -> Rate Rider for Disposition of Capitalization Policy Rate Rider (2019) - effective until December 31, 2019 | C180: =+RATES!G122 -> $ | D180: =+RATES!I122 -> -16.9
A181: GS700_V | B181: =RATES!C106 -> Distribution Volumetric Rate | C181: =RATES!G106 -> $/kW | D181: =RATES!I106 -> 2.421
B182: =RATES!C107 -> Low Voltage Service Rate | C182: =RATES!G107 -> $/kW | D182: =RATES!I107 -> 0.0784
A183: GS700_CBR16_A | B183: =RATES!C110 -> Rate Rider for Disposition of Global Adjustment Account (2018) - effective until April 30, 2019 Applicable only for Non-RPP Customers | C183: =RATES!G110 -> $/kWh | D183: =RATES!I110 -> -0.0005
A184: GS700_CBR16_A | B184: =RATES!C115 -> Rate Rider for Disposition of Global Adjustment Account (2019) - effective until December 31, 2019 Applicable only for Non-RPP Customers | C184: =RATES!G115 -> $/kWh | D184: =RATES!I115 -> 0.0017
B185: =RATES!C111 -> Rate Rider for Disposition of Deferral/Variance Accounts (2018) - effective until April 30, 2019 | C185: =RATES!G111 -> $/kW | D185: =RATES!I111 -> 0.1272
B186: =RATES!C117 -> Rate Rider for Disposition of Deferral/Variance Accounts (2019) - effective until December 31, 2019 | C186: =RATES!G117 -> $/kW | D186: =RATES!I117 -> 0.276
B187: =RATES!C112 -> Rate Rider for Disposition of Deferral/Variance Accounts (2018) - effective until April 30, 2019 Applicable only for Non-Wholesale Market Participants | C187: =RATES!G112 -> $/kW | D187: =RATES!I112 -> -0.4465
B188: =RATES!C116 -> Rate Rider for Disposition of Deferral/Variance Accounts (2019) - effective until December 31, 2019 Applicable only for Non-Wholesale Market Participants | C188: =RATES!G116 -> $/kW | D188: =RATES!I116 -> -0.4388
B189: =RATES!C114 -> Rate Rider for Disposition of Capacity Based Recovery Account (2018) - effective until April 30, 2019 Applicable Only for Non-WMP Class B Customers | C189: =RATES!G114 -> $/kW | D189: =RATES!I114 -> -0.01999
B190: =RATES!C118 -> Rate Rider for Disposition of Capacity Based Recovery Account (2019) - effective until December 31, 2019 Applicable Only for Non-WMP Class B Customers | C190: =RATES!G118 -> $/kW | D190: =RATES!I118 -> 0.00278
B191: =RATES!C125 -> Rate Rider for Disposition of Lost Revenue Adjustment Mechanism Variance Account (LRAMVA) (2018) - effective until April 30, 2019 | C191: =RATES!G125 -> $/kW | D191: =RATES!I125 -> 0.141
B192: =RATES!C119 -> Rate Rider for Disposition of Lost Revenue Adjustment Mechanism Variance Account (LRAMVA) (2019) - effective until December 31, 2019 | C192: =RATES!G119 -> $/kW | D192: =RATES!I119 -> 0.0752
A193: GS700_CBR16 | B193: =RATES!C113 -> Rate Rider for Recovery of Incremental Capital Module (2017) - in effect until the effective date of the next cost of service based rate order | C193: =RATES!G113 -> $/kW | D193: =RATES!I113 -> 0.0598
A194: GS700_CBR16 | B194: =RATES!C126 -> Rate Rider for Recovery of Incremental Capital Module (2018) - in effect until the effective date of the next cost of service based rate order | C194: =RATES!G126 -> $/kW | D194: =RATES!I126 -> 0.0158
B195: =RATES!C121 -> Rate Rider for Recovery of Incremental Capital Module (2019) - in effect until the effective date of the next cost of service based rate order | C195: =RATES!G121 -> $/kW | D195: =RATES!I121 -> 0.0163
B196: =+RATES!C123 -> Rate Rider for Disposition of Capitalization Policy Rate Rider (2019) - effective until December 31, 2019 | C196: =+RATES!G123 -> $/kW | D196: =+RATES!I123 -> -0.023
A199: GS700_TN | B199: Retail Transmission Rate – Network Service Rate | C199: $/kW | D199: =RATES!I133 -> 2.656
A200: GS700_TC | B200: Retail Transmission Rate – Line and Transformation Connection Service Rate | C200: $/kW | D200: =RATES!I134 -> 2.5218
B202: MONTHLY RATES AND CHARGES - Regulatory Component
B204: Wholesale Market Service Rate (WMS) - Not including CBR | C204: $/kWh | D204: 0.0032
B205: Capacity Based Recovery (CBR) - Applicable for Class B Customers | C205: $/kWh | D205: 0.0004
B206: Rural or Remote Electricity Rate Protection Charge (RRRP) | C206: $/kWh | D206: 0.0003
B207: Standard Supply Service - Administrative Charge (if applicable) | C207: $ | D207: 0.25
B208: LARGE USE SERVICE CLASSIFICATION
B209: This classification refers to an account whose monthly average peak demand is equal to or greater than, or is forecast to be equal to or greater than, 5,000 kW. Class A and Class B consumers are defined in accordance with O. Reg. 429/04. Further servicing details are available in the distributor’s Conditions of Service.
B211: APPLICATION
B213: The application of these rates and charges shall be in accordance with the Licence of the Distributor and any Code or Order of the Ontario Energy Board, and amendments thereto as approved by the Ontario Energy Board, which may be applicable to the administration of this schedule.
B215: No rates and charges for the distribution of electricity and charges to meet the costs of any work or service done or furnished for the purpose of the distribution of electricity shall be made except as permitted by this schedule, unless required by the Distributor’s Licence or a Code or Order of the Ontario Energy Board, and amendments thereto as approved by the Ontario Energy Board, or as specified herein.
B217: Unless specifically noted, this schedule does not contain any charges for the electricity commodity, be it under the Regulated Price Plan, a contract with a retailer or the wholesale market price, as applicable. In addition, the charges in the MONTHLY RATES AND CHARGES - Regulatory Component of this schedule do not apply to a customer that is an embedded wholesale market participant.
B219: It should be noted that this schedule does not list any charges, assessments, or credits that are required by law to be invoiced by a distributor and that are not subject to Ontario Energy Board approval, such as the Debt Retirement Charge, the Global Adjustment and the HST.
B221: Billing demands are established at the greater of 100% of the kW, or 90% of the kVA amounts.
B223: MONTHLY RATES AND CHARGES - Delivery Component
A225: LU_F | B225: =RATES!C136 -> Service Charge | C225: =RATES!G136 -> $ | D225: =RATES!I136 -> 14036.94
A226: LU_DVA16 | B226: =RATES!C140 -> Rate Rider for Recovery of Incremental Capital Module (2017) - in effect until the effective date of the next cost of service based rate order | C226: =RATES!G140 -> $ | D226: =RATES!I140 -> 346.9
A227: LU_DVA16 | B227: =RATES!C155 -> Rate Rider for Recovery of Incremental Capital Module (2018) - in effect until the effective date of the next cost of service based rate order | C227: =RATES!G155 -> $ | D227: =RATES!I155 -> 91.89
B228: =RATES!C149 -> Rate Rider for Recovery of Incremental Capital Module (2019) - in effect until the effective date of the next cost of service based rate order | C228: =RATES!G149 -> $ | D228: =RATES!I149 -> 94.56
B229: =+RATES!C151 -> Rate Rider for Disposition of Capitalization Policy Rate Rider (2019) - effective until December 31, 2019 | C229: =+RATES!G151 -> $ | D229: =+RATES!I151 -> -133.24
A230: LU_V | B230: =RATES!C137 -> Distribution Volumetric Rate | C230: =RATES!G137 -> $/kW | D230: =RATES!I137 -> 3.005
B231: =RATES!C138 -> Low Voltage Service Rate | C231: =RATES!G138 -> $/kW | D231: =RATES!I138 -> 0.0838
B232: =RATES!C142 -> Rate Rider for Disposition of Deferral/Variance Accounts (2018) - effective until April 30, 2019 | C232: =RATES!G142 -> $/kW | D232: =RATES!I142 -> -0.4054
B233: =RATES!C146 -> Rate Rider for Disposition of Deferral/Variance Accounts (2019) - effective until December 31, 2019 | C233: =RATES!G146 -> $/kW | D233: =RATES!I146 -> -0.21
B234: =RATES!C153 -> Rate Rider for Disposition of Lost Revenue Adjustment Mechanism Variance Account (LRAMVA) (2018) - effective until April 30, 2019 | C234: =RATES!G153 -> $/kW | D234: =RATES!I153 -> 0.088
B235: =RATES!C148 -> Rate Rider for Disposition of Lost Revenue Adjustment Mechanism Variance Account (LRAMVA) (2019) - effective until December 31, 2019 | C235: =RATES!G148 -> $/kW | D235: =RATES!I148 -> 0.064
B236: =RATES!C143 -> Rate Rider for Recovery of Incremental Capital Module (2017) - in effect until the effective date of the next cost of service based rate order | C236: =RATES!G143 -> $/kW | D236: =RATES!I143 -> 0.0743
B237: =RATES!C154 -> Rate Rider for Recovery of Incremental Capital Module (2018) - in effect until the effective date of the next cost of service based rate order | C237: =RATES!G154 -> $/kW | D237: =RATES!I154 -> 0.0197
B238: =RATES!C150 -> Rate Rider for Recovery of Incremental Capital Module (2019) - in effect until the effective date of the next cost of service based rate order | C238: =RATES!G150 -> $/kW | D238: =RATES!I150 -> 0.0202
B239: =+RATES!C152 -> Rate Rider for Disposition of Capitalization Policy Rate Rider (2019) - effective until December 31, 2019 | C239: =+RATES!G152 -> $/kW | D239: =+RATES!I152 -> -0.0285
A240: LU_TC | B240: =RATES!C162 -> Retail Transmission Rate - Network Service Rate – Interval Metered | C240: =RATES!G162 -> $/kW | D240: =RATES!I162 -> 2.8343
B241: =RATES!C163 -> Retail Transmission Rate - Line and Transformation Connection Service Rate – Interval Metered | C241: =RATES!G163 -> $/kW | D241: =RATES!I163 -> 2.6934
B243: MONTHLY RATES AND CHARGES - Regulatory Component
B245: Wholesale Market Service Rate (WMS) - Not including CBR | C245: $/kWh | D245: 0.0032
B246: Capacity Based Recovery (CBR) - Applicable for Class B Customers | C246: $/kWh | D246: 0.0004
B247: Rural or Remote Electricity Rate Protection Charge (RRRP) | C247: $/kWh | D247: 0.0003
B248: Standard Supply Service - Administrative Charge (if applicable) | C248: $ | D248: 0.25
B249: UNMETERED SCATTERED LOAD SERVICE CLASSIFICATION
B250: This classification applies to an account taking electricity at 750 volts or less whose average monthly maximum demand is less than, or is forecast to be less than, 50 kW and the consumption is unmetered. The amount of electricity consumed by unmetered connections will be based on detailed information/documentation provided by the device's manufacturer abd will be agreed to by Alectra Utilities and the customer and may be subject to periodic monitoring of actual consumption. Eligible onmetered loads include cable TV power packs, bus shelters, telephone booths, traffic lights, railway crossings, etc. Class B consumers are defined in accordance with O. Reg. 429/04. Further servicing details are available in the distributor’s Conditions of Service.
B252: APPLICATION
B254: The application of these rates and charges shall be in accordance with the Licence of the Distributor and any Code or Order of the Ontario Energy Board, and amendments thereto as approved by the Ontario Energy Board, which may be applicable to the administration of this schedule.
B256: No rates and charges for the distribution of electricity and charges to meet the costs of any work or service done or furnished for the purpose of the distribution of electricity shall be made except as permitted by this schedule, unless required by the Distributor’s Licence or a Code or Order of the Ontario Energy Board, and amendments thereto as approved by the Ontario Energy Board, or as specified herein.
B258: Unless specifically noted, this schedule does not contain any charges for the electricity commodity, be it under the Regulated Price Plan, a contract with a retailer or the wholesale market price, as applicable. In addition, the charges in the MONTHLY RATES AND CHARGES - Regulatory Component of this schedule do not apply to a customer that is an embedded wholesale market participant.
B260: It should be noted that this schedule does not list any charges, assessments, or credits that are required by law to be invoiced by a distributor and that are not subject to Ontario Energy Board approval, such as the Debt Retirement Charge, the Global Adjustment and the HST.
B261: MONTHLY RATES AND CHARGES - Delivery Component
B263: Service Charge (per connection) | C263: =RATES!G165 -> $ | D263: =RATES!I165 -> 9.16
A264: USL_V | B264: =RATES!C168 -> Rate Rider for Recovery of Incremental Capital Module (2017) - in effect until the effective date of the next cost of service based rate order | C264: =RATES!G168 -> $ | D264: =RATES!I168 -> 0.23
A265: USL_V | B265: =RATES!C182 -> Rate Rider for Recovery of Incremental Capital Module (2018) - in effect until the effective date of the next cost of service based rate order | C265: =RATES!G182 -> $ | D265: =RATES!I182 -> 0.06
B266: =RATES!C177 -> Rate Rider for Recovery of Incremental Capital Module (2019) - in effect until the effective date of the next cost of service based rate order | C266: =RATES!G177 -> $ | D266: =RATES!I177 -> 0.06
B267: =+RATES!C179 -> Rate Rider for Disposition of Capitalization Policy Rate Rider (2019) - effective until December 31, 2019 | C267: =+RATES!G179 -> $ | D267: =+RATES!I179 -> -0.09
A268: USL_F | B268: =RATES!C166 -> Distribution Volumetric Rate | C268: =RATES!G166 -> $/kWh | D268: =RATES!I166 -> 0.0166
B269: =RATES!C167 -> Low Voltage Service Rate | C269: =RATES!G167 -> $/kWh | D269: =RATES!I167 -> 0.0002
B270: =RATES!C169 -> Rate Rider for Disposition of Global Adjustment Account (2018) - effective until April 30, 2019 Applicable only for Non-RPP Customers | C270: =RATES!G169 -> $/kWh | D270: =RATES!I169 -> -0.0005
B271: =RATES!C173 -> Rate Rider for Disposition of Global Adjustment Account (2019) - effective until December 31, 2019 Applicable only for Non-RPP Customers | C271: =RATES!G173 -> $/kWh | D271: =RATES!I173 -> 0.0017
B272: =RATES!C170 -> Rate Rider for Disposition of Deferral/Variance Accounts (2018) - effective until April 30, 2019 | C272: =RATES!G170 -> $/kWh | D272: =RATES!I170 -> -0.0007
... 167 more rows

Sheet 21. Bill Impacts
A1: Back to Index
E2: =+'1. Information Sheet'!B2 -> INCENTIVE REGULATION MODEL FOR 2019 FILERS
E11: The bill comparisons below must be provided for typical customers and consumption levels. Bill impacts must be provided for residential customers consuming 750 kWh per month and general service customers consuming 2,000 kWh per month and having a monthly demand of less than 50 kW. Include bill comparisons for Non-RPP (retailer) as well. To assess the combined effects of the shift to fixed rates and other bill impacts associated with changes in the cost of distribution service, applicants are to include a total bill impact for a residential customer at the distributor’s 10th consumption percentile (In other words, 10% of a distributor’s residential customers consume at or less than this level of consumption on a monthly basis). Refer to page 9 of the Filing Requirements For Electricity Distribution Rate Applications issued July 14, 2016. For certain classes where one or more customers have unique consumption and demand patterns and which may be significantly impacted by the proposed rate changes, the distributor must show a typical comparison, and provide an explanation. Note: 1. For those classes that are not eligible for the RPP price, the weighted average price including Class B GA through end of February 2017 of $0.1058/kWh (IESO's Monthly Market Report for February 2017, page 22) has been used to represent the cost of power. For those classes on a retailer contract, applicants should enter the contract price (plus GA) for a more accurate estimate. Changes to the cost of power can be made directly on the bill impact table for the specific class. 2. Please enter the applicable billing determinant (e.g. number of connections or devices) to be applied to the monthly service charge for unmetered rate classes in column N. If the monthly service charge is applied on a per customer basis, enter the number “1”. Distributors should provide the number of connections or devices reflective of a typical customer in each class.
E13: Table 1
E14: RATE CLASSES / CATEGORIES (eg: Residential TOU, Residential Retailer) | G14: Units | H14: RPP? Non-RPP Retailer? Non-RPP Other? | I14: Current Loss Factor | J14: Proposed Loss Factor | K14: Consumption (kWh) | L14: Demand kW (if applicable) | M14: RTSR | N14: Billing Determinant Applied to Fixed Charge for Unmetered Classes (e.g. # of devices/connections).
B15: 1 | C15: =IF(ISERROR(VLOOKUP(E15, E$15:V$33, 18, FALSE)),"", VLOOKUP(E15, E$15:V$33, 18, FALSE)) -> 1 | E15: RESIDENTIAL SERVICE CLASSIFICATION | G15: =IF(ISERROR(VLOOKUP(E15,BILLING_DETERMINANTS,2,FALSE)),"",(VLOOKUP(E15,BILLING_DETERMINANTS,2,FALSE))) -> kWh | H15: RPP | I15: =LLF -> 1.036 | J15: =IF(ISBLANK(I15),"", I15) -> 1.036 | K15: 750 | M15: N/A | T15: =SUM(I15:L15) -> 752.072 | U15: 78 | V15: 1
B16: 2 | C16: 2 | E16: GENERAL SERVICE LESS THAN 50 kW SERVICE CLASSIFICATION | G16: kWh | H16: RPP | I16: =LLF -> 1.036 | J16: 1.036 | K16: 2000 | M16: N/A | T16: 2002.072 | U16: =U15+68 -> 146 | V16: 2
B17: 3 | C17: 3 | E17: GENERAL SERVICE 50 to 499 kW SERVICE CLASSIFICATION | G17: kW | H17: Non-RPP (Other) | I17: =LLF -> 1.036 | J17: 1.036 | K17: 100000 | L17: 230 | M17: DEMAND | T17: 100232.072 | U17: 214 | V17: 3
B18: 4 | C18: 4 | E18: GENERAL SERVICE 500 to 4,999 kW SERVICE CLASSIFICATION | G18: kW | H18: Non-RPP (Other) | I18: =LLF -> 1.036 | J18: 1.036 | K18: 400000 | L18: 2250 | M18: DEMAND | T18: 402252.072 | U18: 282 | V18: 4
B19: 5 | C19: 5 | E19: LARGE USE SERVICE CLASSIFICATION | G19: kW | H19: Non-RPP (Other) | I19: 1.0145 | J19: 1.0145 | K19: 3000000 | L19: 5000 | M19: DEMAND | T19: 3005002.029 | U19: 350 | V19: 5
B20: 6 | C20: 6 | E20: STANDBY POWER SERVICE CLASSIFICATION | G20: kW | I20: =LLF -> 1.036 | J20: 1.036 | K20: 0 | L20: 0 | M20: DEMAND | T20: 2.072 | U20: 418 | V20: 6
B21: 7 | C21: 7 | E21: UNMETERED SCATTERED LOAD SERVICE CLASSIFICATION | G21: kWh | H21: RPP | I21: 1.036 | J21: 1.036 | K21: 300 | M21: N/A | T21: 302.072 | U21: 486 | V21: 7
B22: 8 | C22: 8 | E22: STREET LIGHTING SERVICE CLASSIFICATION | G22: kW | H22: Non-RPP (Other) | I22: 1.036 | J22: 1.036 | K22: 33 | L22: 0.1 | M22: DEMAND | T22: 35.172 | U22: 554 | V22: 8
B23: 9 | C23: 1 | E23: RESIDENTIAL SERVICE CLASSIFICATION | G23: kWh | H23: Non-RPP (Retailer) | I23: 1.036 | J23: 1.036 | K23: 750 | M23: N/A | T23: 752.072 | U23: 622 | V23: 9
B24: 10 | C24: 2 | E24: GENERAL SERVICE LESS THAN 50 kW SERVICE CLASSIFICATION | G24: kWh | H24: Non-RPP (Retailer) | I24: 1.036 | J24: 1.036 | K24: 2000 | M24: N/A | T24: 2002.072 | U24: 690 | V24: 10
B25: 11 | C25: 7 | E25: UNMETERED SCATTERED LOAD SERVICE CLASSIFICATION | G25: kWh | H25: Non-RPP (Retailer) | I25: 1.036 | J25: 1.036 | K25: 300 | M25: N/A | T25: 302.072 | U25: 758 | V25: 11
B26: 12 | C26: 3 | E26: GENERAL SERVICE 50 to 499 kW SERVICE CLASSIFICATION | G26: kW | H26: Non-RPP (Other) | I26: 1.036 | J26: 1.036 | K26: 100000 | L26: 230 | M26: DEMAND - INTERVAL | T26: 100232.072 | U26: 826
B27: 13 | C27: 4 | E27: GENERAL SERVICE 500 to 4,999 kW SERVICE CLASSIFICATION | G27: kW | H27: Non-RPP (Other) | I27: 1.036 | J27: 1.036 | K27: 400000 | L27: 2250 | M27: DEMAND - INTERVAL | T27: 402252.072 | U27: 894
B28: 14 | C28: 5 | E28: LARGE USE SERVICE CLASSIFICATION | G28: kW | H28: Non-RPP (Other) | I28: =I19 -> 1.0145 | J28: 1.0145 | K28: 3000000 | L28: 5000 | M28: DEMAND - INTERVAL | T28: 3005002.029 | U28: 962
B29: 15 | C29: 0 | E29: Add additional scenarios if required | T29: 0 | U29: 1030
B30: 16 | C30: 0 | E30: Add additional scenarios if required | J30: =IF(ISBLANK(I30),"", I30) ->  | T30: 0 | U30: 1098
B31: 17 | C31: 0 | E31: Add additional scenarios if required | J31: =IF(ISBLANK(I31),"", I31) ->  | T31: 0 | U31: 1166
B32: 18 | C32: 0 | E32: Add additional scenarios if required | J32: =IF(ISBLANK(I32),"", I32) ->  | T32: 0 | U32: 1234
B33: 19 | C33: 0 | E33: Add additional scenarios if required | J33: =IF(ISBLANK(I33),"", I33) ->  | T33: 0 | U33: 1302
E36: Table 2
E37: RATE CLASSES / CATEGORIES (eg: Residential TOU, Residential Retailer) | G37: Units | H37: Sub-Total | N37: Total | P37: Total (Before Tax) | R37: Total
H38: A | J38: B | L38: C | N38: A + B + C | P38: A + B + C | R38: A + B + C
H39: $ | I39: % | J39: $ | K39: % | L39: $ | M39: % | N39: $ | O39: % | P39: $ | Q39: % | R39: $ | S39: %
B40: =H15 -> RPP | C40: =B15 -> 1 | E40: =IF(ISBLANK(E15), "", IF(E15 = "Add additional scenarios if required", "", IF(O15="INTERVAL", E15 & " - " & H15 & " - Interval Customers", E15 & " - " &H15))) -> RESIDENTIAL SERVICE CLASSIFICATION - RPP | G40: =G15 -> kWh | H40: =IF(LEN($G40)>1, (SUMPRODUCT(--($C$72:$C$864=$B15), --($A$72:$A$864=$E15), --($B$72:$B$864="ST_A"), $M$72:$M$864)), "") -> -0.145 | I40: =IF(LEN($G40)>1, (SUMPRODUCT(--($C$72:$C$864=$B15), --($A$72:$A$864=$E15), --($B$72:$B$864="ST_A"), $N$72:$N$864)), "") -> -0.005796522087 | J40: =IF(LEN($G40)>1, (SUMPRODUCT(--($C$72:$C$864=$B15), --($A$72:$A$864=$E15), --($B$72:$B$864="ST_B"), $M$72:$M$864)), "") -> -0.4375 | K40: =IF(LEN($G40)>1, (SUMPRODUCT(--($C$72:$C$864=$B15), --($A$72:$A$864=$E15), --($B$72:$B$864="ST_B"), $N$72:$N$864)), "") -> -0.01597518169 | L40: =IF(LEN($G40)>1, (SUMPRODUCT(--($C$72:$C$864=$B15), --($A$72:$A$864=$E15), --($B$72:$B$864="ST_C"), $M$72:$M$864)), "") -> -0.3625 | M40: =IF(LEN($G40)>1, (SUMPRODUCT(--($C$72:$C$864=$B15), --($A$72:$A$864=$E15), --($B$72:$B$864="ST_C"), $N$72:$N$864)), "") -> -0.009437344235 | N40: =IF(LEN($G40)>1, (SUMPRODUCT(--($C$72:$C$864=$B15), --($A$72:$A$864=$E15), --($B$72:$B$864=$B40&"_TOTAL"), $M$72:$M$864)), "") -> -0.380625 | O40: =IF(LEN($G40)>1, (SUMPRODUCT(--($C$72:$C$864=$B15), --($A$72:$A$864=$E15), --($B$72:$B$864=$B40&"_TOTAL"), $N$72:$N$864)), "") -> -0.003513140551 | P40: =IF(LEN($G40)>1, (SUMPRODUCT(--($C$72:$C$864=$B15), --($A$72:$A$864=$E15), --($B$72:$B$864=$B40&"_BT"), $M$72:$M$864)), "") -> -0.3625 | Q40: =IF(LEN($G40)>1, (SUMPRODUCT(--($C$72:$C$864=$B15), --($A$72:$A$864=$E15), --($B$72:$B$864=$B40&"_BT"), $N$72:$N$864)), "") -> -0.003513140551 | R40: =IF(LEN($G40)>1, (SUMPRODUCT(--($C$72:$C$864=$B15), --($A$72:$A$864=$E15), --($B$72:$B$864=$B40&"_NET"), $M$72:$M$864)), "") -> -0.409625 | S40: =IF(LEN($G40)>1, (SUMPRODUCT(--($C$72:$C$864=$B15), --($A$72:$A$864=$E15), --($B$72:$B$864=$B40&"_NET"), $N$72:$N$864)), "") -> -0.003513140551
B41: RPP | C41: 2 | E41: GENERAL SERVICE LESS THAN 50 kW SERVICE CLASSIFICATION - RPP | G41: kWh | H41: 0.53 | I41: 0.007227601255 | J41: -0.25 | K41: -0.003176487689 | L41: -0.05 | M41: -0.0004730222184 | N41: -14.7525 | O41: -0.04811411833 | P41: -14.05 | Q41: -0.04811411833 | R41: -15.8765 | S41: -0.04811411833
B42: Non-RPP (Other) | C42: 3 | E42: GENERAL SERVICE 50 to 499 kW SERVICE CLASSIFICATION - Non-RPP (Other) | G42: kW | H42: 49.193 | I42: 0.03800110466 | J42: 189.9301 | K42: 0.1581422175 | L42: 202.6261 | M42: 0.08399133964 | N42: -562.032507 | O42: -0.03485406306 | P42: -497.3739 | Q42: -0.03485406306 | R42: -562.032507 | S42: -0.03485406306
B43: Non-RPP (Other) | C43: 4 | E43: GENERAL SERVICE 500 to 4,999 kW SERVICE CLASSIFICATION - Non-RPP (Other) | G43: kW | H43: 197.515 | I43: 0.02557739001 | J43: 517.47 | K43: 0.07461449645 | L43: 638.745 | M43: 0.0345940328 | N43: -2442.21815 | O43: -0.03279851579 | P43: -2161.255 | Q43: -0.03279851579 | R43: -2442.21815 | S43: -0.03279851579
B44: Non-RPP (Other) | C44: 5 | E44: LARGE USE SERVICE CLASSIFICATION - Non-RPP (Other) | G44: kW | H44: 234.64 | I44: 0.007714383689 | J44: -815.36 | K44: -0.02830333752 | L44: -527.86 | M44: -0.009399398956 | N44: -24326.4818 | O44: -0.05316257913 | P44: -21527.86 | Q44: -0.05316257913 | R44: -24326.4818 | S44: -0.05316257913
B45: 0 | C45: 6 | E45: STANDBY POWER SERVICE CLASSIFICATION - | G45: kW | H45: 0 | I45: 0 | J45: 0 | K45: 0 | L45: 0 | M45: 0 | N45: 0 | O45: 0 | P45: 0 | Q45: 0 | R45: 0 | S45: 0
B46: RPP | C46: 7 | E46: UNMETERED SCATTERED LOAD SERVICE CLASSIFICATION - RPP | G46: kWh | H46: 0 | I46: 0 | J46: -0.117 | K46: -0.007676917517 | L46: -0.087 | M46: -0.004509993835 | N46: -2.29635 | O46: -0.04609099859 | P46: -2.187 | Q46: -0.04609099859 | R46: -2.47131 | S46: -0.04609099859
B47: Non-RPP (Other) | C47: 8 | E47: STREET LIGHTING SERVICE CLASSIFICATION - Non-RPP (Other) | G47: kW | H47: -0.37183 | I47: 0.6717431756 | J47: -0.329022 | K47: 0.7019426511 | L47: -0.325082 | M47: 3.379209693 | N47: -0.62837266 | O47: -0.1505555955 | P47: -0.556082 | Q47: -0.1505555955 | R47: -0.62837266 | S47: -0.1505555955
B48: Non-RPP (Retailer) | C48: 9 | E48: RESIDENTIAL SERVICE CLASSIFICATION - Non-RPP (Retailer) | G48: kWh | H48: -0.145 | I48: -0.005796522087 | J48: 0.8375 | K48: 0.03034409296 | L48: 0.9125 | M48: 0.02362453431 | N48: 0.958125 | O48: 0.007635638222 | P48: 0.9125 | Q48: 0.007635638222 | R48: 1.031125 | S48: 0.007635638222
B49: Non-RPP (Retailer) | C49: 10 | E49: GENERAL SERVICE LESS THAN 50 kW SERVICE CLASSIFICATION - Non-RPP (Retailer) | G49: kWh | H49: 0.53 | I49: 0.007227601255 | J49: 3.15 | K49: 0.03973580107 | L49: 3.35 | M49: 0.03152241008 | N49: -11.1825 | O49: -0.03170073081 | P49: -10.65 | Q49: -0.03170073081 | R49: -12.0345 | S49: -0.03170073081
B50: Non-RPP (Retailer) | C50: 11 | E50: UNMETERED SCATTERED LOAD SERVICE CLASSIFICATION - Non-RPP (Retailer) | G50: kWh | H50: 0 | I50: 0 | J50: 0.393 | K50: 0.02564263176 | L50: 0.423 | M50: 0.02183108623 | N50: -1.89501 | O50: -0.03115469672 | P50: -1.677 | Q50: -0.03115469672 | R50: -1.89501 | S50: -0.03115469672
B51: Non-RPP (Other) | C51: 12 | E51: GENERAL SERVICE 50 to 499 kW SERVICE CLASSIFICATION - Non-RPP (Other) | G51: kW | H51: 0 | I51: 0 | J51: 0 | K51: 0 | L51: 0 | M51: 0 | N51: 0 | O51: 0 | P51: =IF(LEN($G51)>1, (SUMPRODUCT(--($C$72:$C$864=$B26), --($A$72:$A$864=$E26), --($B$72:$B$864=$B51&"_TOTAL"), $M$72:$M$864)), "") -> 0 | Q51: =IF(LEN($G51)>1, (SUMPRODUCT(--($C$72:$C$864=$B26), --($A$72:$A$864=$E26), --($B$72:$B$864=$B51&"_TOTAL"), $N$72:$N$864)), "") -> 0 | R51: =IF(LEN($G51)>1, (SUMPRODUCT(--($C$72:$C$864=$B26), --($A$72:$A$864=$E26), --($B$72:$B$864=$B51&"_TOTAL"), $M$72:$M$864)), "") -> 0 | S51: =IF(LEN($G51)>1, (SUMPRODUCT(--($C$72:$C$864=$B26), --($A$72:$A$864=$E26), --($B$72:$B$864=$B51&"_TOTAL"), $N$72:$N$864)), "") -> 0
B52: Non-RPP (Other) | C52: 13 | E52: GENERAL SERVICE 500 to 4,999 kW SERVICE CLASSIFICATION - Non-RPP (Other) | G52: kW | H52: 0 | I52: 0 | J52: 0 | K52: 0 | L52: 0 | M52: 0 | N52: 0 | O52: 0 | P52: 0 | Q52: 0 | R52: 0 | S52: 0
B53: Non-RPP (Other) | C53: 14 | E53: LARGE USE SERVICE CLASSIFICATION - Non-RPP (Other) | G53: kW | H53: 234.64 | I53: 0.007714383689 | J53: -815.36 | K53: -0.02830333752 | L53: -527.86 | M53: -0.009399398956 | N53: -24326.4818 | O53: -0.05316257913 | P53: -24326.4818 | Q53: -0.05316257913 | R53: -24326.4818 | S53: -0.05316257913
B54: 0 | C54: 15 | G54: 0
B55: 0 | C55: 16 | E55: =IF(ISBLANK(E30), "", IF(E30 = "Add additional scenarios if required", "", IF(O30="YES", E30 & " - " & J30 & " - Interval Customers", E30 & " - " &J30))) ->  | G55: =IF(ISBLANK(I30), "", I30) -> 
B56: 0 | C56: 17 | E56: =IF(ISBLANK(E31), "", IF(E31 = "Add additional scenarios if required", "", IF(O31="YES", E31 & " - " & J31 & " - Interval Customers", E31 & " - " &J31))) ->  | G56: =IF(ISBLANK(I31), "", I31) -> 
B57: 0 | C57: 18 | E57: =IF(ISBLANK(E32), "", IF(E32 = "Add additional scenarios if required", "", IF(O32="YES", E32 & " - " & J32 & " - Interval Customers", E32 & " - " &J32))) ->  | G57: =IF(ISBLANK(I32), "", I32) -> 
B58: 0 | C58: 19 | E58: =IF(ISBLANK(E33), "", IF(E33 = "Add additional scenarios if required", "", IF(O33="YES", E33 & " - " & J33 & " - Interval Customers", E33 & " - " &J33))) ->  | G58: =IF(ISBLANK(I33), "", I33) -> 
B59: 0 | C59: 0 | E59: =IF(ISBLANK(E34), "", IF(E34 = "Add additional scenarios if required", "", IF(O34="YES", E34 & " - " & J34 & " - Interval Customers", E34 & " - " &J34))) ->  | G59: =IF(ISBLANK(I34), "", I34) -> 
E62: Customer Class: | F62: =E15 -> RESIDENTIAL SERVICE CLASSIFICATION | L62: =IF(O14="DEMAND - INTERVAL","RTSR - INTERVAL METERED","") -> 
E63: RPP / Non-RPP: | F63: =H15 -> RPP
E64: Consumption | F64: =K15 -> 750 | G64: kWh
E65: Demand | F65: =L15 -> 0 | G65: kW
E66: Current Loss Factor | F66: =I15 -> 1.036
E67: Proposed/Approved Loss Factor | F67: =J15 -> 1.036
G69: Current OEB-Approved | J69: Proposed | M69: Impact
G70: Rate | H70: Volume | I70: Charge | J70: Rate | K70: Volume | L70: Charge | M70: $ Change | N70: % Change
G71: ($) | I71: ($) | J71: ($) | L71: ($)
A72: =F62 -> RESIDENTIAL SERVICE CLASSIFICATION | D72: R_F | E72: Monthly Service Charge | G72: =IFERROR(SUMIF(RATES!B:B, '21. Bill Impacts'!D72,RATES!H:H),"") -> 21.61 | H72: 1 | I72: =H72*G72 -> 21.61 | J72: =IFERROR(SUMIF(RATES!B:B,'21. Bill Impacts'!D72,RATES!I:I),"") -> 24.18 | K72: 1 | L72: =K72*J72 -> 24.18 | M72: =L72-I72 -> 2.57 | N72: =IF(ISERROR(M72/I72), "", M72/I72) -> 0.118926423
A73: =A72 -> RESIDENTIAL SERVICE CLASSIFICATION | D73: R_V | E73: Distribution Volumetric Rate | G73: =IFERROR(SUMIF(RATES!B:B, '21. Bill Impacts'!D73,RATES!H:H),"") -> 0.0035 | H73: =IF($F65>0, $F65, $F64) -> 750 | I73: =H73*G73 -> 2.625 | J73: =IFERROR(SUMIF(RATES!B:B,'21. Bill Impacts'!D73,RATES!I:I),"") -> 0 | K73: =IF($F65>0, $F65, $F64) -> 750 | L73: =K73*J73 -> 0 | M73: -2.625 | N73: =IF(ISERROR(M73/I73), "", M73/I73) -> -1
A74: RESIDENTIAL SERVICE CLASSIFICATION | D74: R_FRR | E74: Fixed Rate Riders | G74: =IFERROR(SUMIF(RATES!B:B, '21. Bill Impacts'!D74,RATES!H:H),"") -> 0.93 | H74: 1 | I74: =H74*G74 -> 0.93 | J74: =IFERROR(SUMIF(RATES!B:B,'21. Bill Impacts'!D74,RATES!I:I),"") -> 0.69 | K74: 1 | L74: =K74*J74 -> 0.69 | M74: -0.24 | N74: =IF(ISERROR(M74/I74), "", M74/I74) -> -0.2580645161
A75: RESIDENTIAL SERVICE CLASSIFICATION | D75: R_VRR | E75: Volumetric Rate Riders | G75: =IFERROR(SUMIF(RATES!B:B, '21. Bill Impacts'!D75,RATES!H:H),"") -> -0.0002 | H75: =IF($F65>0, $F65, $F64) -> 750 | I75: =H75*G75 -> -0.15 | J75: =IFERROR(SUMIF(RATES!B:B,'21. Bill Impacts'!D75,RATES!I:I),"") -> 0 | K75: =IF($F65>0, $F65, $F64) -> 750 | L75: =K75*J75 -> 0 | M75: 0.15 | N75: =IF(ISERROR(M75/I75), "", M75/I75) -> -1
A76: RESIDENTIAL SERVICE CLASSIFICATION | B76: ST_A | C76: =B15 -> 1 | E76: Sub-Total A (excluding pass through) | I76: =SUM(I72:I75) -> 25.015 | L76: =SUM(L72:L75) -> 24.87 | M76: -0.145 | N76: =IF((I76)=0,"",(M76/I76)) -> -0.005796522087
A77: RESIDENTIAL SERVICE CLASSIFICATION | E77: Line Losses on Cost of Power | G77: =IF((F64*12>=150000), 0, IF(F63="RPP",(G91*0.65+G92*0.17+G93*0.18),IF(F63="Non-RPP (Retailer)",G94,G95))) -> 0.08199 | H77: =IF(G77=0, 0, $F64*F66-F64) -> 27 | I77: =H77*G77 -> 2.21373 | J77: =IF((F64*12>=150000), 0, IF(F63="RPP",(J91*0.65+J92*0.17+J93*0.18),IF(F63="Non-RPP (Retailer)",J94,J95))) -> 0.08199 | K77: =IF(G77=0, 0, $F64*F66-F64) -> 27 | L77: =K77*J77 -> 2.21373 | M77: 0 | N77: =IF(ISERROR(M77/I77), "", M77/I77) -> 0
A78: RESIDENTIAL SERVICE CLASSIFICATION | D78: R_DVA | E78: Total Deferral/Variance Account Rate Riders | G78: =IFERROR(SUMIF(RATES!B:B, '21. Bill Impacts'!D78,RATES!H:H),"") -> -0.00075 | H78: =IF($F65>0, $F65, $F64) -> 750 | I78: =H78*G78 -> -0.5625 | J78: =IFERROR(SUMIF(RATES!B:B,'21. Bill Impacts'!D78,RATES!I:I),"") -> -0.00114 | K78: =IF($F65>0, $F65, $F64) -> 750 | L78: =K78*J78 -> -0.855 | M78: -0.2925 | N78: =IF(ISERROR(M78/I78), "", M78/I78) -> 0.52
A79: RESIDENTIAL SERVICE CLASSIFICATION | D79: R_GA | E79: GA Rate Riders
A80: RESIDENTIAL SERVICE CLASSIFICATION | D80: R_LV | E80: Low Voltage Service Charge | G80: =IFERROR(SUMIF(RATES!B:B, '21. Bill Impacts'!D80,RATES!H:H),"") -> 0.0002 | H80: =IF($F65>0, $F65, $F64) -> 750 | I80: =H80*G80 -> 0.15 | J80: =IFERROR(SUMIF(RATES!B:B,'21. Bill Impacts'!D80,RATES!I:I),"") -> 0.0002 | K80: =IF($F65>0, $F65, $F64) -> 750 | L80: =K80*J80 -> 0.15 | M80: =L80-I80 -> 0 | N80: =IF(ISERROR(M80/I80), "", M80/I80) -> 0
A81: RESIDENTIAL SERVICE CLASSIFICATION | D81: R_SME | E81: Smart Meter Entity Charge (if applicable) and/or any fixed ($) Deferral/Variance Account Rate Riders | G81: =IFERROR(SUMIF(RATES!B:B, '21. Bill Impacts'!D81,RATES!H:H),"") -> 0.57 | H81: 1 | I81: =H81*G81 -> 0.57 | J81: =IFERROR(SUMIF(RATES!B:B,'21. Bill Impacts'!D81,RATES!I:I),"") -> 0.57 | K81: 1 | L81: =K81*J81 -> 0.57 | M81: 0 | N81: =IF(ISERROR(M81/I81), "", M81/I81) -> 0
A82: RESIDENTIAL SERVICE CLASSIFICATION | B82: ST_B | C82: =B15 -> 1 | E82: Sub-Total B - Distribution (includes Sub-Total A) | I82: =SUM(I76:I81) -> 27.38623 | L82: =SUM(L76:L81) -> 26.94873 | M82: -0.4375 | N82: =IF((I82)=0,"",(M82/I82)) -> -0.01597518169
A83: RESIDENTIAL SERVICE CLASSIFICATION | D83: R_TN | E83: RTSR - Network | G83: =IFERROR(SUMIF(RATES!B:B, '21. Bill Impacts'!D83,RATES!H:H),"") -> 0.0076 | H83: =F64 -> 750 | I83: =H83*G83 -> 5.7 | J83: =IFERROR(SUMIF(RATES!B:B,'21. Bill Impacts'!D83,RATES!I:I),"") -> 0.0076 | K83: =H83 -> 750 | L83: =K83*J83 -> 5.7 | M83: 0 | N83: =IF(ISERROR(M83/I83), "", M83/I83) -> 0
A84: RESIDENTIAL SERVICE CLASSIFICATION | D84: R_TC | E84: RTSR - Connection and/or Line and Transformation Connection | G84: =IFERROR(SUMIF(RATES!B:B, '21. Bill Impacts'!D84,RATES!H:H),"") -> 0.0071 | H84: =H83 -> 750 | I84: =H84*G84 -> 5.325 | J84: =IFERROR(SUMIF(RATES!B:B,'21. Bill Impacts'!D84,RATES!I:I),"") -> 0.0072 | K84: =H84 -> 750 | L84: =K84*J84 -> 5.4 | M84: 0.075 | N84: =IF(ISERROR(M84/I84), "", M84/I84) -> 0.01408450704
A85: RESIDENTIAL SERVICE CLASSIFICATION | B85: ST_C | C85: =B15 -> 1 | E85: Sub-Total C - Delivery (including Sub-Total B) | I85: =SUM(I82:I84) -> 38.41123 | L85: =SUM(L82:L84) -> 38.04873 | M85: -0.3625 | N85: =IF((I85)=0,"",(M85/I85)) -> -0.009437344235
A86: RESIDENTIAL SERVICE CLASSIFICATION | E86: Wholesale Market Service Charge (WMSC) | G86: 0.0036 | H86: =F64*F66 -> 777 | I86: =H86*G86 -> 2.7972 | J86: 0.0036 | K86: =F64*F66 -> 777 | L86: =K86*J86 -> 2.7972 | M86: 0 | N86: =IF(ISERROR(M86/I86), "", M86/I86) -> 0
A87: RESIDENTIAL SERVICE CLASSIFICATION | E87: Rural and Remote Rate Protection (RRRP) | G87: 0.0003 | H87: =F64*F66 -> 777 | I87: =H87*G87 -> 0.2331 | J87: 0.0003 | K87: =F64*F66 -> 777 | L87: =K87*J87 -> 0.2331 | M87: 0 | N87: =IF(ISERROR(M87/I87), "", M87/I87) -> 0
A88: RESIDENTIAL SERVICE CLASSIFICATION | E88: Standard Supply Service Charge | G88: 0.25 | H88: 1 | I88: =H88*G88 -> 0.25 | J88: 0.25 | K88: 1 | L88: =K88*J88 -> 0.25 | M88: 0 | N88: =IF(ISERROR(M88/I88), "", M88/I88) -> 0
A89: RESIDENTIAL SERVICE CLASSIFICATION | E89: Debt Retirement Charge (DRC)
A90: RESIDENTIAL SERVICE CLASSIFICATION
A91: RESIDENTIAL SERVICE CLASSIFICATION | B91: RPP | E91: TOU - Off Peak | G91: 0.065 | H91: =IF(AND(F64*12>=150000),0.65*F64*F66,0.65*F64) -> 487.5 | I91: =H91*G91 -> 31.6875 | J91: 0.065 | K91: =IF(AND(F64*12>=150000),0.65*F64*F67,0.65*F64) -> 487.5 | L91: =K91*J91 -> 31.6875 | M91: =L91-I91 -> 0 | N91: =IF(ISERROR(M91/I91), "", M91/I91) -> 0
A92: RESIDENTIAL SERVICE CLASSIFICATION | B92: RPP | E92: TOU - Mid Peak | G92: 0.094 | H92: =IF(AND(F64*12>=150000),0.17*F64*F66,0.17*F64) -> 127.5 | I92: =H92*G92 -> 11.985 | J92: =G92 -> 0.094 | K92: =IF(AND(F64*12>=150000),0.17*F64*F67,0.17*F64) -> 127.5 | L92: =K92*J92 -> 11.985 | M92: =L92-I92 -> 0 | N92: =IF(ISERROR(M92/I92), "", M92/I92) -> 0
A93: RESIDENTIAL SERVICE CLASSIFICATION | B93: RPP | E93: TOU - On Peak | G93: 0.132 | H93: =IF(AND(F64*12>=150000),0.18*F64*F66,0.18*F64) -> 135 | I93: =H93*G93 -> 17.82 | J93: 0.132 | K93: =IF(AND(F64*12>=150000),0.18*F64*F67,0.18*F64) -> 135 | L93: =K93*J93 -> 17.82 | M93: =L93-I93 -> 0 | N93: =IF(ISERROR(M93/I93), "", M93/I93) -> 0
A94: RESIDENTIAL SERVICE CLASSIFICATION | B94: Non-RPP (Retailer) | E94: Non-RPP Retailer Avg. Price | G94: =0.1038 -> 0.1038 | H94: =IF(AND(F64*12>=150000),F64*F66,F64) -> 750 | I94: =H94*G94 -> 77.85 | J94: =G94 -> 0.1038 | K94: =IF(AND(F64*12>=150000),F64*F67,F64) -> 750 | L94: =K94*J94 -> 77.85 | M94: =L94-I94 -> 0 | N94: =IF(ISERROR(M94/I94), "", M94/I94) -> 0
A95: RESIDENTIAL SERVICE CLASSIFICATION | B95: Non-RPP (Other) | E95: Average IESO Wholesale Market Price | G95: =G94 -> 0.1038 | H95: =IF(AND(F64*12>=150000),F64*F66,F64) -> 750 | I95: =H95*G95 -> 77.85 | J95: =G95 -> 0.1038 | K95: =IF(AND(F64*12>=150000),F64*F67,F64) -> 750 | L95: =K95*J95 -> 77.85 | M95: =L95-I95 -> 0 | N95: =IF(ISERROR(M95/I95), "", M95/I95) -> 0
A96: RESIDENTIAL SERVICE CLASSIFICATION
A97: RESIDENTIAL SERVICE CLASSIFICATION | B97: RPP_BT | C97: 1 | E97: Total Bill on TOU (before Taxes) | I97: =SUM(I86:I93,I85) -> 103.18403 | L97: =SUM(L86:L93,L85) -> 102.82153 | M97: =L97-I97 -> -0.3625 | N97: =IF((I97)=0,"",(M97/I97)) -> -0.003513140551
A98: RESIDENTIAL SERVICE CLASSIFICATION | B98: RPP | E98: HST | G98: 0.13 | I98: =I97*G98 -> 13.4139239 | J98: 0.13 | L98: =L97*J98 -> 13.3667989 | M98: =L98-I98 -> -0.047125 | N98: =IF((I98)=0,"",(M98/I98)) -> -0.003513140551
A99: RESIDENTIAL SERVICE CLASSIFICATION | B99: RPP_NET | C99: 1 | E99: Total Bill on TOU (before 8% Provincial Rebate) | I99: =SUM(I97:I98) -> 116.5979539 | L99: =SUM(L97:L98) -> 116.1883289 | M99: =SUM(M97:M98) -> -0.409625 | N99: =IF((I99)=0,"",(M99/I99)) -> -0.003513140551
A100: =A98 -> RESIDENTIAL SERVICE CLASSIFICATION | B100: RPP | E100: 8% Provincial Rebate | G100: -0.08 | I100: =I97*G100 -> -8.2547224 | J100: =G100 -> -0.08 | L100: =L97*J100 -> -8.2257224 | M100: =L100-I100 -> 0.029 | N100: =IF((I100)=0,"",(M100/I100)) -> -0.003513140551
A101: =A100 -> RESIDENTIAL SERVICE CLASSIFICATION | B101: RPP_TOTAL | C101: =B15 -> 1 | E101: Total Bill on TOU | I101: =SUM(I97,I98,I100) -> 108.3432315 | L101: =L97+L98+L100 -> 107.9626065 | M101: =L101-I101 -> -0.380625 | N101: =IF((I101)=0,"",(M101/I101)) -> -0.003513140551
A102: RESIDENTIAL SERVICE CLASSIFICATION | B102: RPP
A103: RESIDENTIAL SERVICE CLASSIFICATION | B103: Non-RPP (Retailer) | E103: Total Bill on Non-RPP Avg. Price | I103: =SUM(I94,I86:I90,I85) -> 119.54153 | L103: =SUM(L94,L86:L90,L85) -> 119.17903 | M103: =L103-I103 -> -0.3625 | N103: =IF((I103)=0,"",(M103/I103)) -> -0.003032418943
A104: RESIDENTIAL SERVICE CLASSIFICATION | B104: Non-RPP (Retailer) | E104: HST | G104: 0.13 | I104: =I103*G104 -> 15.5403989 | J104: 0.13 | L104: =L103*J104 -> 15.4932739 | M104: =L104-I104 -> -0.047125 | N104: =IF((I104)=0,"",(M104/I104)) -> -0.003032418943
A105: RESIDENTIAL SERVICE CLASSIFICATION | B105: Non-RPP (Retailer) | E105: Provincial Rebate | G105: -0.08 | I105: =I103*G105 -> -9.5633224 | J105: =G105 -> -0.08 | L105: =L103*J105 -> -9.5343224 | M105: =L105-I105 -> 0.029 | N105: =IF((I105)=0,"",(M105/I105)) -> -0.003032418943
A106: RESIDENTIAL SERVICE CLASSIFICATION | B106: Non-RPP (Retailer)_TOTAL | E106: Total Bill on Non-RPP Avg. Price | I106: =SUM(I103,I104,I105) -> 125.5186065 | L106: =SUM(L103,L104,L105) -> 125.1379815 | M106: =L106-I106 -> -0.380625 | N106: =IF((I106)=0,"",(M106/I106)) -> -0.003032418943
A107: RESIDENTIAL SERVICE CLASSIFICATION | B107: Non-RPP (Retailer)
A108: RESIDENTIAL SERVICE CLASSIFICATION | B108: Non-RPP (Other) | E108: Total Bill on Average IESO Wholesale Market Price | I108: =SUM(I95,I86:I90,I85) -> 119.54153 | L108: =SUM(L95,L86:L90,L85) -> 119.17903 | M108: =L108-I108 -> -0.3625 | N108: =IF((I108)=0,"",(M108/I108)) -> -0.003032418943
A109: RESIDENTIAL SERVICE CLASSIFICATION | B109: Non-RPP (Other) | E109: HST | G109: 0.13 | I109: =I108*G109 -> 15.5403989 | J109: 0.13 | L109: =L108*J109 -> 15.4932739 | M109: =L109-I109 -> -0.047125 | N109: =IF((I109)=0,"",(M109/I109)) -> -0.003032418943
A110: RESIDENTIAL SERVICE CLASSIFICATION | B110: Non-RPP (Other) | E110: Provincial Rebate | G110: -0.08 | I110: =I108*G110 -> -9.5633224 | J110: =G110 -> -0.08 | L110: =L108*J110 -> -9.5343224 | M110: =L110-I110 -> 0.029 | N110: =IF((I110)=0,"",(M110/I110)) -> -0.003032418943
A111: RESIDENTIAL SERVICE CLASSIFICATION | B111: Non-RPP (Other)_TOTAL | E111: Total Bill on Average IESO Wholesale Market Price | I111: =SUM(I108,I109,I110) -> 125.5186065 | L111: =SUM(L108,L109,L110) -> 125.1379815 | M111: =L111-I111 -> -0.380625 | N111: =IF((I111)=0,"",(M111/I111)) -> -0.003032418943
A112: RESIDENTIAL SERVICE CLASSIFICATION | B112: Non-RPP (Other)
E115: Customer Class: | F115: =E16 -> GENERAL SERVICE LESS THAN 50 kW SERVICE CLASSIFICATION | L115: =IF(O66="DEMAND - INTERVAL","RTSR - INTERVAL METERED","") -> 
E116: RPP / Non-RPP: | F116: =H16 -> RPP
E117: Consumption | F117: =K16 -> 2000 | G117: kWh
E118: Demand | F118: =L16 -> 0 | G118: kW
E119: Current Loss Factor | F119: =I16 -> 1.036
E120: Proposed/Approved Loss Factor | F120: =J16 -> 1.036
G122: Current OEB-Approved | J122: Proposed | M122: Impact
G123: Rate | H123: Volume | I123: Charge | J123: Rate | K123: Volume | L123: Charge | M123: $ Change | N123: % Change
G124: ($) | I124: ($) | J124: ($) | L124: ($)
A125: =F115 -> GENERAL SERVICE LESS THAN 50 kW SERVICE CLASSIFICATION | D125: GSL_F | E125: Monthly Service Charge | G125: =IFERROR(SUMIF(RATES!B:B, '21. Bill Impacts'!D125,RATES!H:H),"") -> 43.99 | H125: 1 | I125: =H125*G125 -> 43.99 | J125: =IFERROR(SUMIF(RATES!B:B,'21. Bill Impacts'!D125,RATES!I:I),"") -> 44.39 | K125: 1 | L125: =K125*J125 -> 44.39 | M125: =L125-I125 -> 0.4 | N125: =IF(ISERROR(M125/I125), "", M125/I125) -> 0.009092975676
A126: =A125 -> GENERAL SERVICE LESS THAN 50 kW SERVICE CLASSIFICATION | D126: GSL_V | E126: Distribution Volumetric Rate | G126: =IFERROR(SUMIF(RATES!B:B, '21. Bill Impacts'!D126,RATES!H:H),"") -> 0.0128 | H126: =IF($F118>0, $F118, $F117) -> 2000 | I126: =H126*G126 -> 25.6 | J126: =IFERROR(SUMIF(RATES!B:B,'21. Bill Impacts'!D126,RATES!I:I),"") -> 0.0129 | K126: =IF($F118>0, $F118, $F117) -> 2000 | L126: =K126*J126 -> 25.8 | M126: 0.2 | N126: =IF(ISERROR(M126/I126), "", M126/I126) -> 0.0078125
A127: GENERAL SERVICE LESS THAN 50 kW SERVICE CLASSIFICATION | D127: GSL_FRR | E127: Fixed Rate Riders | G127: =IFERROR(SUMIF(RATES!B:B, '21. Bill Impacts'!D127,RATES!H:H),"") -> 1.74 | H127: 1 | I127: =H127*G127 -> 1.74 | J127: =IFERROR(SUMIF(RATES!B:B,'21. Bill Impacts'!D127,RATES!I:I),"") -> 1.27 | K127: 1 | L127: =K127*J127 -> 1.27 | M127: -0.47 | N127: =IF(ISERROR(M127/I127), "", M127/I127) -> -0.2701149425
A128: GENERAL SERVICE LESS THAN 50 kW SERVICE CLASSIFICATION | D128: GSL_VRR | E128: Volumetric Rate Riders | G128: =IFERROR(SUMIF(RATES!B:B, '21. Bill Impacts'!D128,RATES!H:H),"") -> 0.001 | H128: =IF($F118>0, $F118, $F117) -> 2000 | I128: =H128*G128 -> 2 | J128: =IFERROR(SUMIF(RATES!B:B,'21. Bill Impacts'!D128,RATES!I:I),"") -> 0.0012 | K128: =IF($F118>0, $F118, $F117) -> 2000 | L128: =K128*J128 -> 2.4 | M128: 0.4 | N128: =IF(ISERROR(M128/I128), "", M128/I128) -> 0.2
A129: GENERAL SERVICE LESS THAN 50 kW SERVICE CLASSIFICATION | B129: ST_A | C129: =B16 -> 2 | E129: Sub-Total A (excluding pass through) | I129: =SUM(I125:I128) -> 73.33 | L129: =SUM(L125:L128) -> 73.86 | M129: 0.53 | N129: =IF((I129)=0,"",(M129/I129)) -> 0.007227601255
A130: GENERAL SERVICE LESS THAN 50 kW SERVICE CLASSIFICATION | E130: Line Losses on Cost of Power | G130: =IF((F117*12>=150000), 0, IF(F116="RPP",(G144*0.65+G145*0.17+G146*0.18),IF(F116="Non-RPP (Retailer)",G147,G148))) -> 0.08199 | H130: =IF(G130=0, 0, $F117*F119-F117) -> 72 | I130: =H130*G130 -> 5.90328 | J130: =IF((F117*12>=150000), 0, IF(F116="RPP",(J144*0.65+J145*0.17+J146*0.18),IF(F116="Non-RPP (Retailer)",J147,J148))) -> 0.08199 | K130: =IF(G130=0, 0, $F117*F119-F117) -> 72 | L130: =K130*J130 -> 5.90328 | M130: 0 | N130: =IF(ISERROR(M130/I130), "", M130/I130) -> 0
A131: GENERAL SERVICE LESS THAN 50 kW SERVICE CLASSIFICATION | D131: GSL_DVA | E131: Total Deferral/Variance Account Rate Riders | G131: =IFERROR(SUMIF(RATES!B:B, '21. Bill Impacts'!D131,RATES!H:H),"") -> -0.00075 | H131: =IF($F118>0, $F118, $F117) -> 2000 | I131: =H131*G131 -> -1.5 | J131: =IFERROR(SUMIF(RATES!B:B,'21. Bill Impacts'!D131,RATES!I:I),"") -> -0.00114 | K131: =IF($F118>0, $F118, $F117) -> 2000 | L131: =K131*J131 -> -2.28 | M131: -0.78 | N131: =IF(ISERROR(M131/I131), "", M131/I131) -> 0.52
A132: GENERAL SERVICE LESS THAN 50 kW SERVICE CLASSIFICATION | D132: GSL_GA | E132: GA Rate Riders
A133: GENERAL SERVICE LESS THAN 50 kW SERVICE CLASSIFICATION | D133: GSL_LV | E133: Low Voltage Service Charge | G133: =IFERROR(SUMIF(RATES!B:B, '21. Bill Impacts'!D133,RATES!H:H),"") -> 0.0002 | H133: =IF($F118>0, $F118, $F117) -> 2000 | I133: =H133*G133 -> 0.4 | J133: =IFERROR(SUMIF(RATES!B:B,'21. Bill Impacts'!D133,RATES!I:I),"") -> 0.0002 | K133: =IF($F118>0, $F118, $F117) -> 2000 | L133: =K133*J133 -> 0.4 | M133: =L133-I133 -> 0 | N133: =IF(ISERROR(M133/I133), "", M133/I133) -> 0
A134: GENERAL SERVICE LESS THAN 50 kW SERVICE CLASSIFICATION | D134: GSL_SME | E134: Smart Meter Entity Charge (if applicable) and/or any fixed ($) Deferral/Variance Account Rate Riders | G134: =IFERROR(SUMIF(RATES!B:B, '21. Bill Impacts'!D134,RATES!H:H),"") -> 0.57 | H134: 1 | I134: =H134*G134 -> 0.57 | J134: =IFERROR(SUMIF(RATES!B:B,'21. Bill Impacts'!D134,RATES!I:I),"") -> 0.57 | K134: 1 | L134: =K134*J134 -> 0.57 | M134: 0 | N134: =IF(ISERROR(M134/I134), "", M134/I134) -> 0
A135: GENERAL SERVICE LESS THAN 50 kW SERVICE CLASSIFICATION | B135: ST_B | C135: =C129 -> 2 | E135: Sub-Total B - Distribution (includes Sub-Total A) | I135: =SUM(I129:I134) -> 78.70328 | L135: =SUM(L129:L134) -> 78.45328 | M135: -0.25 | N135: =IF((I135)=0,"",(M135/I135)) -> -0.003176487689
A136: GENERAL SERVICE LESS THAN 50 kW SERVICE CLASSIFICATION | D136: GSL_TN | E136: RTSR - Network | G136: =IFERROR(SUMIF(RATES!B:B, '21. Bill Impacts'!D136,RATES!H:H),"") -> 0.0071 | H136: =F117 -> 2000 | I136: =H136*G136 -> 14.2 | J136: =IFERROR(SUMIF(RATES!B:B,'21. Bill Impacts'!D136,RATES!I:I),"") -> 0.0071 | K136: =H136 -> 2000 | L136: =K136*J136 -> 14.2 | M136: 0 | N136: =IF(ISERROR(M136/I136), "", M136/I136) -> 0
A137: GENERAL SERVICE LESS THAN 50 kW SERVICE CLASSIFICATION | D137: GSL_TC | E137: RTSR - Connection and/or Line and Transformation Connection | G137: =IFERROR(SUMIF(RATES!B:B, '21. Bill Impacts'!D137,RATES!H:H),"") -> 0.0064 | H137: =H136 -> 2000 | I137: =H137*G137 -> 12.8 | J137: =IFERROR(SUMIF(RATES!B:B,'21. Bill Impacts'!D137,RATES!I:I),"") -> 0.0065 | K137: =H137 -> 2000 | L137: =K137*J137 -> 13 | M137: 0.2 | N137: =IF(ISERROR(M137/I137), "", M137/I137) -> 0.015625
A138: GENERAL SERVICE LESS THAN 50 kW SERVICE CLASSIFICATION | B138: ST_C | C138: =C129 -> 2 | E138: Sub-Total C - Delivery (including Sub-Total B) | I138: =SUM(I135:I137) -> 105.70328 | L138: =SUM(L135:L137) -> 105.65328 | M138: -0.05 | N138: =IF((I138)=0,"",(M138/I138)) -> -0.0004730222184
A139: GENERAL SERVICE LESS THAN 50 kW SERVICE CLASSIFICATION | E139: Wholesale Market Service Charge (WMSC) | G139: 0.0036 | H139: =F117*F119 -> 2072 | I139: =H139*G139 -> 7.4592 | J139: 0.0036 | K139: =F117*F119 -> 2072 | L139: =K139*J139 -> 7.4592 | M139: 0 | N139: =IF(ISERROR(M139/I139), "", M139/I139) -> 0
A140: GENERAL SERVICE LESS THAN 50 kW SERVICE CLASSIFICATION | E140: Rural and Remote Rate Protection (RRRP) | G140: 0.0003 | H140: =F117*F119 -> 2072 | I140: =H140*G140 -> 0.6216 | J140: 0.0003 | K140: =F117*F119 -> 2072 | L140: =K140*J140 -> 0.6216 | M140: 0 | N140: =IF(ISERROR(M140/I140), "", M140/I140) -> 0
